Workbook

Sheet RESUMO MODULO TOTAL
A1: ='RESUMO MODULO MINIMO'!A1 -> EXECUÇÃO DE SERVIÇOS DE IMPLANTAÇÃO DE PAVIMENTAÇÃO EM BLOCO DE CONCRETO INTERTRAVADO, EM VIAS URBANAS E RURAIS DE MUNÍCIPIOS DIVERSOS INSERIDOS NA ÁREA DE ATUAÇÃO DA CODEVASF, NO ESTADO DO PARÁ
A5: =A1 -> EXECUÇÃO DE SERVIÇOS DE IMPLANTAÇÃO DE PAVIMENTAÇÃO EM BLOCO DE CONCRETO INTERTRAVADO, EM VIAS URBANAS E RURAIS DE MUNÍCIPIOS DIVERSOS INSERIDOS NA ÁREA DE ATUAÇÃO DA CODEVASF, NO ESTADO DO PARÁ
A6: ITEM | B6: ORIGEM COMPOSIÇÃO | C6: CÓDIGO COMPOSIÇÃO | D6: DISCRIMINAÇÃO DOS SERVIÇOS | H6: BDI %: | I6: =BDI!E25 -> 0.2158381752 | J6: R$/m² | K6: =L33/I15 -> 121.893679 | L6: PERCENTUAL DE RISCO
H7: Total de m² | I7: Encargos Sociais: | J7: Horista | K7: Mensalista | L7: 0.0119
H8: =I15 -> 490000 | J8: ='ENC. SOCIAIS'!$E$51 -> 116.32 | K8: ='ENC. SOCIAIS'!$F$51 -> 71.26
H9: UND | I9: QTDE. | J9: PREÇO UNITÁRIO COM BDI COM RISCO 0 (R$) | K9: PREÇO TOTAL COM BDI RISCO 0 (R$) | L9: PREÇO TOTAL COM CONTINGÊNCIA (R$) | X9: TOTAL
D10: MOBILIZAÇÃO | R10: Índices de reajustamento
A11: 1 | B11: Codevasf | C11: Composição Própria | D11: Implantação da Obra | H11: modulo | I11: ='MC MODULO'!N17 -> 70 | J11: ='SERVIÇOS PRELI'!I15 -> 1419.32 | K11: =ROUND(I11*J11,2) -> 99352.4 | L11: =K11*(1+$L$7) -> 100534.6936 | P11: INCC | Q11: =SUMIF(P11:P32,"INCC",L11:L32) -> 1644701.055 | R11: =Q11/$Q$15 -> 0.02753656131 | S11: INCC | X11: 99352.4
A12: 2 | B12: Codevasf | C12: Composição Própria | D12: Administração da Obra | H12: modulo | I12: ='MC MODULO'!N22 -> 70 | J12: ='SERVIÇOS PRELI'!$I$24 -> 5222.19 | K12: =ROUND(I12*J12,2) -> 365553.3 | L12: =K12*(1+$L$7) -> 369903.3843 | P12: INCC | Q12: =SUMIF(P11:P32,"T",L11:L32) -> 587063.904 | R12: =Q12/$Q$15 -> 0.009828972344 | S12: T | X12: 365553.3
A13: 3 | B13: Codevasf | C13: Composição Própria | D13: Placa de Obra em Chapa de Aço Galvanizado | H13: und | I13: ='MC MODULO'!I8 -> 70 | J13: ='SERVIÇOS PRELI'!I19 -> 399.83 | K13: 27988.1 | L13: 28321.15839 | P13: INCC | Q13: =SUMIF(P11:P32,"P",L11:L32) -> 53203657.96 | R13: =Q13/$Q$15 -> 0.8907672216 | S13: P | X13: 27988.1
D14: TERRAPLANAGEM | Q14: =SUMIF(P11:P32,"D",L11:L32) -> 4292479.8 | R14: =Q14/$Q$15 -> 0.07186724469 | S14: D
A15: 4 | B15: Codevasf | C15: Composição Própria | D15: serviços topográficos para pavimentação, inclusive notas de serviços, acompanhamento e greide | H15: m² | I15: ='MC MODULO'!P29 -> 490000 | J15: ='CPU CODEVASF'!H90 -> 0.38 | K15: =ROUND(I15*J15,2) -> 186200 | L15: =K15*(1+$L$7) -> 188415.78 | P15: T | Q15: =SUM(Q11:Q14) -> 59727902.72 | R15: =SUM(R11:R14) -> 1 | X15: 186200
A16: 5 | B16: SICRO | C16: 5502114 | D16: Escavação, carga e transporte de material de 1ª categoria - DMT de 1.000 a 1.200 m - caminho de serviço em leito natural - com escavadeira e caminhão basculante de 14 m³ | H16: m³ | I16: ='MC MODULO'!R34 -> 49000 | J16: =CPU_SICRO!I207 -> 6.5 | K16: 318500 | L16: 322290.15 | P16: T | X16: 320950
A17: 6 | B17: SICRO | C17: 4413942 | D17: Espalhamento de material em bota-fora | H17: m³ | I17: ='MC MODULO'!R41 -> 49000 | J17: =CPU_SICRO!I239 -> 1.54 | K17: 75460 | L17: 76357.974 | P17: T | X17: 76440
D18: PAVIMENTAÇÃO | N18: 0.4
A19: 7 | B19: SINAPI | C19: 92394 | D19: Execução de Pavimento em Piso Intertravado, com Bloco Sextavado de 25 X 25 cm, espessura 8 cm. AF_12/2015 | H19: m² | I19: ='MC MODULO'!P49 -> 490000 | J19: ='CPU SINAPI'!G17 -> 79.43 | K19: =ROUND(I19*J19,2) -> 38920700 | L19: =K19*(1+$L$7) -> 39383856.33 | M19: =I19*N18 -> 196000 | P19: P | X19: 39239200
A20: 8 | B20: SICRO | C20: 4011276 | D20: Base ou sub-base de brita graduada com brita comercial | H20: m³ | I20: ='MC MODULO'!R55 -> 73500 | J20: =CPU_SICRO!$I$35 -> 179.28 | K20: 13177080 | L20: 13333887.25 | M20: =I20*N18 -> 29400 | P20: P | X20: 13284390
A21: 9 | B21: SICRO | C21: 4011209 | D21: Regularização do subleito | H21: m² | I21: ='MC MODULO'!R61 -> 490000 | J21: =CPU_SICRO!$I$69 -> 0.98 | K21: 480200 | L21: 485914.38 | P21: P | X21: 485100
D22: SINALIZAÇÃO
A23: 10 | B23: SICRO | C23: 5213440 | D23: Suporte metálico galvanizado para placa de advertência ou regulamentação - lado ou diâmetro de 0,60 m - fornecimento e instalação | H23: und | I23: ='MC MODULO'!R69 -> 70 | J23: =CPU_SICRO!$I$103 -> 245.8 | K23: =ROUND(I23*J23,2) -> 17206 | L23: =K23*(1+$L$7) -> 17410.7514 | P23: INCC | X23: 17346
A24: 11 | B24: SICRO | C24: 5213863 | D24: Fornecimento e implantação de suporte metálico galvanizado para placa de regulamentação - D = 0,60 m | H24: und | I24: ='MC MODULO'!R75 -> 70 | J24: =CPU_SICRO!$I$142 -> 351.96 | K24: 24637.2 | L24: 24930.38268 | P24: INCC | X24: 24837.4
D25: DRENAGEM
A26: 12 | B26: SICRO | C26: 2003373 | D26: Meio fio de concreto - MFC 03 - areia e brita comerciais - fôrma de madeira | H26: m | I26: ='MC MODULO'!R82 -> 140000 | J26: =CPU_SICRO!I174 -> 30.3 | K26: =ROUND(I26*J26,2) -> 4242000 | L26: =K26*(1+$L$7) -> 4292479.8 | M26: =I26*N18 -> 56000 | P26: D | X26: 4275600
D27: LIMPEZA GERAL
A28: 13 | B28: Codevasf | C28: Composição Própria | D28: Limpeza Geral | H28: m² | I28: ='MC MODULO'!R90 -> 490000 | J28: ='CPU CODEVASF'!H65 -> 1.02 | K28: =ROUND(I28*J28,2) -> 499800 | L28: =K28*(1+$L$7) -> 505747.62 | P28: INCC | X28: 499800
D29: SERVIÇOS COMPLEMENTARES
A30: 14 | B30: Codevasf | C30: Composição Própria | D30: Conserto de quebra no ramal na rua sem pavimento com fornecimento de material hidráulico | H30: m | I30: ='MC MODULO'!R97 -> 7000 | J30: ='CPU CODEVASF'!H77 -> 16.93 | K30: =ROUND(I30*J30,2) -> 118510 | L30: =K30*(1+$L$7) -> 119920.269 | P30: INCC | X30: 118510
D31: PROJETO EXECUTIVO
A32: 15 | B32: Codevasf | C32: Composição Própria | D32: Projeto Executivo | H32: km | I32: ='MC MODULO'!R104 -> 70 | J32: ='Projeto Executivo'!G32 -> 6747.318259 | K32: =ROUND(I32*J32,2) -> 472312.28 | L32: =K32*(1+$L$7) -> 477932.7961 | P32: INCC | X32: 472312.28
A33: VALOR TOTAL DO SRP | K33: =SUM(K11:K32) -> 59025499.28 | L33: =SUM(L11:L32) -> 59727902.72 | X33: =SUM(X11:X32) -> 59493579.48
I35: Sinapi 09/2021
I36: Orse 08/2021
I37: Sicro 04/2021

Sheet CRONOGRAMA TOTAL
A2: ='RESUMO MODULO MINIMO'!$A$5 -> EXECUÇÃO DE SERVIÇOS DE IMPLANTAÇÃO DE PAVIMENTAÇÃO EM BLOCO DE CONCRETO INTERTRAVADO, EM VIAS URBANAS E RURAIS DE MUNÍCIPIOS DIVERSOS INSERIDOS NA ÁREA DE ATUAÇÃO DA CODEVASF, NO ESTADO DO PARÁ
A3: Cronograma Físico e Financeiro
A4: Item | B4: Descrição | C4: Total Por Etapa | D4: 30 DIAS | E4: 60 DIAS | F4: 90 DIAS | G4: 120 DIAS | H4: 150 DIAS | I4: 180 DIAS | J4: 210 DIAS | K4: 240 DIAS | L4: 270 DIAS | M4: 300 DIAS | N4: 330 DIAS | O4: 360 DIAS
B5: ='RESUMO MODULO MINIMO'!$D$10 -> MOBILIZAÇÃO | C5: 1 | E5: =$C$5/11 -> 0.09090909091 | F5: =$C$5/11 -> 0.09090909091 | G5: 0.09090909091 | H5: 0.09090909091 | I5: 0.09090909091 | J5: 0.09090909091 | K5: 0.09090909091 | L5: 0.09090909091 | M5: 0.09090909091 | N5: 0.09090909091 | O5: 0.09090909091 | Q5: =SUM(D5:O5) -> 1
C6: =SUM('RESUMO MODULO TOTAL'!L11:L13) -> 498759.2362 | E6: =$C$6*E5 -> 45341.74875 | F6: 45341.74875 | G6: 45341.74875 | H6: 45341.74875 | I6: 45341.74875 | J6: 45341.74875 | K6: 45341.74875 | L6: 45341.74875 | M6: 45341.74875 | N6: 45341.74875 | O6: 45341.74875 | Q6: =SUM(D6:O6) -> 498759.2362 | R6: =C6 -> 498759.2362 | S6: =Q6-R6 -> 0
B7: ='RESUMO MODULO MINIMO'!D14 -> TERRAPLANAGEM | C7: 1 | F7: =$C$9/10 -> 0.1 | G7: =$C$9/10 -> 0.1 | H7: 0.1 | I7: 0.1 | J7: 0.1 | K7: 0.1 | L7: 0.1 | M7: 0.1 | N7: 0.1 | O7: 0.1 | Q7: =SUM(F7:O7) -> 1
C8: =SUM('RESUMO MODULO TOTAL'!L15:L17) -> 587063.904 | F8: =$C$8*F7 -> 58706.3904 | G8: =$C$8*G7 -> 58706.3904 | H8: 58706.3904 | I8: 58706.3904 | J8: 58706.3904 | K8: 58706.3904 | L8: 58706.3904 | M8: 58706.3904 | N8: 58706.3904 | O8: 58706.3904 | Q8: 587063.904 | R8: =C8 -> 587063.904 | S8: =Q8-R8 -> 0
B9: ='RESUMO MODULO MINIMO'!$D$18 -> PAVIMENTAÇÃO | C9: 1 | F9: =$C$9/10 -> 0.1 | G9: 0.1 | H9: 0.1 | I9: 0.1 | J9: 0.1 | K9: 0.1 | L9: 0.1 | M9: 0.1 | N9: 0.1 | O9: 0.1 | Q9: 1
C10: =SUM('RESUMO MODULO TOTAL'!L19:L21) -> 53203657.96 | F10: =$C$10*F9 -> 5320365.796 | G10: =$C$10*G9 -> 5320365.796 | H10: 5320365.796 | I10: 5320365.796 | J10: 5320365.796 | K10: 5320365.796 | L10: 5320365.796 | M10: 5320365.796 | N10: 5320365.796 | O10: 5320365.796 | Q10: 53203657.96 | R10: =C10 -> 53203657.96 | S10: =Q10-R10 -> 0
B11: ='RESUMO MODULO MINIMO'!$D$22 -> SINALIZAÇÃO | C11: 1 | F11: =$C$11/10 -> 0.1 | G11: =(100%-$F$11)/9 -> 0.1 | H11: =(100%-$F$11)/9 -> 0.1 | I11: 0.1 | J11: 0.1 | K11: 0.1 | L11: 0.1 | M11: 0.1 | N11: 0.1 | O11: 0.1 | Q11: 1
C12: =SUM('RESUMO MODULO TOTAL'!L23:L24) -> 42341.13408 | F12: =$C$12*F11 -> 4234.113408 | G12: 4234.113408 | H12: 4234.113408 | I12: 4234.113408 | J12: 4234.113408 | K12: 4234.113408 | L12: 4234.113408 | M12: 4234.113408 | N12: 4234.113408 | O12: 4234.113408 | Q12: 42341.13408 | R12: =C12 -> 42341.13408 | S12: 0
B13: ='RESUMO MODULO MINIMO'!$D$25 -> DRENAGEM | C13: 1 | F13: =$C$13/10 -> 0.1 | G13: =$C$13/10 -> 0.1 | H13: 0.1 | I13: 0.1 | J13: 0.1 | K13: 0.1 | L13: 0.1 | M13: 0.1 | N13: 0.1 | O13: 0.1 | Q13: =SUM(D13:O13) -> 1
C14: =SUM('RESUMO MODULO TOTAL'!L26) -> 4292479.8 | F14: =$C$14*F13 -> 429247.98 | G14: =$C$14*G13 -> 429247.98 | H14: 429247.98 | I14: 429247.98 | J14: 429247.98 | K14: 429247.98 | L14: 429247.98 | M14: 429247.98 | N14: 429247.98 | O14: 429247.98 | Q14: 4292479.8 | R14: =C14 -> 4292479.8 | S14: 0
B15: ='RESUMO MODULO MINIMO'!$D$27 -> LIMPEZA GERAL | C15: 1 | F15: =100%/10 -> 0.1 | G15: =100%/10 -> 0.1 | H15: 0.1 | I15: 0.1 | J15: 0.1 | K15: 0.1 | L15: 0.1 | M15: 0.1 | N15: 0.1 | O15: 0.1 | Q15: =SUM(D15:O15) -> 1
C16: ='RESUMO MODULO TOTAL'!L28 -> 505747.62 | F16: =$C$16*F15 -> 50574.762 | G16: 50574.762 | H16: 50574.762 | I16: 50574.762 | J16: 50574.762 | K16: 50574.762 | L16: 50574.762 | M16: 50574.762 | N16: 50574.762 | O16: 50574.762 | Q16: 505747.62 | R16: =C16 -> 505747.62 | S16: =Q16-R16 -> 0
B17: ='RESUMO MODULO MINIMO'!D29 -> SERVIÇOS COMPLEMENTARES | C17: 1 | F17: =100%/10 -> 0.1 | G17: 0.1 | H17: 0.1 | I17: 0.1 | J17: 0.1 | K17: 0.1 | L17: 0.1 | M17: 0.1 | N17: 0.1 | O17: 0.1 | Q17: 1
C18: ='RESUMO MODULO TOTAL'!L30 -> 119920.269 | F18: =$C$18*F17 -> 11992.0269 | G18: =$C$18*G17 -> 11992.0269 | H18: 11992.0269 | I18: 11992.0269 | J18: 11992.0269 | K18: 11992.0269 | L18: 11992.0269 | M18: 11992.0269 | N18: 11992.0269 | O18: 11992.0269 | Q18: 119920.269 | R18: =C18 -> 119920.269 | S18: =Q18-R18 -> 0
B19: ='RESUMO MODULO MINIMO'!$D$31 -> PROJETO EXECUTIVO | C19: 1 | D19: 0.5 | E19: 0.5 | Q19: 1
C20: ='RESUMO MODULO TOTAL'!L32 -> 477932.7961 | D20: =$C$20*D19 -> 238966.3981 | E20: =$C$20*E19 -> 238966.3981 | Q20: 477932.7961 | R20: =C20 -> 477932.7961 | S20: =Q20-R20 -> 0
A22: Porcentagem | D22: =SUM(D6+D8+D10+D12+D14+D16+D18+D20)/$O$27 -> 0.004000917279 | E22: =SUM(E6+E8+E10+E12+E14+E16+E18+E20)/$O$27 -> 0.00476005575 | F22: 0.0991239027 | G22: 0.0991239027 | H22: 0.0991239027 | I22: 0.0991239027 | J22: 0.0991239027 | K22: 0.0991239027 | L22: 0.0991239027 | M22: 0.0991239027 | N22: 0.0991239027 | O22: 0.0991239027
A23: Custo | D23: =$O$27*D22 -> 238966.3981 | E23: =$O$27*E22 -> 284308.1468 | F23: =$O$27*F22 -> 5920462.818 | G23: 5920462.818 | H23: 5920462.818 | I23: 5920462.818 | J23: 5920462.818 | K23: 5920462.818 | L23: 5920462.818 | M23: 5920462.818 | N23: 5920462.818 | O23: 5920462.818
A24: Porcentagem Acumulado | D24: =D22 -> 0.004000917279 | E24: =D24+E22 -> 0.00876097303 | F24: =E24+F22 -> 0.1078848757 | G24: 0.2070087784 | H24: 0.3061326811 | I24: 0.4052565838 | J24: 0.5043804865 | K24: 0.6035043892 | L24: 0.7026282919 | M24: 0.8017521946 | N24: 0.9008760973 | O24: 1
A25: Custo Acumulado | D25: =D23 -> 238966.3981 | E25: =D25+E23 -> 523274.5449 | F25: 6443737.363 | G25: 12364200.18 | H25: 18284663 | I25: 24205125.82 | J25: 30125588.63 | K25: 36046051.45 | L25: 41966514.27 | M25: 47886977.09 | N25: 53807439.9 | O25: 59727902.72
D27: Total Geral | N27: R$ | O27: ='RESUMO MODULO TOTAL'!L33 -> 59727902.72

Sheet RESUMO MODULO MINIMO
A1: EXECUÇÃO DE SERVIÇOS DE IMPLANTAÇÃO DE PAVIMENTAÇÃO EM BLOCO DE CONCRETO INTERTRAVADO, EM VIAS URBANAS E RURAIS DE MUNÍCIPIOS DIVERSOS INSERIDOS NA ÁREA DE ATUAÇÃO DA CODEVASF, NO ESTADO DO PARÁ | J1: Extensão (km)
C4: MÓDULO MÍNIMO
A5: =A1 -> EXECUÇÃO DE SERVIÇOS DE IMPLANTAÇÃO DE PAVIMENTAÇÃO EM BLOCO DE CONCRETO INTERTRAVADO, EM VIAS URBANAS E RURAIS DE MUNÍCIPIOS DIVERSOS INSERIDOS NA ÁREA DE ATUAÇÃO DA CODEVASF, NO ESTADO DO PARÁ
A6: ITEM | B6: ORIGEM COMPOSIÇÃO | C6: CÓDIGO COMPOSIÇÃO | D6: DISCRIMINAÇÃO DOS SERVIÇOS | H6: BDI %: | I6: =BDI!E25 -> 0.2158381752 | J6: R$/m² | K6: =L33/I15 -> 121.8936793 | L6: PERCENTUAL DE RISCO
H7: Total de m² | I7: Encargos Sociais: | J7: Horista | K7: Mensalista | L7: 0.0119
H8: =I15 -> 7000 | J8: ='ENC. SOCIAIS'!$E$51 -> 116.32 | K8: ='ENC. SOCIAIS'!$F$51 -> 71.26
H9: UND | I9: QTDE. | J9: PREÇO UNITÁRIO COM BDI COM RISCO 0 (R$) | K9: PREÇO TOTAL COM BDI RISCO 0 (R$) | L9: PREÇO TOTAL COM CONTINGÊNCIA (R$)
D10: MOBILIZAÇÃO
A11: 1 | B11: Codevasf | C11: Composição Própria | D11: Implantação da Obra | H11: modulo | I11: ='MC MODULO'!$D$17 -> 1 | J11: ='SERVIÇOS PRELI'!I15 -> 1419.32 | K11: =ROUND(I11*J11,2) -> 1419.32 | L11: =K11*(1+$L$7) -> 1436.209908
A12: 2 | B12: Codevasf | C12: Composição Própria | D12: Administração da Obra | H12: modulo | I12: ='MC MODULO'!$D$22 -> 1 | J12: ='SERVIÇOS PRELI'!$I$24 -> 5222.19 | K12: =ROUND(I12*J12,2) -> 5222.19 | L12: =K12*(1+$L$7) -> 5284.334061
A13: 3 | B13: Codevasf | C13: Composição Própria | D13: Placa de Obra em Chapa de Aço Galvanizado | H13: und | I13: 1 | J13: ='SERVIÇOS PRELI'!I19 -> 399.83 | K13: 399.83 | L13: 404.587977
D14: TERRAPLANAGEM
A15: 4 | B15: Codevasf | C15: Composição Própria | D15: serviços topográficos para pavimentação, inclusive notas de serviços, acompanhamento e greide | H15: m² | I15: ='MC MODULO'!F29 -> 7000 | J15: ='CPU CODEVASF'!H90 -> 0.38 | K15: =ROUND(I15*J15,2) -> 2660 | L15: =K15*(1+$L$7) -> 2691.654
A16: 5 | B16: SICRO | C16: 5502114 | D16: Escavação, carga e transporte de material de 1ª categoria - DMT de 1.000 a 1.200 m - caminho de serviço em leito natural - com escavadeira e caminhão basculante de 14 m³ | H16: m³ | I16: ='MC MODULO'!$H$34 -> 700 | J16: =CPU_SICRO!I207 -> 6.5 | K16: 4550 | L16: 4604.145
A17: 6 | B17: SICRO | C17: 5502114 | D17: Espalhamento de material em bota-fora | H17: m³ | I17: ='MC MODULO'!$H$41 -> 700 | J17: =CPU_SICRO!I239 -> 1.54 | K17: 1078 | L17: 1090.8282
D18: PAVIMENTAÇÃO
A19: 7 | B19: SINAPI | C19: 92394 | D19: Execução de Pavimento em Piso Intertravado, com Bloco Sextavado de 25 X 25 cm, espessura 8 cm. AF_12/2015 | H19: m² | I19: ='MC MODULO'!$F$49 -> 7000 | J19: ='CPU SINAPI'!G17 -> 79.43 | K19: =ROUND(I19*J19,2) -> 556010 | L19: =K19*(1+$L$7) -> 562626.519
A20: 8 | B20: SICRO | C20: 4011276 | D20: Base ou sub-base de brita graduada com brita comercial | H20: m³ | I20: ='MC MODULO'!$H$55 -> 1050 | J20: =CPU_SICRO!$I$35 -> 179.28 | K20: 188244 | L20: 190484.1036
A21: 9 | B21: SICRO | C21: 4011209 | D21: Regularização do subleito | H21: m² | I21: ='MC MODULO'!$H$61 -> 7000 | J21: =CPU_SICRO!$I$69 -> 0.98 | K21: 6860 | L21: 6941.634
D22: SINALIZAÇÃO
A23: 10 | B23: SICRO | C23: 5213440 | D23: Suporte metálico galvanizado para placa de advertência ou regulamentação - lado ou diâmetro de 0,60 m - fornecimento e instalação | H23: und | I23: ='MC MODULO'!$H$69 -> 1 | J23: =CPU_SICRO!$I$103 -> 245.8 | K23: =ROUND(I23*J23,2) -> 245.8 | L23: =K23*(1+$L$7) -> 248.72502
A24: 11 | B24: SICRO | C24: ='RESUMO MODULO TOTAL'!C24 -> 5213863 | D24: Fornecimento e implantação de suporte metálico galvanizado para placa de regulamentação - D = 0,60 m | H24: und | I24: ='MC MODULO'!$H$75 -> 1 | J24: =CPU_SICRO!$I$142 -> 351.96 | K24: 351.96 | L24: 356.148324
D25: DRENAGEM
A26: 12 | B26: SICRO | C26: 2003373 | D26: Meio fio de concreto - MFC 03 - areia e brita comerciais - fôrma de madeira | H26: m | I26: ='MC MODULO'!$H$82 -> 2000 | J26: =CPU_SICRO!I174 -> 30.3 | K26: =ROUND(I26*J26,2) -> 60600 | L26: =K26*(1+$L$7) -> 61321.14
D27: LIMPEZA GERAL
A28: 13 | B28: Codevasf | C28: Composição Própria | D28: Limpeza Geral | H28: m² | I28: ='MC MODULO'!$H$90 -> 7000 | J28: ='CPU CODEVASF'!H65 -> 1.02 | K28: =ROUND(I28*J28,2) -> 7140 | L28: =K28*(1+$L$7) -> 7224.966
D29: SERVIÇOS COMPLEMENTARES
A30: 14 | B30: Codevasf | C30: Composição Própria | D30: Conserto de quebra no ramal na rua sem pavimento com fornecimento de material hidráulico | H30: m | I30: ='MC MODULO'!H97 -> 100 | J30: ='CPU CODEVASF'!H77 -> 16.93 | K30: =ROUND(I30*J30,2) -> 1693 | L30: =K30*(1+$L$7) -> 1713.1467
D31: PROJETO EXECUTIVO
A32: 15 | B32: Codevasf | C32: Composição Própria | D32: Projeto Executivo | H32: km | I32: ='MC MODULO'!$H$104 -> 1 | J32: ='Projeto Executivo'!G32 -> 6747.318259 | K32: =ROUND(I32*J32,2) -> 6747.32 | L32: =K32*(1+$L$7) -> 6827.613108
A33: VALOR TOTAL DO SRP | K33: =SUM(K11:K32) -> 843221.42 | L33: =SUM(L11:L32) -> 853255.7549 | M33: =L33*'RESUMO MODULO TOTAL'!I11 -> 59727902.84

Sheet CRONOGRAMA MINIMO
A2: MÓDULO MÍNIMO
A3: ='RESUMO MODULO MINIMO'!$A$5 -> EXECUÇÃO DE SERVIÇOS DE IMPLANTAÇÃO DE PAVIMENTAÇÃO EM BLOCO DE CONCRETO INTERTRAVADO, EM VIAS URBANAS E RURAIS DE MUNÍCIPIOS DIVERSOS INSERIDOS NA ÁREA DE ATUAÇÃO DA CODEVASF, NO ESTADO DO PARÁ
A4: Cronograma Físico e Financeiro
A5: Item | B5: Descrição | C5: Total Por Etapa | D5: 30 DIAS | E5: 60 DIAS | F5: 90 DIAS | G5: 120 DIAS | H5: 150 DIAS | I5: 180 DIAS | J5: 210 DIAS | K5: 240 DIAS | L5: 270 DIAS | M5: 300 DIAS | N5: 330 DIAS | O5: 360 DIAS
B6: ='RESUMO MODULO MINIMO'!$D$10 -> MOBILIZAÇÃO | C6: 1 | E6: =$C$6/11 -> 0.09090909091 | F6: =$C$6/11 -> 0.09090909091 | G6: 0.09090909091 | H6: 0.09090909091 | I6: 0.09090909091 | J6: 0.09090909091 | K6: 0.09090909091 | L6: 0.09090909091 | M6: 0.09090909091 | N6: 0.09090909091 | O6: 0.09090909091 | Q6: =SUM(D6:O6) -> 1
C7: =SUM('RESUMO MODULO MINIMO'!L11:L13) -> 7125.131946 | E7: =$C$7*E6 -> 647.7392678 | F7: 647.7392678 | G7: 647.7392678 | H7: 647.7392678 | I7: 647.7392678 | J7: 647.7392678 | K7: 647.7392678 | L7: 647.7392678 | M7: 647.7392678 | N7: 647.7392678 | O7: 647.7392678 | Q7: =SUM(D7:O7) -> 7125.131946 | R7: =C7 -> 7125.131946 | S7: =Q7-R7 -> 0
B8: ='RESUMO MODULO MINIMO'!D14 -> TERRAPLANAGEM | C8: 1 | F8: =$C$10/10 -> 0.1 | G8: =$C$10/10 -> 0.1 | H8: 0.1 | I8: 0.1 | J8: 0.1 | K8: 0.1 | L8: 0.1 | M8: 0.1 | N8: 0.1 | O8: 0.1 | Q8: =SUM(F8:O8) -> 1
C9: =SUM('RESUMO MODULO MINIMO'!L15:L17) -> 8386.6272 | F9: =$C$9*F8 -> 838.66272 | G9: =$C$9*G8 -> 838.66272 | H9: 838.66272 | I9: 838.66272 | J9: 838.66272 | K9: 838.66272 | L9: 838.66272 | M9: 838.66272 | N9: 838.66272 | O9: 838.66272 | Q9: 8386.6272 | R9: =C9 -> 8386.6272 | S9: =Q9-R9 -> 0
B10: ='RESUMO MODULO MINIMO'!$D$18 -> PAVIMENTAÇÃO | C10: 1 | F10: =$C$10/10 -> 0.1 | G10: 0.1 | H10: 0.1 | I10: 0.1 | J10: 0.1 | K10: 0.1 | L10: 0.1 | M10: 0.1 | N10: 0.1 | O10: 0.1 | Q10: 1
C11: =SUM('RESUMO MODULO MINIMO'!L19:L21) -> 760052.2566 | F11: =$C$11*F10 -> 76005.22566 | G11: =$C$11*G10 -> 76005.22566 | H11: 76005.22566 | I11: 76005.22566 | J11: 76005.22566 | K11: 76005.22566 | L11: 76005.22566 | M11: 76005.22566 | N11: 76005.22566 | O11: 76005.22566 | Q11: 760052.2566 | R11: =C11 -> 760052.2566 | S11: =Q11-R11 -> 0
B12: ='RESUMO MODULO MINIMO'!$D$22 -> SINALIZAÇÃO | C12: 1 | F12: =$C$12/10 -> 0.1 | G12: =(100%-$F$12)/9 -> 0.1 | H12: =(100%-$F$12)/9 -> 0.1 | I12: 0.1 | J12: 0.1 | K12: 0.1 | L12: 0.1 | M12: 0.1 | N12: 0.1 | O12: 0.1 | Q12: 1
C13: =SUM('RESUMO MODULO MINIMO'!L23:L24) -> 604.873344 | F13: =$C$13*F12 -> 60.4873344 | G13: 60.4873344 | H13: 60.4873344 | I13: 60.4873344 | J13: 60.4873344 | K13: 60.4873344 | L13: 60.4873344 | M13: 60.4873344 | N13: 60.4873344 | O13: 60.4873344 | Q13: 604.873344 | R13: =C13 -> 604.873344 | S13: 0
B14: ='RESUMO MODULO MINIMO'!$D$25 -> DRENAGEM | C14: 1 | F14: =$C$14/10 -> 0.1 | G14: =$C$14/10 -> 0.1 | H14: 0.1 | I14: 0.1 | J14: 0.1 | K14: 0.1 | L14: 0.1 | M14: 0.1 | N14: 0.1 | O14: 0.1 | Q14: =SUM(D14:O14) -> 1
C15: =SUM('RESUMO MODULO MINIMO'!L26) -> 61321.14 | F15: =$C$15*F14 -> 6132.114 | G15: =$C$15*G14 -> 6132.114 | H15: 6132.114 | I15: 6132.114 | J15: 6132.114 | K15: 6132.114 | L15: 6132.114 | M15: 6132.114 | N15: 6132.114 | O15: 6132.114 | Q15: 61321.14 | R15: =C15 -> 61321.14 | S15: 0
B16: ='RESUMO MODULO MINIMO'!$D$27 -> LIMPEZA GERAL | C16: 1 | F16: =100%/10 -> 0.1 | G16: =100%/10 -> 0.1 | H16: 0.1 | I16: 0.1 | J16: 0.1 | K16: 0.1 | L16: 0.1 | M16: 0.1 | N16: 0.1 | O16: 0.1 | Q16: =SUM(D16:O16) -> 1
C17: =SUM('RESUMO MODULO MINIMO'!L28) -> 7224.966 | F17: =$C$17*F16 -> 722.4966 | G17: 722.4966 | H17: 722.4966 | I17: 722.4966 | J17: 722.4966 | K17: 722.4966 | L17: 722.4966 | M17: 722.4966 | N17: 722.4966 | O17: 722.4966 | Q17: 7224.966 | R17: =C17 -> 7224.966 | S17: =Q17-R17 -> 0
B18: ='RESUMO MODULO MINIMO'!D29 -> SERVIÇOS COMPLEMENTARES | C18: 1 | F18: =100%/10 -> 0.1 | G18: 0.1 | H18: 0.1 | I18: 0.1 | J18: 0.1 | K18: 0.1 | L18: 0.1 | M18: 0.1 | N18: 0.1 | O18: 0.1 | Q18: =SUM(D18:O18) -> 1
C19: ='RESUMO MODULO MINIMO'!L30 -> 1713.1467 | F19: =$C$19*F18 -> 171.31467 | G19: =$C$19*G18 -> 171.31467 | H19: 171.31467 | I19: 171.31467 | J19: 171.31467 | K19: 171.31467 | L19: 171.31467 | M19: 171.31467 | N19: 171.31467 | O19: 171.31467 | Q19: 1713.1467 | R19: =C19 -> 1713.1467 | S19: =Q19-R19 -> 0
B20: ='RESUMO MODULO MINIMO'!$D$31 -> PROJETO EXECUTIVO | C20: 1 | D20: 0.5 | E20: 0.5 | Q20: =SUM(D20:O20) -> 1
C21: ='RESUMO MODULO MINIMO'!L32 -> 6827.613108 | D21: =$C$21*D20 -> 3413.806554 | E21: =$C$21*E20 -> 3413.806554 | Q21: 6827.613108 | R21: =C21 -> 6827.613108 | S21: =Q21-R21 -> 0
A23: Porcentagem | D23: =SUM(D7+D9+D11+D13+D15+D17+D19+D21)/$O$28 -> 0.004000918288 | E23: =SUM(E7+E9+E11+E13+E15+E17+E19+E21)/$O$28 -> 0.004760056757 | F23: 0.0991239025 | G23: 0.0991239025 | H23: 0.0991239025 | I23: 0.0991239025 | J23: 0.0991239025 | K23: 0.0991239025 | L23: 0.0991239025 | M23: 0.0991239025 | N23: 0.0991239025 | O23: 0.0991239025
A24: Custo | D24: =$O$28*D23 -> 3413.806554 | E24: =$O$28*E23 -> 4061.545822 | F24: =$O$28*F23 -> 84578.04025 | G24: 84578.04025 | H24: 84578.04025 | I24: 84578.04025 | J24: 84578.04025 | K24: 84578.04025 | L24: 84578.04025 | M24: 84578.04025 | N24: 84578.04025 | O24: 84578.04025
A25: Porcentagem Acumulado | D25: =D23 -> 0.004000918288 | E25: =D25+E23 -> 0.008760975045 | F25: =E25+F23 -> 0.1078848775 | G25: 0.20700878 | H25: 0.3061326825 | I25: 0.405256585 | J25: 0.5043804875 | K25: 0.60350439 | L25: 0.7026282925 | M25: 0.801752195 | N25: 0.9008760975 | O25: 1
A26: Custo Acumulado | D26: =D24 -> 3413.806554 | E26: =D26+E24 -> 7475.352376 | F26: 92053.39263 | G26: 176631.4329 | H26: 261209.4731 | I26: 345787.5134 | J26: 430365.5536 | K26: 514943.5939 | L26: 599521.6341 | M26: 684099.6744 | N26: 768677.7146 | O26: 853255.7549
D28: Total Geral | N28: R$ | O28: ='RESUMO MODULO MINIMO'!L33 -> 853255.7549

Sheet Projeto Executivo
A1: COMPOSIÇAO PREÇO PROJETO EXECUTIVO (POR KM)
A3: DISCRIMINAÇAO | F3: Pr. Unit. | G3: Pr. Total
A5: A· EOUIPE TECNICA | G5: =G6+G9 -> 2808.7
B6: A. 1 - Pessoal de Nível Superior | C6: Unidade | D6: Quantitativo | E6: Código SINAPI | G6: =G7+G8 -> 2266.2
B7: Engenheiro | C7: h | D7: 20 | E7: 34780 | F7: =VLOOKUP(E7,'SINAPI PARÁ SET 21'!A:E,5,FALSE) -> 105.21 | G7: =F7*D7 -> 2104.2
B8: Topógrafo | C8: h | D8: 10 | E8: 7592 | F8: =VLOOKUP(E8,'SINAPI PARÁ SET 21'!A:E,5,FALSE) -> 16.2 | G8: =F8*D8 -> 162
B9: A.2 - Pessoal de Nível Técnico e Aux. | G9: =G10+G11 -> 542.5
B10: Auxiliar de topógrafo | C10: h | D10: 10 | E10: 244 | F10: =VLOOKUP(E10,'SINAPI PARÁ SET 21'!A:E,5,FALSE) -> 6.59 | G10: =F10*D10 -> 65.9
B11: Cadista/calculista | C11: h | D11: 20 | E11: 2359 | F11: =VLOOKUP(E11,'SINAPI PARÁ SET 21'!A:E,5,FALSE) -> 23.83 | G11: =F11*D11 -> 476.6
A12: B - ENCARGOS SOCIAIS* (JÁ INCLUSOS NO SINAPI) | G12: =G13 -> 0
B13: Taxas 71,26 % do item "A" | G13: 0
A14: C - DESPESAS GERAIS | G14: =G15+G16+G17+G18 -> 459.321
B15: C.1 - MATERIAIS DE CONSUMO | C15: Estimativa % como referência de equipe técnica com encargos sociais | D15: 0.03 | F15: =G5+G13 -> 2808.7 | G15: =F15*D15 -> 84.261
B16: C.2 - VEÍCULOS | C16: H | D16: 8 | E16: 92144 | F16: =VLOOKUP(E16,'SINAPI PARÁ SET 21'!A:E,5,FALSE) -> 41.07 | G16: =F16*D16 -> 328.56
B17: C.3 - COMBUSTÍVEL | C17: L | D17: 2 | E17: 4221 | F17: =VLOOKUP(E17,'SINAPI PARÁ SET 21'!A:E,5,FALSE) -> 5.25 | G17: =F17*D17 -> 10.5
B18: C.3 - EQUIPAMENTOS, INSTALAÇÕES E MOBILIÁRIO | C18: H | D18: 16 | E18: 7247 | F18: =VLOOKUP(E18,'SINAPI PARÁ SET 21'!A:E,5,FALSE) -> 2.25 | G18: =F18*D18 -> 36
A19: D - ENSAIOS | G19: =G20 -> 1720.21
B20: D.1 - ENSAIOS | C20: Composição Ensaios | F20: =Ensaios!F20 -> 1720.21 | G20: =F20 -> 1720.21
A21: I - SOMA (A+B+C+D) | G21: =G5+G12+G14+G19 -> 4988.231
A22: II - CUSTOS ADMINISTRATIVOS (23,74 %) | D22: =[12]BDI!E25 -> 0.2257294717 | G22: =D22*G21 -> 1125.990749
A23: II - SOMA | G23: =SUM(G21:G22) -> 6114.221749
A24: VI - RELATÓRIOS | C24: Estimativa % como referência soma II | D24: 0.025 | F24: =G23 -> 6114.221749 | G24: =F24*D24 -> 152.8555437
A25: V - DESPESAS DIRETAS (3,74%) | C25: Percentual VI | D25: 0.0374 | F25: =D25*G24 -> 5.716797335 | G25: =F25 -> 5.716797335
A26: VI - REMUNERAÇAO DA EMPRESA
B27: Taxas 4,75% | D27: 0.0475 | F27: =D27*F25 -> 0.2715478734 | G27: =F27 -> 0.2715478734
A28: VII - CONTIGÊNCIAS | D28: 0.0577 | F28: =F24 -> 6114.221749 | G28: =F28*D28 -> 352.7905949
A29: VIII - SOMA | G29: =SUM(G24:G28) -> 511.6344838
A30: IX - CUSTOS ADMINISTRATIVOS (23,74 %) | D30: 0.2374 | G30: =D30*G29 -> 121.4620265
A31: III - SOMA | G31: =SUM(G29:G30) -> 633.0965103
A32: X - TOTAL | G32: =G31+G23 -> 6747.318259

Sheet SERVIÇOS PRELI
A4: ='RESUMO MODULO MINIMO'!A1 -> EXECUÇÃO DE SERVIÇOS DE IMPLANTAÇÃO DE PAVIMENTAÇÃO EM BLOCO DE CONCRETO INTERTRAVADO, EM VIAS URBANAS E RURAIS DE MUNÍCIPIOS DIVERSOS INSERIDOS NA ÁREA DE ATUAÇÃO DA CODEVASF, NO ESTADO DO PARÁ
G5: BDI %: | H5: =BDI!E25 -> 0.2158381752
F6: Encargos Sociais: | H6: Horista | I6: Mensalista
H7: ='ENC. SOCIAIS'!$E$51/100 -> 1.1632 | I7: ='ENC. SOCIAIS'!$F$51/100 -> 0.7126
A8: Anexo VI - Planilhas Orçamentárias
A10: ITEM | B10: CPUs | C10: Fonte | D10: Cód. | E10: DISCRIMINAÇÃO DOS SERVIÇOS | F10: UND | G10: QTDE. | H10: PREÇO UNITÁRIO (R$) | I10: TOTAL
A12: 1 | B12: IMPLANTAÇÃO DA OBRA
A13: 1.1 | B13: SERVIÇOS INICIAIS
A14: 1.1.1 | B14: CPU-02 | C14: CODEVASF | D14: 72840 | E14: MOBILIZAÇÃO E DESMOBILIZAÇÃO | F14: und | G14: 1 | H14: ='CPU CODEVASF'!H36 -> 1419.32 | I14: =ROUND(G14*H14,2) -> 1419.32
F15: ITEM 1: | H15: TOTAL | I15: =SUM(I14:I14) -> 1419.32
A17: 2 | B17: PLACA DE OBRA EM CHAPA DE ACO GALVANIZADO
A18: 2.1 | B18: CPU-01 | C18: CODEVASF | D18: 74209/1 | E18: PLACA DE OBRA EM CHAPA DE ACO GALVANIZADO | F18: und | G18: 1 | H18: ='CPU CODEVASF'!H24 -> 399.83 | I18: =ROUND(G18*H18,2) -> 399.83
F19: ITEM 2: | H19: TOTAL | I19: =SUM(I18:I18) -> 399.83
A21: 3 | B21: ADMINISTRAÇÃO DA OBRA
A22: 3.1 | B22: CPU-03 | C22: CODEVASF | D22: 2.1 | E22: ADMINISTRAÇÃO LOCAL | F22: MÊS | G22: 1 | H22: ='CPU CODEVASF'!H49 -> 4907.32 | I22: =ROUND(G22*H22,2) -> 4907.32
A23: 3.2 | B23: CPU-04 | C23: CODEVASF | D23: 2.2 | E23: CANTEIRO DE OBRAS E ALMOXARIFADO | F23: MÊS | G23: 1 | H23: ='CPU CODEVASF'!H58 -> 314.87 | I23: =ROUND(G23*H23,2) -> 314.87
F24: ITEM 3: | H24: TOTAL | I24: =SUM(I22:I23) -> 5222.19

Sheet BDI
A2: OBRA:
A3: LOCAL:
A4: DATA BASE:
A5: DETALHAMENTO DO BDI - SEM DESONERAÇÃO
A7: Item | B7: Descrição dos serviços | D7: Preço de Venda (%) | E7: Custo Direto (%)
A8: A | B8: ADMINISTRAÇÃO CENTRAL | C8: Váriável - f (CD) | D8: =E8/(1+$E$25) -> 0.04934867257 | E8: 0.06
A9: B | B9: CUSTOS FINANCEIROS | C9: 0,43% s/ PV - Lucro Operacional | D9: 0.0041 | E9: =D9*(1+$E$25) -> 0.004984936518
A10: C | B10: RISCOS | C10: 0,50% de PV | E10: =D10*(1+$E$25) -> 0
A11: D | B11: SEGUROS E GARANTIAS CONTRATUAIS | C11: 0,25% do PV | E11: =D11*(1+$E$25) -> 0
A12: SUBTOTAL | D12: =SUM(D8:D11) -> 0.05344867257 | E12: =SUM(E8:E11) -> 0.06498493652
A13: LUCRO | D13: % SOBRE PV | E13: % SOBRE CD
A14: E | B14: LUCRO OPERACIONAL | C14: Variável - f (CD) | D14: =E14/(1+$E$25) -> 0.05757345133 | E14: 0.07
A15: SUBTOTAL | D15: =SUM(D14) -> 0.05757345133 | E15: =SUM(E14) -> 0.07
A16: TAXAS E IMPOSTOS | D16: % SOBRE PV | E16: % SOBRE CD
A17: F | B17: PIS | C17: 0,65% de PV | D17: 0.0065 | E17: =D17*(1+$E$25) -> 0.007902948139
A18: G | B18: COFINS | C18: 3,00% de PV | D18: 0.03 | E18: =D18*(1+$E$25) -> 0.03647514526
A19: H | B19: ISSQN | C19: 3,00% de PV | D19: 0.03 | E19: =D19*(1+$E$25) -> 0.03647514526
A20: I | B20: Contribuição Previdenciaria | C20: 0,00% de PV | D20: 0 | E20: =D20*(1+$E$25) -> 0
A21: SUBTOTAL | D21: =SUM(D17:D20) -> 0.0665 | E21: =SUM(E17:E20) -> 0.08085323865
A22: BDI COM IMPOSTOS | D22: =D21+D15+D12 -> 0.1775221239 | E22: =(1+(E8+E14))/(1-(D9+D10+D11+D17+D18+D19+D20))-1 -> 0.2158381752
A23: CUSTO DIRETO - CD | D23: =D24-D22 -> 0.8224778761
D24: 1
A25: BDI | E25: =E22 -> 0.2158381752
A26: Observação: O percentual de ISSQN aqui utilizado consiste apenas em um referencial médio.
B27: O valor real do ISSQN a ser adotado deve ser aquele proveniente das alíquotas dos municípios situados na área de
B28: influência das obras.

Sheet ENC. SOCIAIS
A6: NOME DA CONCORRENTE:
A7: EDITAL:
A8: FOLHA:
A9: ='RESUMO MODULO MINIMO'!A1 -> EXECUÇÃO DE SERVIÇOS DE IMPLANTAÇÃO DE PAVIMENTAÇÃO EM BLOCO DE CONCRETO INTERTRAVADO, EM VIAS URBANAS E RURAIS DE MUNÍCIPIOS DIVERSOS INSERIDOS NA ÁREA DE ATUAÇÃO DA CODEVASF, NO ESTADO DO PARÁ
A11: DETALHAMENTO DOS ENCARGOS SOCIAIS (%)
A12: VIGÊNCIA A PARTIR DE 10/2020 | C12: COM DESONERAÇÃO | E12: SEM DESONERAÇÃO
C14: HORISTA | D14: MENSALISTA | E14: HORISTA | F14: MENSALISTA
A16: GRUPO A
A17: A1 | B17: INSS | C17: 0 | D17: 0 | E17: 20 | F17: 20
A18: A2 | B18: SESI | C18: 1.5 | D18: 1.5 | E18: 1.5 | F18: 1.5
A19: A3 | B19: SENAI | C19: 1 | D19: 1 | E19: 1 | F19: 1
A20: A4 | B20: INCRA | C20: 0.2 | D20: 0.2 | E20: 0.2 | F20: 0.2
A21: A5 | B21: SEBRAE | C21: 0.6 | D21: 0.6 | E21: 0.6 | F21: 0.6
A22: A6 | B22: Salário Educação | C22: 2.5 | D22: 2.5 | E22: 2.5 | F22: 2.5
A23: A7 | B23: Seguro Contra Acidentes de Trabalho | C23: 3 | D23: 3 | E23: 3 | F23: 3
A24: A8 | B24: FGTS | C24: 8 | D24: 8 | E24: 8 | F24: 8
A25: A9 | B25: SECONCI | C25: 1 | D25: 1 | E25: 0 | F25: 0
A26: A | B26: Total | C26: =SUM(C17:C25) -> 17.8 | D26: =SUM(D17:D25) -> 17.8 | E26: =SUM(E17:E25) -> 36.8 | F26: =SUM(F17:F25) -> 36.8
A27: GRUPO B
A28: B1 | B28: Repouso Semanal Remunerado | C28: 17.88 | D28: - | E28: 18.11 | F28: -
A29: B2 | B29: Feriados | C29: 3.94 | D29: - | E29: 4.15 | F29: -
A30: B3 | B30: Auxílio-enfermidade | C30: 0.91 | D30: 0.69 | E30: 0.89 | F30: 0.67
A31: B4 | B31: 13° salário | C31: 10.98 | D31: 8.33 | E31: 10.98 | F31: 8.33
A32: B5 | B32: Licença-paternidade | C32: 0.07 | D32: 0.06 | E32: 0.07 | F32: 0.06
A33: B6 | B33: Faltas Justificadas | C33: 0.73 | D33: 0.56 | E33: 0.73 | F33: 0.56
A34: B7 | B34: Dias de chuva | C34: 1.45 | D34: - | E34: 2.68 | F34: 0
A35: B8 | B35: Auxílio Acidente de Trabalho | C35: 0.11 | D35: 0.09 | E35: 0.11 | F35: 0.08
A36: B9 | B36: Férias Gozadas | C36: 11.35 | D36: 8.62 | E36: 9.27 | F36: 7.03
A37: B10 | B37: Salário Maternidade | C37: 0.03 | D37: 0.03 | E37: 0.03 | F37: 0.03
A38: B | B38: Total | C38: =SUM(C28:C37) -> 47.45 | D38: =SUM(D28:D37) -> 18.38 | E38: =SUM(E28:E37) -> 47.02 | F38: =SUM(F28:F37) -> 16.76
A39: GRUPO C
A40: C1 | B40: Aviso Prévio Indenizado | C40: 6.76 | D40: 5.14 | E40: 5.69 | F40: 4.32
A41: C2 | B41: Aviso Prévio Trabalhado | C41: 0.16 | D41: 0.12 | E41: 0.13 | F41: 0.1
A42: C3 | B42: Férias Indenizadas | C42: 2.28 | D42: 1.73 | E42: 4.47 | F42: 3.39
A43: C4 | B43: Depósito Rescisão Sem Justa Causa | C43: 3.81 | D43: 2.89 | E43: 3.93 | F43: 2.98
A44: C5 | B44: Indenização Adicional | C44: 0.57 | D44: 0.43 | E44: 0.48 | F44: 0.36
A45: C | B45: Total | C45: =SUM(C40:C44) -> 13.58 | D45: =SUM(D40:D44) -> 10.31 | E45: =SUM(E40:E44) -> 14.7 | F45: =SUM(F40:F44) -> 11.15
A46: GRUPO D
A47: D1 | B47: Reincidência de A sobre B | C47: 8.45 | D47: 3.27 | E47: 17.3 | F47: 6.17
A48: D2 | B48: Reincidência de Grupo A sobre Aviso Prévio Trabalhado e Reincidência do FGTS sobre Aviso Prévio Indenizado | C48: 0.57 | D48: 0.43 | E48: 0.5 | F48: 0.38
A49: D | B49: Total | C49: =SUM(C47:C48) -> 9.02 | D49: =SUM(D47:D48) -> 3.7 | E49: =SUM(E47:E48) -> 17.8 | F49: =SUM(F47:F48) -> 6.55
A51: T O T A L (%) | C51: =C26+C38+C45+C49 -> 87.85 | D51: =D26+D38+D45+D49 -> 50.19 | E51: =E26+E38+E45+E49 -> 116.32 | F51: =F26+F38+F45+F49 -> 71.26

Sheet CPU CODEVASF
A4: ='[11]RESUMO MODULO MINIMO'!A1 -> EXECUÇÃO DE SERVIÇOS DE IMPLANTAÇÃO DE PAVIMENTAÇÃO EM BLOCO DE CONCRETO INTERTRAVADO, EM VIAS URBANAS E RURAIS DE MUNÍCIPIOS DIVERSOS INSERIDOS NA ÁREA DE ATUAÇÃO DA CODEVASF, NO ESTADO DO CEARÁ
F5: BDI %: | G5: =[11]BDI!E25 -> 0.2257294717
E6: Encargos Sociais: | G6: Horista | H6: Mensalista
G7: ='[11]ENC. SOCIAIS'!E51/100 -> 1.1276 | H7: ='[11]ENC. SOCIAIS'!F51/100 -> 0.7107
A8: COMPOSIÇÕES DE CUSTO UNITARIO
A9: CPU-01 | B9: CODEVASF | C9: 74209/1 | D9: PLACA DE OBRA EM CHAPA DE ACO GALVANIZADO | E9: M2 | F9: COEF. | G9: PRECO UNITÁRIO (R$) | H9: TOTAL (R$)
A11: INS. SINAPI | B11: SINAPI | C11: 5075 | D11: =IF(B11="SINAPI",VLOOKUP(C11,'SINAPI PARÁ SET 21'!A:E,2,FALSE),"") -> PREGO DE ACO POLIDO COM CABECA 18 X 30 (2 3/4 X 10) | E11: kg | F11: 0.11 | G11: =IF(B11="SINAPI",VLOOKUP(C11,'SINAPI PARÁ SET 21'!A:E,5,FALSE),"") -> 18.82 | H11: =ROUND(F11*G11,2) -> 2.07
A12: INS. SINAPI | B12: SINAPI | C12: 4491 | D12: =IF(B12="SINAPI",VLOOKUP(C12,'SINAPI PARÁ SET 21'!A:E,2,FALSE),"") -> PONTALETE *7,5 X 7,5* CM EM PINUS, MISTA OU EQUIVALENTE DA REGIAO - BRUTA | E12: m | F12: 4 | G12: =IF(B12="SINAPI",VLOOKUP(C12,'SINAPI PARÁ SET 21'!A:E,5,FALSE),"") -> 8.92 | H12: 35.68
A13: INS. SINAPI | B13: SINAPI | C13: 4417 | D13: =IF(B13="SINAPI",VLOOKUP(C13,'SINAPI PARÁ SET 21'!A:E,2,FALSE),"") -> SARRAFO NAO APARELHADO *2,5 X 7* CM, EM MACARANDUBA, ANGELIM OU EQUIVALENTE DA REGIAO - BRUTA | E13: m | F13: 1 | G13: =IF(B13="SINAPI",VLOOKUP(C13,'SINAPI PARÁ SET 21'!A:E,5,FALSE),"") -> 5.82 | H13: 5.82
A14: INS. SINAPI | B14: SINAPI | C14: 4813 | D14: =IF(B14="SINAPI",VLOOKUP(C14,'SINAPI PARÁ SET 21'!A:E,2,FALSE),"") -> PLACA DE OBRA (PARA CONSTRUCAO CIVIL) EM CHAPA GALVANIZADA *N. 22*, ADESIVADA, DE *2,0 X 1,125* M (SEM POSTES PARA FIXACAO) | E14: m² | F14: 1 | G14: =IF(B14="SINAPI",VLOOKUP(C14,'SINAPI PARÁ SET 21'!A:E,5,FALSE),"") -> 225 | H14: 225
A15: INS. SINAPI | B15: SINAPI | C15: 370 | D15: =IF(B15="SINAPI",VLOOKUP(C15,'SINAPI PARÁ SET 21'!A:E,2,FALSE),"") -> AREIA MEDIA - POSTO JAZIDA/FORNECEDOR (RETIRADO NA JAZIDA, SEM TRANSPORTE) | E15: m³ | F15: 0.0049 | G15: =IF(B15="SINAPI",VLOOKUP(C15,'SINAPI PARÁ SET 21'!A:E,5,FALSE),"") -> 60 | H15: 0.29
A16: INS. SINAPI | B16: SINAPI | C16: 1379 | D16: =IF(B16="SINAPI",VLOOKUP(C16,'SINAPI PARÁ SET 21'!A:E,2,FALSE),"") -> CIMENTO PORTLAND COMPOSTO CP II-32 | E16: kg | F16: 1.5 | G16: =IF(B16="SINAPI",VLOOKUP(C16,'SINAPI PARÁ SET 21'!A:E,5,FALSE),"") -> 0.9 | H16: 1.35
A17: INS. SINAPI | B17: SINAPI | C17: 4718 | D17: =IF(B17="SINAPI",VLOOKUP(C17,'SINAPI PARÁ SET 21'!A:E,2,FALSE),"") -> PEDRA BRITADA N. 2 (19 A 38 MM) POSTO PEDREIRA/FORNECEDOR, SEM FRETE | E17: m³ | F17: 0.0098 | G17: =IF(B17="SINAPI",VLOOKUP(C17,'SINAPI PARÁ SET 21'!A:E,5,FALSE),"") -> 100 | H17: 0.98
A18: COMP. SINAPI | B18: SINAPI | C18: 87445 | D18: =IF(B18="SINAPI",VLOOKUP(C18,'SINAPI PARÁ SET 21'!A:E,2,FALSE),"") -> BETONEIRA CAPACIDADE NOMINAL 400 L, CAPACIDADE DE MISTURA 310 L, MOTOR A DIESEL POTÊNCIA 5,0 HP, SEM CARREGADOR - CHP DIURNO. AF_06/2014 | E18: h | F18: 0.0065 | G18: =IF(B18="SINAPI",VLOOKUP(C18,'SINAPI PARÁ SET 21'!A:E,5,FALSE),"") -> 4.6 | H18: =ROUND(F18*G18,2) -> 0.03
A19: COMP. SINAPI | B19: SINAPI | C19: 88262 | D19: =IF(B19="SINAPI",VLOOKUP(C19,'SINAPI PARÁ SET 21'!A:E,2,FALSE),"") -> CARPINTEIRO DE FORMAS COM ENCARGOS COMPLEMENTARES | E19: h | F19: 1 | G19: =IF(B19="SINAPI",VLOOKUP(C19,'SINAPI PARÁ SET 21'!A:E,5,FALSE),"") -> 20.8 | H19: =ROUND(F19*G19,2) -> 20.8
A20: COMP. SINAPI | B20: SINAPI | C20: 88316 | D20: =IF(B20="SINAPI",VLOOKUP(C20,'SINAPI PARÁ SET 21'!A:E,2,FALSE),"") -> SERVENTE COM ENCARGOS COMPLEMENTARES | E20: h | F20: 2.06 | G20: =IF(B20="SINAPI",VLOOKUP(C20,'SINAPI PARÁ SET 21'!A:E,5,FALSE),"") -> 16.59 | H20: =ROUND(F20*G20,2) -> 34.18
E21: Sub total: | H21: =SUM(H11:H20) -> 326.2
F22: BDI | G22: =G5 -> 0.2257294717 | H22: =ROUND(H21*G22,2) -> 73.63
G23: Total Serviços: | H23: =H21+H22 -> 399.83
E24: =A9 -> CPU-01 | F24: PREÇO UNITÁRIO TOTAL: | H24: =H23 -> 399.83
A26: CPU-02 | B26: CODEVASF | C26: Propria | D26: MOBILIZAÇÃO E DESMOBILIZAÇÃO | E26: T X KM | F26: COEF. | G26: PRECO UNITÁRIO (R$) | H26: TOTAL (R$)
A28: COMP. SINAPI | B28: SINAPI | C28: 73340 | D28: =IF(B28="SINAPI",VLOOKUP(C28,'SINAPI PARÁ SET 21'!A:E,2,FALSE),"") -> CAMINHÃO TOCO, PBT 14.300 KG, CARGA ÚTIL MÁX. 9.710 KG, DIST. ENTRE EIXOS 3,56 M, POTÊNCIA 185 CV, INCLUSIVE CARROCERIA FIXA ABERTA DE MADEIRA P/ TRANSPORTE GERAL DE CARGA SECA, DIMEN. APROX. 2,50 X 6,50 X 0,50 M - MATERIAIS NA OPERAÇÃO. AF_06/2014 | E28: H | F28: 2 | G28: =IF(B28="SINAPI",VLOOKUP(C28,'SINAPI PARÁ SET 21'!A:E,5,FALSE),"") -> 71.5 | H28: =ROUND(F28*G28,2) -> 143
A29: COMP. SINAPI | B29: SINAPI | C29: 67826 | D29: =IF(B29="SINAPI",VLOOKUP(C29,'SINAPI PARÁ SET 21'!A:E,2,FALSE),"") -> CAMINHÃO BASCULANTE 6 M3 TOCO, PESO BRUTO TOTAL 16.000 KG, CARGA ÚTIL MÁXIMA 11.130 KG, DISTÂNCIA ENTRE EIXOS 5,36 M, POTÊNCIA 185 CV, INCLUSIVE CAÇAMBA METÁLICA - CHP DIURNO. AF_06/2014 | E29: CHP | F29: 2 | G29: =IF(B29="SINAPI",VLOOKUP(C29,'SINAPI PARÁ SET 21'!A:E,5,FALSE),"") -> 154.84 | H29: =ROUND(F29*G29,2) -> 309.68
A30: COMP. SINAPI | B30: SINAPI | C30: 6259 | D30: =IF(B30="SINAPI",VLOOKUP(C30,'SINAPI PARÁ SET 21'!A:E,2,FALSE),"") -> CAMINHÃO PIPA 6.000 L, PESO BRUTO TOTAL 13.000 KG, DISTÂNCIA ENTRE EIXOS 4,80 M, POTÊNCIA 189 CV INCLUSIVE TANQUE DE AÇO PARA TRANSPORTE DE ÁGUA, CAPACIDADE 6 M3 - CHP DIURNO. AF_06/2014 | E30: CHP | F30: 2 | G30: =IF(B30="SINAPI",VLOOKUP(C30,'SINAPI PARÁ SET 21'!A:E,5,FALSE),"") -> 211.18 | H30: =ROUND(F30*G30,2) -> 422.36
A31: COMP. SICRO | B31: SICRO | C31: 5914640 | D31: TRANSPORTE COM CAVALO MECÂNICO COM SEMIRREBOQUE COM CAPACIDADE DE 30 T - RODOVIA PAVIMENTADA | E31: tkm | F31: ='[11]Mob e Desmob'!E31 -> 678.7 | G31: 0.38 | H31: =ROUND(F31*G31,2) -> 257.91
A32: INSUMO | B32: ORSE | C32: 5896 | D32: VEÍCULO TIPO SEDAN OU PICK-UP CAPACIDADE 0,6 TON | E32: h | F32: 3 | G32: 8.33 | H32: =ROUND(F32*G32,2) -> 24.99
E33: Sub total: | H33: =SUM(H28:H32) -> 1157.94
F34: BDI | G34: =G5 -> 0.2257294717 | H34: =ROUND(H33*G34,2) -> 261.38
G35: Total Serviços: | H35: =H33+H34 -> 1419.32
E36: =A26 -> CPU-02 | F36: PREÇO UNITÁRIO TOTAL: | H36: =H35 -> 1419.32
A38: CPU-03 | B38: CODEVASF | D38: ADMINISTRAÇÃO LOCAL | E38: % | F38: COEF. | G38: PRECO UNITÁRIO (R$) | H38: TOTAL (R$)
A40: COMP. SINAPI | B40: SINAPI | C40: 90777 | D40: =IF(B40="SINAPI",VLOOKUP(C40,'SINAPI PARÁ SET 21'!A:E,2,FALSE),"") -> ENGENHEIRO CIVIL DE OBRA JUNIOR COM ENCARGOS COMPLEMENTARES | E40: H | F40: 20 | G40: =IF(B40="SINAPI",VLOOKUP(C40,'SINAPI PARÁ SET 21'!A:E,5,FALSE),"") -> 94.06 | H40: =ROUND(F40*G40,2) -> 1881.2
A41: COMP. SINAPI | B41: SINAPI | C41: 90780 | D41: =IF(B41="SINAPI",VLOOKUP(C41,'SINAPI PARÁ SET 21'!A:E,2,FALSE),"") -> MESTRE DE OBRAS COM ENCARGOS COMPLEMENTARES | E41: H | F41: 40 | G41: =IF(B41="SINAPI",VLOOKUP(C41,'SINAPI PARÁ SET 21'!A:E,5,FALSE),"") -> 27.83 | H41: 1113.2
A42: COMP. SINAPI | B42: SINAPI | C42: 90772 | D42: =IF(B42="SINAPI",VLOOKUP(C42,'SINAPI PARÁ SET 21'!A:E,2,FALSE),"") -> AUXILIAR DE ESCRITORIO COM ENCARGOS COMPLEMENTARES | E42: H | F42: 40 | G42: =IF(B42="SINAPI",VLOOKUP(C42,'SINAPI PARÁ SET 21'!A:E,5,FALSE),"") -> 17.5 | H42: 700
A43: INS. SINAPI | B43: SINAPI | C43: 14250 | D43: =IF(B43="SINAPI",VLOOKUP(C43,'SINAPI PARÁ SET 21'!A:E,2,FALSE),"") -> ENERGIA ELETRICA COMERCIAL, BAIXA TENSAO, RELATIVA AO CONSUMO DE ATE 100 KWH, INCLUINDO ICMS, PIS/PASEP E COFINS | E43: KW/H | F43: 100 | G43: =IF(B43="SINAPI",VLOOKUP(C43,'SINAPI PARÁ SET 21'!A:E,5,FALSE),"") -> 1.12 | H43: 112
A44: INS. SINAPI | B44: SINAPI | C44: 14583 | D44: =IF(B44="SINAPI",VLOOKUP(C44,'SINAPI PARÁ SET 21'!A:E,2,FALSE),"") -> TARIFA "A" ENTRE 0 E 20M3 FORNECIMENTO D'AGUA | E44: M3 | F44: 1 | G44: =IF(B44="SINAPI",VLOOKUP(C44,'SINAPI PARÁ SET 21'!A:E,5,FALSE),"") -> 21.19 | H44: 21.19
A45: INS. ORSE | B45: ORSE | C45: 4415 | D45: VEÍCULO LEVE - VOLKSWAGEN:GOL 1000 - AUTOMÓVEL ATÉ 100 HP | E45: H | F45: 40 | G45: 4.4 | H45: 176
E46: ADM. LOCAL : | H46: =SUM(H40:H45) -> 4003.59
E47: Total para 6 meses:
E48: =G5 -> 0.2257294717 | H48: =ROUND(E48*H46,2) -> 903.73
E49: =A38 -> CPU-03 | F49: PREÇO TOTAL: | H49: =H46+H48 -> 4907.32
A51: CPU-04 | B51: CODEVASF | D51: CANTEIRO DE OBRAS E ALMOXARIFADO | E51: MÊS | F51: COEF. | G51: PRECO UNITÁRIO (R$) | H51: TOTAL (R$)
A53: INS. SINAPI | B53: SINAPI | C53: 10775 | D53: =IF(B53="SINAPI",VLOOKUP(C53,'SINAPI PARÁ SET 21'!A:E,2,FALSE),"") -> LOCACAO DE CONTAINER 2,30 X 6,00 M, ALT. 2,50 M, COM 1 SANITARIO, PARA ESCRITORIO, COMPLETO, SEM DIVISORIAS INTERNAS | E53: mês | F53: 0.2 | G53: =IF(B53="SINAPI",VLOOKUP(C53,'SINAPI PARÁ SET 21'!A:E,5,FALSE),"") -> 630 | H53: =ROUND(F53*G53,2) -> 126
A54: INS. ORSE | B54: ORSE | C54: 4299 | D54: ALUGUEL DE CONTAINER - ALMOXARIFADO SEM BANHEIRO - 6,00 X 2,40M | E54: mês | F54: 0.2 | G54: 654.42 | H54: =ROUND(F54*G54,2) -> 130.88
E55: Sub total: | H55: =SUM(H53:H54) -> 256.88
F56: BDI | G56: =G5 -> 0.2257294717 | H56: =ROUND(H55*G56,2) -> 57.99
G57: Total Serviços: | H57: =H55+H56 -> 314.87
E58: =A51 -> CPU-04 | F58: PREÇO UNITÁRIO TOTAL: | H58: =H57 -> 314.87
A60: CPU-11 | B60: CODEVASF | D60: LIMPEZA GERAL | E60: UNID | F60: COEF. | G60: PRECO UNITÁRIO (R$) | H60: TOTAL (R$)
A62: COMP. SINAPI | B62: SINAPI | C62: 88316 | D62: =IF(B62="SINAPI",VLOOKUP(C62,'SINAPI PARÁ SET 21'!A:E,2,FALSE),"") -> SERVENTE COM ENCARGOS COMPLEMENTARES | E62: H | F62: 0.05 | G62: =IF(B62="SINAPI",VLOOKUP(C62,'SINAPI PARÁ SET 21'!A:E,5,FALSE),"") -> 16.59 | H62: =ROUND(F62*G62,2) -> 0.83
E63: Sub total: | H63: =SUM(H62:H62) -> 0.83
F64: BDI | G64: =G5 -> 0.2257294717 | H64: =ROUND(H63*G64,2) -> 0.19
G65: Total Serviços: | H65: =H63+H64 -> 1.02
E66: =A60 -> CPU-11 | F66: PREÇO UNITÁRIO TOTAL: | H66: =H65 -> 1.02
A67: CPU-12 | B67: CODEVASF | D67: Correção de vazamentos no ramal na rua sem pavimento com fornecimento do material hidráulico | E67: UNID | F67: COEF. | G67: PRECO UNITÁRIO (R$) | H67: TOTAL (R$)
A69: COMP. SINAPI | B69: SINAPI | C69: 88316 | D69: =IF(B69="SINAPI",VLOOKUP(C69,'SINAPI PARÁ SET 21'!A:E,2,FALSE),"") -> SERVENTE COM ENCARGOS COMPLEMENTARES | E69: H | F69: 0.2 | G69: =IF(B69="SINAPI",VLOOKUP(C69,'SINAPI PARÁ SET 21'!A:E,5,FALSE),"") -> 16.59 | H69: =ROUND(F69*G69,2) -> 3.32
A70: COMP. SINAPI | B70: SINAPI | C70: 88267 | D70: =IF(B70="SINAPI",VLOOKUP(C70,'SINAPI PARÁ SET 21'!A:E,2,FALSE),"") -> ENCANADOR OU BOMBEIRO HIDRÁULICO COM ENCARGOS COMPLEMENTARES | E70: H | F70: 0.1 | G70: =IF(B70="SINAPI",VLOOKUP(C70,'SINAPI PARÁ SET 21'!A:E,5,FALSE),"") -> 20.52 | H70: =ROUND(F70*G70,2) -> 2.05
A71: Insumo | B71: SINAPI | C71: 9867 | D71: =IF(B71="SINAPI",VLOOKUP(C71,'SINAPI PARÁ SET 21'!A:E,2,FALSE),"") -> TUBO PVC, SOLDAVEL, DN 20 MM, AGUA FRIA (NBR-5648) | E71: m | F71: 1 | G71: =IF(B71="SINAPI",VLOOKUP(C71,'SINAPI PARÁ SET 21'!A:E,5,FALSE),"") -> 3.25 | H71: =ROUND(F71*G71,2) -> 3.25
A72: Insumo | B72: ORSE | C72: 10585 | D72: Arco de serra | E72: un | F72: 0.1 | G72: 21.25 | H72: =ROUND(F72*G72,2) -> 2.13
A73: Insumo | B73: SINAPI | C73: 3859 | D73: =IF(B73="SINAPI",VLOOKUP(C73,'SINAPI PARÁ SET 21'!A:E,2,FALSE),"") -> LUVA SOLDAVEL COM ROSCA, PVC, 20 MM X 1/2", PARA AGUA FRIA PREDIAL | E73: un | F73: 2 | G73: =IF(B73="SINAPI",VLOOKUP(C73,'SINAPI PARÁ SET 21'!A:E,5,FALSE),"") -> 1.53 | H73: =ROUND(F73*G73,2) -> 3.06
E74: Sub total: | H74: =SUM(H69:H73) -> 13.81
F75: BDI | G75: =G5 -> 0.2257294717 | H75: =ROUND(H74*G75,2) -> 3.12
G76: Total Serviços: | H76: =H74+H75 -> 16.93
E77: =A67 -> CPU-12 | F77: PREÇO UNITÁRIO TOTAL: | H77: =H76 -> 16.93
A79: CPU-13 | B79: CODEVASF | D79: SERVIÇOS TOPOGRÁFICOS PARA PAVIMENTAÇÃO, INCLUSIVE NOTAS DE SERVIÇOS, ACOMPANHAMENTO E GREIDE | E79: UNID | F79: COEF. | G79: PRECO UNITÁRIO (R$) | H79: TOTAL (R$)
A81: Insumo | B81: SINAPI | C81: 20206 | D81: =IF(B81="SINAPI",VLOOKUP(C81,'SINAPI PARÁ SET 21'!A:E,2,FALSE),"") -> SARRAFO APARELHADO *2 X 10* CM, EM MACARANDUBA, ANGELIM OU EQUIVALENTE DA REGIAO | E81: m | F81: 0.002886 | G81: =IF(B81="SINAPI",VLOOKUP(C81,'SINAPI PARÁ SET 21'!A:E,5,FALSE),"") -> 7.36 | H81: =ROUND(F81*G81,2) -> 0.02
A82: Composição | B82: SINAPI | C82: 88253 | D82: =IF(B82="SINAPI",VLOOKUP(C82,'SINAPI PARÁ SET 21'!A:E,2,FALSE),"") -> AUXILIAR DE TOPÓGRAFO COM ENCARGOS COMPLEMENTARES | E82: h | F82: 0.0025 | G82: =IF(B82="SINAPI",VLOOKUP(C82,'SINAPI PARÁ SET 21'!A:E,5,FALSE),"") -> 7.81 | H82: 0.02
A83: Composição | B83: SINAPI | C83: 88288 | D83: =IF(B83="SINAPI",VLOOKUP(C83,'SINAPI PARÁ SET 21'!A:E,2,FALSE),"") -> NIVELADOR COM ENCARGOS COMPLEMENTARES | E83: h | F83: 0.0025 | G83: =IF(B83="SINAPI",VLOOKUP(C83,'SINAPI PARÁ SET 21'!A:E,5,FALSE),"") -> 9.55 | H83: 0.02
A84: Composição | B84: SINAPI | C84: 88316 | D84: =IF(B84="SINAPI",VLOOKUP(C84,'SINAPI PARÁ SET 21'!A:E,2,FALSE),"") -> SERVENTE COM ENCARGOS COMPLEMENTARES | E84: h | F84: 0.0075 | G84: =IF(B84="SINAPI",VLOOKUP(C84,'SINAPI PARÁ SET 21'!A:E,5,FALSE),"") -> 16.59 | H84: 0.12
A85: Composição | B85: SINAPI | C85: 88597 | D85: =IF(B85="SINAPI",VLOOKUP(C85,'SINAPI PARÁ SET 21'!A:E,2,FALSE),"") -> DESENHISTA DETALHISTA COM ENCARGOS COMPLEMENTARES | E85: h | F85: 0.002 | G85: =IF(B85="SINAPI",VLOOKUP(C85,'SINAPI PARÁ SET 21'!A:E,5,FALSE),"") -> 28.29 | H85: 0.06
A86: Composição | B86: SINAPI | C86: 92145 | D86: =IF(B86="SINAPI",VLOOKUP(C86,'SINAPI PARÁ SET 21'!A:E,2,FALSE),"") -> CAMINHONETE CABINE SIMPLES COM MOTOR 1.6 FLEX, CÂMBIO MANUAL, POTÊNCIA 101/104 CV, 2 PORTAS - CHP DIURNO. AF_11/2015 | E86: chp | F86: 0.001 | G86: =IF(B86="SINAPI",VLOOKUP(C86,'SINAPI PARÁ SET 21'!A:E,5,FALSE),"") -> 66.86 | H86: 0.07
E87: Sub total: | H87: =SUM(H81:H86) -> 0.31
F88: BDI | G88: =G5 -> 0.2257294717 | H88: =ROUND(H87*G88,2) -> 0.07
G89: Total Serviços: | H89: =H87+H88 -> 0.38
E90: =A79 -> CPU-13 | F90: PREÇO UNITÁRIO TOTAL: | H90: =H89 -> 0.38

Sheet CPU SINAPI
A1: SINAPI - SISTEMA NACIONAL DE PESQUISA DE CUSTOS E ÍNDICES DA CONSTRUÇÃO CIVIL | F1: =CPU_SICRO!#REF! -> 
A2: PCI.818.01 - COMPOSIÇÕES ATIVAS ANALÍTICAS COM CUSTO | C2: ABRANGENCIA: NACIONAL DATA DE PREÇO : 9/2021 DATA REFERENCIA TECNICA: 14/10/2021
A3: * Composições constantes nos Relatórios publicados de Composições Analíticas para as 27 Unidades da Federação
A4: MACROCLASSE.CLASSE.GRUPO | B4: CÓDIGOS | C4: DESCRIÇÃO | D4: UNIDADE | E4: COEFICIENTE | F4: CADERNO TÉCNICO | G4: PREÇO UNITÁRIO
A5: 03.PAVI.INTE.004/001 | B5: 92394 | C5: EXECUÇÃO DE PAVIMENTO EM PISO INTERTRAVADO, COM BLOCO SEXTAVADO DE 25 X 25 CM, ESPESSURA 8 CM. AF_12/2015 | D5: M2 | F5: Pavimento Intertravado | G5: =G17 -> 79.43
A6: INSUMO | B6: 370 | C6: AREIA MEDIA - POSTO JAZIDA/FORNECEDOR (RETIRADO NA JAZIDA, SEM TRANSPORTE) | D6: M3 | E6: 0,0568000 | F6: =VLOOKUP(B6,'SINAPI PARÁ SET 21'!A:E,5,FALSE) -> 60 | G6: 3.4
A7: INSUMO | B7: 712 | C7: BLOQUETE/PISO INTERTRAVADO DE CONCRETO - MODELO SEXTAVADO / HEXAGONAL, 25 CM X 25 CM, E = 8 CM, RESISTENCIA DE 35 MPA (NBR 9781), COR NATURAL | D7: M2 | E7: 1,0174000 | F7: =VLOOKUP(B7,'SINAPI PARÁ SET 21'!A:E,5,FALSE) -> 52.97 | G7: 53.89
A8: INSUMO | B8: 4741 | C8: PO DE PEDRA (POSTO PEDREIRA/FORNECEDOR, SEM FRETE) | D8: M3 | E8: 0,0064000 | F8: =VLOOKUP(B8,'SINAPI PARÁ SET 21'!A:E,5,FALSE) -> 93.96 | G8: 0.6
A9: COMPOSICAO | B9: 88260 | C9: CALCETEIRO COM ENCARGOS COMPLEMENTARES | D9: H | E9: 0,1853000 | F9: =VLOOKUP(B9,'SINAPI PARÁ SET 21'!A:E,5,FALSE) -> 21.16 | G9: 3.92
A10: COMPOSICAO | B10: 88316 | C10: SERVENTE COM ENCARGOS COMPLEMENTARES | D10: H | E10: 0,1853000 | F10: =VLOOKUP(B10,'SINAPI PARÁ SET 21'!A:E,5,FALSE) -> 16.59 | G10: 3.07
A11: COMPOSICAO | B11: 91277 | C11: PLACA VIBRATÓRIA REVERSÍVEL COM MOTOR 4 TEMPOS A GASOLINA, FORÇA CENTRÍFUGA DE 25 KN (2500 KGF), POTÊNCIA 5,5 CV - CHP DIURNO. AF_08/2015 | D11: CHP | E11: 0,0055000 | F11: =VLOOKUP(B11,'SINAPI PARÁ SET 21'!A:E,5,FALSE) -> 9.85 | G11: 0.05
A12: COMPOSICAO | B12: 91278 | C12: PLACA VIBRATÓRIA REVERSÍVEL COM MOTOR 4 TEMPOS A GASOLINA, FORÇA CENTRÍFUGA DE 25 KN (2500 KGF), POTÊNCIA 5,5 CV - CHI DIURNO. AF_08/2015 | D12: CHI | E12: 0,0872000 | F12: =VLOOKUP(B12,'SINAPI PARÁ SET 21'!A:E,5,FALSE) -> 0.54 | G12: 0.04
A13: COMPOSICAO | B13: 91283 | C13: CORTADORA DE PISO COM MOTOR 4 TEMPOS A GASOLINA, POTÊNCIA DE 13 HP, COM DISCO DE CORTE DIAMANTADO SEGMENTADO PARA CONCRETO, DIÂMETRO DE 350 MM, FURO DE 1" (14 X 1") - CHP DIURNO. AF_08/2015 | D13: CHP | E13: 0,0135000 | F13: =VLOOKUP(B13,'SINAPI PARÁ SET 21'!A:E,5,FALSE) -> 22.69 | G13: 0.3
A14: COMPOSICAO | B14: 91285 | C14: CORTADORA DE PISO COM MOTOR 4 TEMPOS A GASOLINA, POTÊNCIA DE 13 HP, COM DISCO DE CORTE DIAMANTADO SEGMENTADO PARA CONCRETO, DIÂMETRO DE 350 MM, FURO DE 1" (14 X 1") - CHI DIURNO. AF_08/2015 | D14: CHI | E14: 0,0792000 | F14: =VLOOKUP(B14,'SINAPI PARÁ SET 21'!A:E,5,FALSE) -> 0.87 | G14: 0.06
D15: Sub total: | G15: =SUM(G6:G14) -> 65.33
D16: BDI | F16: =BDI!E25 -> 0.2158381752 | G16: =ROUND(G15*F16,2) -> 14.1
D17: Total Serviços: | G17: =G15+G16 -> 79.43

Sheet CPU_SICRO
A2: CGCIT | I2: DNIT
A3: SISTEMA DE CUSTOS REFERENCIAIS DE OBRAS - SICRO
A4: Custo Unitário de Referência | G4: Produção da equipe | H4: 113.18 | I4: m³
A5: 4011276 | B5: Base ou sub-base de brita graduada com brita comercial | H5: Valores em reais (R$)
A6: A - EQUIPAMENTOS | C6: Quantidade | D6: Utilização | F6: Custo Horário | I6: Custo
D7: Operativa | E7: Improdutiva | F7: Produtivo | G7: Improdutivo | I7: Horário Total
A8: E9571 | B8: Caminhão tanque com capacidade de 10.000 l - 188 kW | C8: 1 | D8: 0.34 | E8: 0.66 | F8: 233.4681 | G8: 59.8757 | I8: =ROUND((C8*(D8*F8))+(C8*(E8*G8)),4) -> 118.8971
A9: E9514 | B9: Distribuidor de agregados autopropelido - 130 kW | C9: 1 | D9: 1 | E9: 0 | F9: 205.5597 | G9: 75.266 | I9: 205.5597
A10: E9762 | B10: Rolo compactador de pneus autopropelido de 27 t - 85 kW | C10: 1 | D10: 0.65 | E10: 0.35 | F10: 157.3 | G10: 74.5519 | I10: 128.3382
A11: E9530 | B11: Rolo compactador liso autopropelido vibratório de 11 t - 97 kW | C11: 1 | D11: 0.52 | E11: 0.48 | F11: 153.6771 | G11: 63.3333 | I11: 110.3121
G12: Custo horário total de equipamentos | I12: =SUM(I8:I11) -> 563.1071
A13: B - MÃO DE OBRA | C13: Quantidade | D13: Unidade | E13: Custo Horário | G13: Custo Horário Total
A14: P9824 | B14: Servente | C14: 1 | D14: h | E14: 16.5276 | I14: =ROUND(C14*E14,4) -> 16.5276
C15: Custo horário total de mão de obra | H15: =SUM(I14) -> 16.5276
C16: Custo horário total de execução | I16: =SUM(H15,I12) -> 579.6347
C17: Custo unitário de execução | I17: =I16/H4 -> 5.121352712
G18: Custo do FIC | H18: 0.01563 | I18: =I17*H18 -> 0.0800467429
G19: Custo do FIT | I19: -
A20: C - MATERIAL | C20: Quantidade | D20: Unidade | E20: Preço Unitário | G20: Custo Unitário
C21: Custo unitário total de material
A22: D - ATIVIDADES AUXILIARES | C22: Quantidade | D22: Unidade | E22: Custo Unitário | G22: Custo Unitário
A23: 6416040 | B23: Usinagem de brita graduada com brita comercial em usina de 300 t/h | C23: 1 | D23: m³ | F23: 126.26 | I23: =ROUND(C23*F23,4) -> 126.26
C24: Custo total de atividades auxiliares | I24: =SUM(I23) -> 126.26
G25: Subtotal | I25: =SUM(I24,I17,I18,I19) -> 131.4613995
A26: E - TEMPO FIXO | C26: Código | D26: Quantidade | E26: Unidade | F26: Custo Unitário | H26: Custo Unitário
A27: 6416040 | B27: Usinagem de brita graduada com brita comercial em usina de 300 t/h - Caminhão basculante 10 m³ | C27: 5914652 | D27: 2.2 | E27: t | G27: 2.17 | I27: =ROUND(D27*G27,4) -> 4.774
C28: Custo unitário total de tempo fixo | I28: =SUM(I27) -> 4.774
A29: F - MOMENTO DE TRANSPORTE | C29: Quantidade | D29: Unidade | E29: DMT | I29: Custo Unitário
E30: LN | F30: RP | G30: P
A31: 6416040 | B31: Usinagem de brita graduada com brita comercial em usina de 300 t/h - Caminhão basculante 10 m³ | C31: 2.2 | D31: tkm | G31: 5914389 | H31: 0.51 | I31: =C31*H31*10 -> 11.22 | K31: 5914389
C32: Custo unitário total de transporte | I32: =SUM(I31) -> 11.22
E33: Custo unitário direto total | I33: =SUM(I32,I28,I25) -> 147.4553995 | K33: =I33-I32 -> 136.2353995
F34: BDI | G34: =BDI!E25 -> 0.2158381752 | I34: =ROUND(I33*G34,4) -> 31.8265
G35: Preço Unitário: | I35: =ROUND(SUM(I33,I34),2) -> 179.28
A36: Obs.
A37: CGCIT | I37: DNIT
A38: SISTEMA DE CUSTOS REFERENCIAIS DE OBRAS - SICRO
A39: Custo Unitário de Referência | G39: Produção da equipe | H39: 1121.33 | I39: m²
A40: 4011209 | B40: Regularização do subleito | H40: Valores em reais (R$)
A41: A - EQUIPAMENTOS | C41: Quantidade | D41: Utilização | F41: Custo Horário | I41: Custo
D42: Operativa | E42: Improdutiva | F42: Produtivo | G42: Improdutivo | I42: Horário Total
A43: E9571 | B43: Caminhão tanque com capacidade de 10.000 l - 188 kW | C43: 2 | D43: 0,51 | E43: 0,49 | F43: 233,4681 | G43: 59,8757 | I43: =ROUND((C43*(D43*F43))+(C43*(E43*G43)),4) -> 296.8156
A44: E9518 | B44: Grade de 24 discos rebocável de 24" | C44: 1 | D44: 0,69 | E44: 0,31 | F44: 3,0376 | G44: 2,0558 | I44: 2.7332
A45: E9524 | B45: Motoniveladora - 93 kW | C45: 1 | D45: 0,71 | E45: 0,29 | F45: 186,1416 | G45: 78,5704 | I45: 154.946
A46: E9762 | B46: Rolo compactador de pneus autopropelido de 27 t - 85 kW | C46: 1 | D46: 0,96 | E46: 0,04 | F46: 157,3000 | G46: 74,5519 | I46: 153.9901
A47: E9685 | B47: Rolo compactador pé de carneiro vibratório autopropelido de 11,6 t - 82 kW | C47: 1 | D47: 1,00 | E47: 0,00 | F47: 154,9913 | G47: 69,0177 | I47: 154.9913
A48: E9577 | B48: Trator agrícola - 77 kW | C48: 1 | D48: 0,69 | E48: 0,31 | F48: 101,5207 | G48: 37,7960 | I48: 81.766
G49: Custo horário total de equipamentos | I49: =SUM(I43:I48) -> 845.2422
A50: B - MÃO DE OBRA | C50: Quantidade | D50: Unidade | E50: Custo Horário | G50: Custo Horário Total
A51: P9824 | B51: Servente | C51: 1 | D51: h | E51: 16.5276 | I51: =ROUND(C51*E51,4) -> 16.5276
C52: Custo horário total de mão de obra | H52: =SUM(I51) -> 16.5276
C53: Custo horário total de execução | I53: =SUM(H52,I49) -> 861.7698
C54: Custo unitário de execução | I54: =I53/H39 -> 0.7685246983
G55: Custo do FIC | H55: 0.0469 | I55: =I54*H55 -> 0.03604380835
G56: Custo do FIT | I56: -
A57: C - MATERIAL | C57: Quantidade | D57: Unidade | E57: Preço Unitário | G57: Custo Unitário
C58: Custo unitário total de material
A59: D - ATIVIDADES AUXILIARES | C59: Quantidade | D59: Unidade | E59: Custo Unitário | G59: Custo Unitário
C60: Custo total de atividades auxiliares
G61: Subtotal | I61: =SUM(I54,I55,I56) -> 0.8045685067
A62: E - TEMPO FIXO | C62: Código | D62: Quantidade | E62: Unidade | F62: Custo Unitário | H62: Custo Unitário
C63: Custo unitário total de tempo fixo
A64: F - MOMENTO DE TRANSPORTE | C64: Quantidade | D64: Unidade | E64: DMT | I64: Custo Unitário
E65: LN | F65: RP | G65: P
C66: Custo unitário total de transporte | I66: -
E67: Custo unitário direto total | I67: =SUM(I61) -> 0.8045685067
F68: BDI | G68: =BDI!E25 -> 0.2158381752 | I68: =ROUND(I67*G68,4) -> 0.1737
G69: Preço Unitário: | I69: =ROUND(SUM(I67,I68),2) -> 0.98
A70: Obs.
A72: CGCIT | I72: DNIT
A73: SISTEMA DE CUSTOS REFERENCIAIS DE OBRAS - SICRO
A74: Custo Unitário de Referência | G74: Produção da equipe | H74: 3 | I74: un
A75: 5213440 | B75: Fornecimento e implantação de placa de regulamentação em aço D = 0,60 m - película retrorrefletiva tipo I + SI | H75: Valores em reais (R$)
A76: A - EQUIPAMENTOS | C76: Quantidade | D76: Utilização | F76: Custo Horário | I76: Custo
D77: Operativa | E77: Improdutiva | F77: Produtivo | G77: Improdutivo | I77: Horário Total
A78: E9687 | B78: Caminhão carroceria com capacidade de 5 t - 115 kW | C78: 1 | D78: 0.3 | E78: 0.7 | F78: 108.2292 | G78: 43.931 | I78: =ROUND((C78*(D78*F78))+(C78*(E78*G78)),4) -> 63.2205
G79: Custo horário total de equipamentos | I79: =SUM(I78) -> 63.2205
A80: B - MÃO DE OBRA | C80: Quantidade | D80: Unidade | E80: Custo Horário | G80: Custo Horário Total
A81: P9830 | B81: Montador | C81: 1 | D81: h | E81: 23.656 | I81: =ROUND(C81*E81,4) -> 23.656
A82: P9824 | B82: Servente | C82: 2 | D82: h | E82: 16.5276 | I82: =ROUND(C82*E82,4) -> 33.0552
C83: Custo horário total de mão de obra | H83: =SUM(I81:I82) -> 56.7112
C84: Custo horário total de execução | I84: =SUM(H83,I79) -> 119.9317
C85: Custo unitário de execução | I85: =I84/H74 -> 39.97723333
G86: Custo do FIC | I86: -
G87: Custo do FIT | I87: -
A88: C - MATERIAL | C88: Quantidade | D88: Unidade | E88: Preço Unitário | G88: Custo Unitário
C89: Custo unitário total de material
A90: D - ATIVIDADES AUXILIARES | C90: Quantidade | D90: Unidade | E90: Custo Unitário | G90: Custo Unitário
A91: 5213414 | B91: Confecção de placa em aço nº 16 galvanizado, com película retrorrefletiva tipo I + SI | C91: 0.36 | D91: m² | F91: 450.53 | I91: =ROUND(C91*F91,4) -> 162.1908
C92: Custo total de atividades auxiliares | I92: =SUM(I91) -> 162.1908
G93: Subtotal | I93: =SUM(I92,I85,I86,I87) -> 202.1680333
A94: E - TEMPO FIXO | C94: Código | D94: Quantidade | E94: Unidade | F94: Custo Unitário | H94: Custo Unitário
C96: Custo unitário total de tempo fixo | I96: =SUM(I95) -> 0
A97: F - MOMENTO DE TRANSPORTE | C97: Quantidade | D97: Unidade | E97: DMT | I97: Custo Unitário
E98: LN | F98: RP | G98: P
C100: Custo unitário total de transporte
E101: Custo unitário direto total | I101: =SUM(I100,I96,I93) -> 202.1680333
F102: BDI | G102: =BDI!E25 -> 0.2158381752 | I102: =ROUND(I101*G102,4) -> 43.6356
G103: Preço Unitário: | I103: =ROUND(SUM(I101,I102),2) -> 245.8
A104: Obs.
A106: CGCIT | I106: DNIT
A107: SISTEMA DE CUSTOS REFERENCIAIS DE OBRAS - SICRO
A108: Custo Unitário de Referência | G108: Produção da equipe | H108: 3 | I108: un
A109: 5213863 | B109: Fornecimento e implantação de suporte metálico galvanizado para placa de regulamentação - D = 0,60 m | H109: Valores em reais (R$)
A110: A - EQUIPAMENTOS | C110: Quantidade | D110: Utilização | F110: Custo Horário | I110: Custo
D111: Operativa | E111: Improdutiva | F111: Produtivo | G111: Improdutivo | I111: Horário Total
A112: E9687 | B112: Caminhão carroceria com capacidade de 5 t - 115 kW | C112: 1 | D112: 0.3 | E112: 0.7 | F112: 108.2292 | G112: 43.931 | I112: =ROUND((C112*(D112*F112))+(C112*(E112*G112)),4) -> 63.2205
G113: Custo horário total de equipamentos | I113: =SUM(I112) -> 63.2205
A114: B - MÃO DE OBRA | C114: Quantidade | D114: Unidade | E114: Custo Horário | G114: Custo Horário Total
A115: P9830 | B115: Montador | C115: 1 | D115: h | E115: 23.656 | I115: =ROUND(C115*E115,4) -> 23.656
A116: P9824 | B116: Servente | C116: 1 | D116: h | E116: 16.5276 | I116: =ROUND(C116*E116,4) -> 16.5276
C117: Custo horário total de mão de obra | H117: =SUM(I115:I116) -> 40.1836
C118: Custo horário total de execução | I118: =SUM(I113,H117) -> 103.4041
C119: Custo unitário de execução | I119: =I118/H108 -> 34.46803333
G120: Custo do FIC | I120: -
G121: Custo do FIT | I121: -
A122: C - MATERIAL | C122: Quantidade | D122: Unidade | E122: Preço Unitário | G122: Custo Unitário
A123: M0789 | B123: Conjunto de cantoneiras e parafusos galvanizados para fixação de placas | C123: 0.69622 | D123: kg | F123: 13.6781 | I123: =ROUND(C123*F123,4) -> 9.523
A124: M0787 | B124: Suporte em aço carbono galvanizado perfil "C" | C124: 12.717 | D124: kg | F124: 17.6344 | I124: 224.2567
C125: Custo unitário total de material | I125: =SUM(I123:I124) -> 233.7797
A126: D - ATIVIDADES AUXILIARES | C126: Quantidade | D126: Unidade | E126: Custo Unitário | G126: Custo Unitário
A127: 1107892 | B127: Concreto fck = 20 MPa - confecção em betoneira e lançamento manual - areia e brita comerciais | C127: 0.0503 | D127: m³ | F127: 379.61 | I127: =ROUND(C127*F127,4) -> 19.0944
A128: 4805750 | B128: Escavação manual em material de 1ª categoria na profundidade de até 1 m | C128: 0.0503 | D128: m³ | F128: 34.61 | I128: =ROUND(C128*F128,4) -> 1.7409
C129: Custo total de atividades auxiliares | I129: =SUM(I127:I128) -> 20.8353
G130: Subtotal | I130: =SUM(I129,I125,I119,I120,I121) -> 289.0830333
A131: E - TEMPO FIXO | C131: Código | D131: Quantidade | E131: Unidade | F131: Custo Unitário | H131: Custo Unitário
A132: M0789 | B132: Conjunto de cantoneiras e parafusos galvanizados para fixação de placas - Caminhão carroceria 15 t | C132: 5914655 | D132: 0.0007 | E132: t | G132: 24.28 | I132: =ROUND(D132*G132,4) -> 0.017
A133: M0787 | B133: Suporte em aço carbono galvanizado perfil "C" - Caminhão carroceria 5 t | C133: 5914655 | D133: 0.01272 | E133: t | G133: 24.28 | I133: =ROUND(D133*G133,4) -> 0.3088
C134: Custo unitário total de tempo fixo | I134: =SUM(I132:I133) -> 0.3258
A135: F - MOMENTO DE TRANSPORTE | C135: Quantidade | D135: Unidade | E135: DMT | I135: Custo Unitário
E136: LN | F136: RP | G136: P
A137: M0789 | B137: Conjunto de cantoneiras e parafusos galvanizados para fixação de placas - Caminhão carroceria 5 t | C137: 0.0007 | D137: tkm | G137: 10 | H137: 0.51 | I137: =C137*0.51*10 -> 0.00357 | K137: 5914479 | L137: 0.52
A138: M0787 | B138: Suporte em aço carbono galvanizado perfil "C" - Caminhão carroceria 5 t | C138: 0.01272 | D138: tkm | G138: 10 | H138: 0.51 | I138: =C138*0.51*10 -> 0.064872 | K138: 5914479 | L138: 0.52
C139: Custo unitário total de transporte | I139: =SUM(I137:I138) -> 0.068442
E140: Custo unitário direto total | I140: =SUM(I139,I134,I130) -> 289.4772753
F141: BDI | G141: =BDI!E25 -> 0.2158381752 | I141: =ROUND(I140*G141,4) -> 62.4802
G142: Preço Unitário: | I142: =ROUND(SUM(I140,I141),2) -> 351.96
A143: Obs.
A145: CGCIT | I145: DNIT
A146: SISTEMA DE CUSTOS REFERENCIAIS DE OBRAS - SICRO
A147: Custo Unitário de Referência | G147: Produção da equipe | H147: 1 | I147: m
A148: 2003373 | B148: Meio fio de concreto - MFC 03 - areia e brita comerciais - fôrma de madeira | H148: Valores em reais (R$)
A149: A - EQUIPAMENTOS | C149: Quantidade | D149: Utilização | F149: Custo Horário | I149: Custo
D150: Operativa | E150: Improdutiva | F150: Produtivo | G150: Improdutivo | I150: Horário Total
G151: Custo horário total de equipamentos
A152: B - MÃO DE OBRA | C152: Quantidade | D152: Unidade | E152: Custo Horário | G152: Custo Horário Total
C153: Custo horário total de mão de obra | H153: -
C154: Custo horário total de execução | I154: -
C155: Custo unitário de execução | I155: -
G156: Custo do FIC | I156: -
G157: Custo do FIT | I157: -
A158: C - MATERIAL | C158: Quantidade | D158: Unidade | E158: Preço Unitário | G158: Custo Unitário
C159: Custo unitário total de material
A160: D - ATIVIDADES AUXILIARES | C160: Quantidade | D160: Unidade | E160: Custo Unitário | G160: Custo Unitário
A161: 1107892 | B161: Concreto fck = 20 MPa - confecção em betoneira e lançamento manual - areia e brita comerciais | C161: 0.042 | D161: m³ | F161: 379,6100 | I161: =ROUND(C161*F161,4) -> 15.9436
A162: 2003842 | B162: Enchimento de junta de concreto com argamassa asfáltica de densidade 1.700 kg/m³ - espessura de 1 cm | C162: 0.0595 | D162: kg | F162: 46,6100 | I162: =ROUND(C162*F162,4) -> 2.7733
A163: 4805751 | B163: Escavação manual em material de 1ª categoria na profundidade de 1 a 2 m | C163: 0.03 | D163: m³ | F163: 34,6100 | I163: =ROUND(C163*F163,4) -> 1.0383
A164: 3103302 | B164: Formas de tábuas de pinho para dispositivos de drenagem - utilização de 3 vezes - confecção, instalação e retirada | C164: 0.0867 | D164: m² | F164: 59,5500 | I164: =ROUND(C164*F164,4) -> 5.163
C165: Custo total de atividades auxiliares | I165: =SUM(I161:I164) -> 24.9182
G166: Subtotal | I166: =SUM(I165,I155,I156,I157) -> 24.9182
A167: E - TEMPO FIXO | C167: Código | D167: Quantidade | E167: Unidade | F167: Custo Unitário | H167: Custo Unitário
C168: Custo unitário total de tempo fixo
A169: F - MOMENTO DE TRANSPORTE | C169: Quantidade | D169: Unidade | E169: DMT | I169: Custo Unitário
E170: LN | F170: RP | G170: P
C171: Custo unitário total de transporte | I171: -
E172: Custo unitário direto total | I172: =SUM(I166) -> 24.9182
F173: BDI | G173: =BDI!E25 -> 0.2158381752 | I173: =ROUND(I172*G173,4) -> 5.3783
G174: Preço Unitário: | I174: =ROUND(SUM(I172,I173),2) -> 30.3
A175: Obs.
A176: CGCIT | I176: DNIT
A177: SISTEMA DE CUSTOS REFERENCIAIS DE OBRAS - SICRO
A178: Custo Unitário de Referência | G178: Produção da equipe | H178: 230.19 | I178: m³
A179: 5502114 | B179: Escavação, carga e transporte de material de 1ª categoria - DMT de 1.000 a 1.200 m - caminho de serviço em leito natural - com escavadeira e caminhão basculante de 14 m³ | H179: Valores em reais (R$)
A180: A - EQUIPAMENTOS | C180: Quantidade | D180: Utilização | F180: Custo Horário | I180: Custo
D181: Operativa | E181: Improdutiva | F181: Produtivo | G181: Improdutivo | I181: Horário Total
A182: E9667 | B182: Caminhão basculante com capacidade de 14 m³ - 188 Kw | C182: 5 | D182: 0.96 | E182: 0.04 | F182: 196.6429 | G182: 61.0045 | I182: =ROUND((C182*(D182*F182))+(C182*(E182*G182)),4) -> 956.0868
A183: E9515 | B183: Escavadeira hidráulica sobre esteiras com caçamba com capacidade de 1,56 m³ - 118 kW | C183: 1 | D183: 1 | E183: 0 | F183: 202.1121 | G183: 89.6453 | I183: 202.1121
G184: Custo horário total de equipamentos | I184: =SUM(I182:I183) -> 1158.1989
A185: B - MÃO DE OBRA | C185: Quantidade | D185: Unidade | E185: Custo Horário | G185: Custo Horário Total
A186: P9824 | B186: Servente | C186: 1 | D186: h | E186: 16.5276 | I186: =ROUND(C186*E186,4) -> 16.5276
C187: Custo horário total de mão de obra | H187: =SUM(I186) -> 16.5276
C188: Custo horário total de execução | I188: =SUM(H187,I184) -> 1174.7265
C189: Custo unitário de execução | I189: =I188/H178 -> 5.10329076
G190: Custo do FIC | H190: 0.0469 | I190: =I189*H190 -> 0.2393443366
G191: Custo do FIT | I191: -
A192: C - MATERIAL | C192: Quantidade | D192: Unidade | E192: Preço Unitário | G192: Custo Unitário
C193: Custo unitário total de material
A194: D - ATIVIDADES AUXILIARES | C194: Quantidade | D194: Unidade | E194: Custo Unitário | G194: Custo Unitário
D195: m³ | I195: =ROUND(C195*F195,4) -> 0
C196: Custo total de atividades auxiliares | I196: =SUM(I195) -> 0
G197: Subtotal | I197: =SUM(I196,I189,I190,I191) -> 5.342635096
A198: E - TEMPO FIXO | C198: Código | D198: Quantidade | E198: Unidade | F198: Custo Unitário | H198: Custo Unitário
C200: Custo unitário total de tempo fixo | I200: =SUM(I199) -> 0
A201: F - MOMENTO DE TRANSPORTE | C201: Quantidade | D201: Unidade | E201: DMT | I201: Custo Unitário
E202: LN | F202: RP | G202: P
K203: 5914389
C204: Custo unitário total de transporte | I204: =SUM(I203) -> 0
E205: Custo unitário direto total | I205: =SUM(I204,I200,I197) -> 5.342635096
F206: BDI | G206: =BDI!E25 -> 0.2158381752 | I206: =ROUND(I205*G206,4) -> 1.1531
G207: Preço Unitário: | I207: =ROUND(SUM(I205,I206),2) -> 6.5
... 40 more rows

Sheet Ensaios
A1: SERVIÇOS GEOLÓGICOS/GEOTÉCNICOS
A3: NOME DA EMPRESA:
A5: PROJETO: | D5: CONTRATANTE: | F5: EDITAL:
D6: Codevasf (Sede)
A7: Cod. | B7: Insumos | C7: Uni | D7: Qde | E7: Preço Unitário (PU) | F7: Preço Total (PT)
A8: GT01 | B8: Ensaios em solos Umidade Natural | C8: un | D8: 1 | E8: 30 | F8: =ROUND(E8*D8,2) -> 30
A9: GT02 | B9: Densidade in SITUEnsaios do Frasco de Areia (in Situ) | C9: un | D9: 1 | E9: 45.03 | F9: 45.03
A10: GT03 | B10: Ensaios em solos Limite de Liquidez | C10: un | D10: 1 | E10: 50.04 | F10: 50.04
A11: GT04 | B11: Ensaios em solos Limite de Plasticidade | C11: un | D11: 1 | E11: 45.03 | F11: 45.03
A12: GT05 | B12: Granulometria por Peneiramento | C12: un | D12: 1 | E12: 80.06 | F12: 80.06
A13: GT06 | B13: Granulometria Completa ( peneiramento e sedimentação) | C13: un | D13: 1 | E13: 80.06 | F13: 80.06
A14: GT07 | B14: Massa Específica Real dos Grãos | C14: un | D14: 1 | E14: 35.03 | F14: 35.03
A15: GT08 | B15: Compactação Proctor Normal | C15: un | D15: 2 | E15: 87.7 | F15: 175.4
A16: GT09 | B16: Abrasão "Los Angeles " | C16: un | D16: 1 | E16: 225 | F16: 225
A17: GT10 | B17: Índice de Suporte Califórnia ( ISC/CBR) | C17: un | D17: 5 | E17: 166.4 | F17: 832
A18: GT11 | B18: Equivalente de Areia | C18: un | D18: 1 | E18: 50 | F18: 50
A19: GT12 | B19: Ensaio de Expansão | C19: un | D19: 1 | E19: 72.56 | F19: 72.56
A20: TOTAL SERVIÇOS GEOTÉCNICOS | F20: =SUM(F8:F19) -> 1720.21
A21: NOME DO INFORMANTE: | E21: QUALIFICAÇÃO:
A23: ASSINATURA: | E23: DATA:

Sheet Mob e Desmob
A5: ='RESUMO MODULO MINIMO'!A1 -> EXECUÇÃO DE SERVIÇOS DE IMPLANTAÇÃO DE PAVIMENTAÇÃO EM BLOCO DE CONCRETO INTERTRAVADO, EM VIAS URBANAS E RURAIS DE MUNÍCIPIOS DIVERSOS INSERIDOS NA ÁREA DE ATUAÇÃO DA CODEVASF, NO ESTADO DO PARÁ
A7: MEMÓRIA DE CÁLCULO DOS MOMENTOS DE TRANSPORTE PARA MOBILIZAÇÃO E DESMOBILIZAÇÃO
A10: Deslocamento:
C11: Distancia méd. (Km) | D11: Qtde. | E11: Total (Km)
A12: Mobilização (entre os trechos de serviço): | C12: 1 | D12: 1 | E12: =C12*D12 -> 1
A13: Desmobilização (entre os trechos de serviço): | C13: 1 | D13: 1 | E13: =C13*D13 -> 1
A14: Mobilização inter-municipal (entre as localidades): | C14: 10 | D14: 1 | E14: =C14*D14 -> 10
A15: Desmobilização inter-municipal (entre as localidades): | C15: 10 | D15: 1 | E15: =C15*D15 -> 10
A16: Mobilização - Total (km) | E16: =E12+E14 -> 11
A17: Desmobilização - Total (km) | E17: =E13+E15 -> 11
A20: Peso das máquinas:
E21: Pá carregadeira | H21: 10.1 | I21: ton
E22: Motoniveladora | H22: 12.47 | I22: ton
E23: Trator de pneus | H23: 2.8 | I23: ton
E24: Rolo Compactador | H24: 15.33 | I24: ton
E25: Grade de disco | H25: 1 | I25: ton
E26: Usina misturadora | H26: 20 | I26: ton
E28: Total | H28: =ROUND(SUM(H20:H27),2) -> 61.7 | I28: ton
A30: Portanto: | B30: Portanto
A31: Mobilização - Total (km) | E31: =E16*H28 -> 678.7 | F31: t x km
A32: Desmobilização - Total (km) | E32: =E17*H28 -> 678.7 | F32: t x km
A39: E9010 | B39: Balança plataforma digital com mesa de 75 x 75 cm com capacidade de 500 kg | I39: Caminhão carroceria
A40: E9064 | B40: Transportador manual gerica com capacidade de 180 l | I40: Caminhão carroceria
A41: E9066 | B41: Grupo gerador - 13/14 kVA | I41: Caminhão carroceria
A42: E9071 | B42: Transportador manual carrinho de mão com capacidade de 80 l | I42: Caminhão carroceria
A43: E9076 | B43: Equipamento de pintura com cabine de 7,00 kW e estufa de 80.000 kCal para pintura eletrostática | I43: Caminhão carroceria
A44: E9519 | B44: Betoneira com motor a gasolina com capacidade de 600 l - 10 kW | I44: Caminhão carroceria
A45: E9521 | B45: Grupo gerador - 2,5/3 kVA | I45: Caminhão carroceria
A46: E9568 | B46: Furadeira de impacto de 12,5 mm - 0,8 kW | I46: Caminhão carroceria
A47: E9622 | B47: Máquina de bancada universal para corte de chapa - 1,5 kW | I47: Caminhão carroceria
A48: E9623 | B48: Máquina de bancada guilhotina - 4 kW | I48: Caminhão carroceria
A49: E9675 | B49: Martelete perfurador/rompedor elétrico - 1,5 kW | I49: Caminhão carroceria
A50: E9779 | B50: Grupo gerador - 100/110 kVA | I50: Caminhão carroceria
A53: E9506 | B53: Caminhão basculante com capacidade de 6 m³ - 136 kW | I53: Rodoviario
A54: E9571 | B54: Caminhão tanque com capacidade de 10.000 l - 188 kW | I54: Rodoviario
A55: E9579 | B55: Caminhão basculante com capacidade de 10 m³ - 188 kW | I55: Rodoviario
A56: E9592 | B56: Caminhão carroceria com capacidade de 15 t - 188 kW | I56: Rodoviario
A57: E9644 | B57: Caminhão demarcador de faixas com sistema de pintura a frio - 28 kW/115 kW | I57: Rodoviario
A58: E9686 | B58: Caminhão carroceria com guindauto com capacidade de 20 t.m - 136 kW | I58: Rodoviario
A59: E9687 | B59: Caminhão carroceria com capacidade de 5 t - 115 kW | I59: Rodoviario
A60: E9514 | B60: Distribuidor de agregados autopropelido - 130 kW | I60: Rodoviario
A62: E9511 | B62: Carregadeira de pneus com capacidade de 3,40 m³ - 195 kW | I62: TRANSPORTE COM CAVALO MECÂNICO COM SEMIRREBOQUE COM CAPACIDADE DE 30 T - RODOVIA PAVIMENTADA
A63: E9524 | B63: Motoniveladora - 93 kW | I63: TRANSPORTE COM CAVALO MECÂNICO COM SEMIRREBOQUE COM CAPACIDADE DE 30 T - RODOVIA PAVIMENTADA
A64: E9530 | B64: Rolo compactador liso autopropelido vibratório de 11 t - 97 kW | I64: TRANSPORTE COM CAVALO MECÂNICO COM SEMIRREBOQUE COM CAPACIDADE DE 30 T - RODOVIA PAVIMENTADA
A65: E9577 | B65: Trator agrícola - 77 kW | I65: TRANSPORTE COM CAVALO MECÂNICO COM SEMIRREBOQUE COM CAPACIDADE DE 30 T - RODOVIA PAVIMENTADA
A66: E9685 | B66: Rolo compactador pé de carneiro vibratório autopropelido de 11,6 t - 82 kW | I66: TRANSPORTE COM CAVALO MECÂNICO COM SEMIRREBOQUE COM CAPACIDADE DE 30 T - RODOVIA PAVIMENTADA
A67: E9762 | B67: Rolo compactador de pneus autopropelido de 27 t - 85 kW | I67: TRANSPORTE COM CAVALO MECÂNICO COM SEMIRREBOQUE COM CAPACIDADE DE 30 T - RODOVIA PAVIMENTADA
A68: E9518 | B68: Grade de 24 discos rebocável de 24" | I68: TRANSPORTE COM CAVALO MECÂNICO COM SEMIRREBOQUE COM CAPACIDADE DE 30 T - RODOVIA PAVIMENTADA
A69: E9615 | B69: Usina misturadora de solos com capacidade de 300 t/h | I69: TRANSPORTE COM CAVALO MECÂNICO COM SEMIRREBOQUE COM CAPACIDADE DE 30 T - RODOVIA PAVIMENTADA

Sheet MC MODULO
H2: ='RESUMO MODULO MINIMO'!L33 -> 853255.7549
H4: =ROUND(H2/(E11*1000*E9),3) -> 121.894
C8: Extensão | D8: = | E8: 1000 | F8: m | H8: QUANTIDADE DE MODULOS | I8: 70
C9: Largura | D9: = | E9: 7 | F9: m
C11: Extensão | D11: = | E11: 1 | F11: km
B13: MOBUILIZAÇÃO | L13: MOBUILIZAÇÃO
A14: 1 | B14: Implantação da obra | K14: 1 | L14: Implantação da obra
B16: Extensão (km) | D16: Extensão (km) | L16: Extensão (km) | N16: Extensão (km)
B17: =E11 -> 1 | C17: = | D17: =B17 -> 1 | L17: =E11*$I$8 -> 70 | M17: = | N17: =L17 -> 70
A19: 2 | B19: Administração da obra | K19: 2 | L19: Administração da obra
B21: Extensão (km) | D21: Extensão (km) | L21: Extensão (km) | N21: Extensão (km)
B22: =E11 -> 1 | C22: = | D22: =B22 -> 1 | L22: =E11*$I$8 -> 70 | M22: = | N22: =L22 -> 70
B24: TERRAPLENAGEM | L24: TERRAPLENAGEM
A26: 4 | B26: serviços topográficos para pavimentação, inclusive notas de serviços, acompanhamento e greide | K26: 4 | L26: serviços topográficos para pavimentação, inclusive notas de serviços, acompanhamento e greide
B28: Extensão (m) | D28: Largura (m) | F28: Área (m2) | L28: Extensão (m) | N28: Largura (m) | P28: Área (m2)
B29: =E8 -> 1000 | C29: x | D29: =$E$9 -> 7 | E29: = | F29: =B29*D29 -> 7000 | L29: =E8*I8 -> 70000 | M29: x | N29: =$E$9 -> 7 | O29: = | P29: =L29*N29 -> 490000
A31: 5 | B31: ='RESUMO MODULO MINIMO'!D16 -> Escavação, carga e transporte de material de 1ª categoria - DMT de 1.000 a 1.200 m - caminho de serviço em leito natural - com escavadeira e caminhão basculante de 14 m³ | K31: 5
B33: Extensão (m) | D33: Largura (m) | F33: Espessura (m) | H33: Volume (m3) | L33: Extensão (m) | N33: Largura (m) | P33: Espessura (m) | R33: Volume (m3)
B34: =E8 -> 1000 | C34: x | D34: =$E$9 -> 7 | E34: x | F34: 0.1 | G34: = | H34: =B34*D34*F34 -> 700 | L34: =E8*I8 -> 70000 | M34: x | N34: =$E$9 -> 7 | O34: x | P34: 0.1 | Q34: = | R34: =L34*N34*P34 -> 49000
A38: 6 | B38: ='RESUMO MODULO MINIMO'!D17 -> Espalhamento de material em bota-fora | K38: 6
B40: Extensão (m) | D40: Largura (m) | F40: Espessura (m) | H40: Volume (m3) | L40: Extensão (m) | N40: Largura (m) | P40: Espessura (m) | R40: Volume (m3)
B41: =$E$8 -> 1000 | C41: x | D41: =$E$9 -> 7 | E41: x | F41: 0.1 | G41: = | H41: =B41*D41*F41 -> 700 | L41: =$E$8*I8 -> 70000 | M41: x | N41: =$E$9 -> 7 | O41: x | P41: 0.1 | Q41: = | R41: =L41*N41*P41 -> 49000
B44: PAVIMENTAÇÃO | L44: PAVIMENTAÇÃO
A46: 7 | B46: Execução de pavimento em piso intertravado, com bloco sextavado de 25 x 25 cm, espessura 8 cm. af_12/2015 | K46: 7 | L46: Execução de pavimento em piso intertravado, com bloco sextavado de 25 x 25 cm, espessura 8 cm. af_12/2015
B48: Extensão (m) | D48: Largura (m) | F48: Área (m2) | L48: Extensão (m) | N48: Largura (m) | P48: Área (m2)
B49: =E8 -> 1000 | C49: x | D49: =$E$9 -> 7 | E49: = | F49: =B49*D49 -> 7000 | L49: =E8*I8 -> 70000 | M49: x | N49: =$E$9 -> 7 | O49: = | P49: =L49*N49 -> 490000
A52: 8 | B52: Base ou sub-base de brita graduada com brita comercial | K52: 8 | L52: Base ou sub-base de brita graduada com brita comercial
B54: Extensão (m) | D54: Largura (m) | F54: Espessura (m) | H54: Volume (m3) | L54: Extensão (m) | N54: Largura (m) | P54: Espessura (m) | R54: Volume (m3)
B55: =$E$8 -> 1000 | C55: x | D55: =$E$9 -> 7 | E55: x | F55: 0.15 | G55: = | H55: =B55*D55*F55 -> 1050 | L55: =$E$8*$I$8 -> 70000 | M55: x | N55: =$E$9 -> 7 | O55: x | P55: 0.15 | Q55: = | R55: =L55*N55*P55 -> 73500
A58: 9 | B58: Regularização do subleito | K58: 9 | L58: Regularização do subleito
B60: Extensão (m) | D60: Largura (m) | H60: Volume (m2) | L60: Extensão (m) | N60: Largura (m) | R60: Volume (m2)
B61: =$E$8 -> 1000 | C61: x | D61: =$E$9 -> 7 | G61: = | H61: =B61*D61 -> 7000 | L61: =$E$8*$I$8 -> 70000 | M61: x | N61: =$E$9 -> 7 | Q61: = | R61: =L61*N61 -> 490000
B64: SINALIZAÇÃO | L64: SINALIZAÇÃO
A66: 10 | B66: Fornecimento e implantação de placa de regulamentação em aço D = 0,60 m - película retrorrefletiva tipo I + SI | K66: 10 | L66: Fornecimento e implantação de placa de regulamentação em aço D = 0,60 m - película retrorrefletiva tipo I + SI
B68: Extensão (km) | D68: Quant. (un) | H68: Quant. (un) | L68: Extensão (km) | N68: Quant. (un) | R68: Quant. (un)
B69: =$E$11 -> 1 | C69: x | D69: 1 | G69: = | H69: =B69*D69 -> 1 | L69: =$E$11*$I$8 -> 70 | M69: x | N69: 1 | Q69: = | R69: =L69*N69 -> 70
A72: 11 | B72: Fornecimento e implantação de suporte metálico galvanizado para placa de regulamentação - D = 0,60 m | K72: 11 | L72: Fornecimento e implantação de suporte metálico galvanizado para placa de regulamentação - D = 0,60 m
B74: Extensão (km) | D74: Quant. (un) | H74: Quant. (un) | L74: Extensão (km) | N74: Quant. (un) | R74: Quant. (un)
B75: =$E$11 -> 1 | C75: x | D75: 1 | G75: = | H75: =B75*D75 -> 1 | L75: =$E$11*$I$8 -> 70 | M75: x | N75: 1 | Q75: = | R75: =L75*N75 -> 70
B78: DRENAGEM | L78: DRENAGEM
A79: 12 | B79: Meio fio de concreto - MFC 04 - areia e brita comerciais - fôrma de madeira | K79: 12 | L79: Meio fio de concreto - MFC 04 - areia e brita comerciais - fôrma de madeira
B81: Extensão (m) | D81: Quant. (un) | H81: Volume (m) | L81: Extensão (m) | N81: Quant. (un) | R81: Volume (m)
B82: =$E$8 -> 1000 | C82: x | D82: 2 | G82: = | H82: =B82*D82 -> 2000 | L82: =$E$8*$I$8 -> 70000 | M82: x | N82: 2 | Q82: = | R82: =L82*N82 -> 140000
B86: LIMPEZA GERAL | L86: LIMPEZA GERAL
A87: 13 | B87: Limpeza Geral | K87: 13 | L87: Limpeza Geral
B89: Extensão (m) | D89: Largura (m) | F89: Quant. (un) | H89: Volume (m2) | L89: Extensão (m) | N89: Largura (m) | P89: Quant. (un) | R89: Volume (m2)
B90: =$E$8 -> 1000 | C90: x | D90: 7 | E90: x | F90: 1 | G90: = | H90: =B90*D90*F90 -> 7000 | L90: =$E$8*$I$8 -> 70000 | M90: x | N90: 7 | O90: x | P90: 1 | Q90: = | R90: =L90*N90*P90 -> 490000
B93: SERVIÇOS COMPLEMENTARES | L93: SERVIÇOS COMPLEMENTARES
A94: 14 | B94: ='RESUMO MODULO MINIMO'!D30 -> Conserto de quebra no ramal na rua sem pavimento com fornecimento de material hidráulico | K94: 14 | L94: ='RESUMO MODULO MINIMO'!O30 -> 0
B96: Extensão (m) | D96: Largura (m) | G96: 0.1 | H96: extensão (m) | L96: Extensão (m) | N96: Largura (m) | Q96: 0.1 | R96: extensão (m)
B97: =$E$8 -> 1000 | C97: x | D97: 1 | E97: x | G97: = | H97: =G96*B97 -> 100 | L97: =$E$8*I8 -> 70000 | M97: x | N97: 1 | O97: x | Q97: = | R97: =Q96*L97 -> 7000
B100: PROJETO EXECUTIVO | L100: PROJETO EXECUTIVO
A101: 15 | B101: Projeto Executivo | K101: 15 | L101: Projeto Executivo
B103: Extensão (m) | D103: Largura (m) | F103: Quant. (un) | H103: Volume (Km) | L103: Extensão (m) | N103: Largura (m) | P103: Quant. (un) | R103: Volume (Km)
B104: =E11 -> 1 | C104: x | E104: x | F104: 1 | G104: = | H104: =B104*F104 -> 1 | L104: =E11*I8 -> 70 | M104: x | O104: x | P104: 1 | Q104: = | R104: =L104*P104 -> 70

Sheet SINAPI PARÁ SET 21
A1: 97141 | B1: ASSENTAMENTO DE TUBO DE FERRO FUNDIDO PARA REDE DE ÁGUA, DN 80 MM, JUNTA ELÁSTICA, INSTALADO EM LOCAL COM NÍVEL ALTO DE INTERFERÊNCIAS (NÃO INCLUI FORNECIMENTO). AF_11/2017 | C1: M | D1: ATRIBUÍDO SÃO PAULO | E1: 6.64 | F1: CAIXA REFERENCIAL
A2: 97142 | B2: ASSENTAMENTO DE TUBO DE FERRO FUNDIDO PARA REDE DE ÁGUA, DN 100 MM, JUNTA ELÁSTICA, INSTALADO EM LOCAL COM NÍVEL ALTO DE INTERFERÊNCIAS (NÃO INCLUI FORNECIMENTO). AF_11/2017 | C2: M | D2: ATRIBUÍDO SÃO PAULO | E2: 7.41 | F2: CAIXA REFERENCIAL
A3: 97143 | B3: ASSENTAMENTO DE TUBO DE FERRO FUNDIDO PARA REDE DE ÁGUA, DN 150 MM, JUNTA ELÁSTICA, INSTALADO EM LOCAL COM NÍVEL ALTO DE INTERFERÊNCIAS (NÃO INCLUI FORNECIMENTO). AF_11/2017 | C3: M | D3: ATRIBUÍDO SÃO PAULO | E3: 9.33 | F3: CAIXA REFERENCIAL
A4: 97144 | B4: ASSENTAMENTO DE TUBO DE FERRO FUNDIDO PARA REDE DE ÁGUA, DN 200 MM, JUNTA ELÁSTICA, INSTALADO EM LOCAL COM NÍVEL ALTO DE INTERFERÊNCIAS (NÃO INCLUI FORNECIMENTO). AF_11/2017 | C4: M | D4: ATRIBUÍDO SÃO PAULO | E4: 11.24 | F4: CAIXA REFERENCIAL
A5: 97145 | B5: ASSENTAMENTO DE TUBO DE FERRO FUNDIDO PARA REDE DE ÁGUA, DN 250 MM, JUNTA ELÁSTICA, INSTALADO EM LOCAL COM NÍVEL ALTO DE INTERFERÊNCIAS (NÃO INCLUI FORNECIMENTO). AF_11/2017 | C5: M | D5: ATRIBUÍDO SÃO PAULO | E5: 13.19 | F5: CAIXA REFERENCIAL
A6: 97146 | B6: ASSENTAMENTO DE TUBO DE FERRO FUNDIDO PARA REDE DE ÁGUA, DN 300 MM, JUNTA ELÁSTICA, INSTALADO EM LOCAL COM NÍVEL ALTO DE INTERFERÊNCIAS (NÃO INCLUI FORNECIMENTO). AF_11/2017 | C6: M | D6: ATRIBUÍDO SÃO PAULO | E6: 15.13 | F6: CAIXA REFERENCIAL
A7: 97147 | B7: ASSENTAMENTO DE TUBO DE FERRO FUNDIDO PARA REDE DE ÁGUA, DN 350 MM, JUNTA ELÁSTICA, INSTALADO EM LOCAL COM NÍVEL ALTO DE INTERFERÊNCIAS (NÃO INCLUI FORNECIMENTO). AF_11/2017 | C7: M | D7: ATRIBUÍDO SÃO PAULO | E7: 17.06 | F7: CAIXA REFERENCIAL
A8: 97148 | B8: ASSENTAMENTO DE TUBO DE FERRO FUNDIDO PARA REDE DE ÁGUA, DN 400 MM, JUNTA ELÁSTICA, INSTALADO EM LOCAL COM NÍVEL ALTO DE INTERFERÊNCIAS (NÃO INCLUI FORNECIMENTO). AF_11/2017 | C8: M | D8: ATRIBUÍDO SÃO PAULO | E8: 18.99 | F8: CAIXA REFERENCIAL
A9: 97149 | B9: ASSENTAMENTO DE TUBO DE FERRO FUNDIDO PARA REDE DE ÁGUA, DN 450 MM, JUNTA ELÁSTICA, INSTALADO EM LOCAL COM NÍVEL ALTO DE INTERFERÊNCIAS (NÃO INCLUI FORNECIMENTO). AF_11/2017 | C9: M | D9: ATRIBUÍDO SÃO PAULO | E9: 20.96 | F9: CAIXA REFERENCIAL
A10: 97150 | B10: ASSENTAMENTO DE TUBO DE FERRO FUNDIDO PARA REDE DE ÁGUA, DN 500 MM, JUNTA ELÁSTICA, INSTALADO EM LOCAL COM NÍVEL ALTO DE INTERFERÊNCIAS (NÃO INCLUI FORNECIMENTO). AF_11/2017 | C10: M | D10: COEFICIENTE DE REPRESENTATIVIDADE | E10: 28.29 | F10: CAIXA REFERENCIAL
A11: 97151 | B11: ASSENTAMENTO DE TUBO DE FERRO FUNDIDO PARA REDE DE ÁGUA, DN 600 MM, JUNTA ELÁSTICA, INSTALADO EM LOCAL COM NÍVEL ALTO DE INTERFERÊNCIAS (NÃO INCLUI FORNECIMENTO). AF_11/2017 | C11: M | D11: COEFICIENTE DE REPRESENTATIVIDADE | E11: 32.97 | F11: CAIXA REFERENCIAL
A12: 97152 | B12: ASSENTAMENTO DE TUBO DE FERRO FUNDIDO PARA REDE DE ÁGUA, DN 700 MM, JUNTA ELÁSTICA, INSTALADO EM LOCAL COM NÍVEL ALTO DE INTERFERÊNCIAS (NÃO INCLUI FORNECIMENTO). AF_11/2017 | C12: M | D12: COEFICIENTE DE REPRESENTATIVIDADE | E12: 37.44 | F12: CAIXA REFERENCIAL
A13: 97153 | B13: ASSENTAMENTO DE TUBO DE FERRO FUNDIDO PARA REDE DE ÁGUA, DN 800 MM, JUNTA ELÁSTICA, INSTALADO EM LOCAL COM NÍVEL ALTO DE INTERFERÊNCIAS (NÃO INCLUI FORNECIMENTO). AF_11/2017 | C13: M | D13: COEFICIENTE DE REPRESENTATIVIDADE | E13: 42.04 | F13: CAIXA REFERENCIAL
A14: 97154 | B14: ASSENTAMENTO DE TUBO DE FERRO FUNDIDO PARA REDE DE ÁGUA, DN 900 MM, JUNTA ELÁSTICA, INSTALADO EM LOCAL COM NÍVEL ALTO DE INTERFERÊNCIAS (NÃO INCLUI FORNECIMENTO). AF_11/2017 | C14: M | D14: COEFICIENTE DE REPRESENTATIVIDADE | E14: 46.65 | F14: CAIXA REFERENCIAL
A15: 97155 | B15: ASSENTAMENTO DE TUBO DE FERRO FUNDIDO PARA REDE DE ÁGUA, DN 1000 MM, JUNTA ELÁSTICA, INSTALADO EM LOCAL COM NÍVEL ALTO DE INTERFERÊNCIAS (NÃO INCLUI FORNECIMENTO). AF_11/2017 | C15: M | D15: COEFICIENTE DE REPRESENTATIVIDADE | E15: 51.27 | F15: CAIXA REFERENCIAL
A16: 97156 | B16: ASSENTAMENTO DE TUBO DE FERRO FUNDIDO PARA REDE DE ÁGUA, DN 1200 MM, JUNTA ELÁSTICA, INSTALADO EM LOCAL COM NÍVEL ALTO DE INTERFERÊNCIAS (NÃO INCLUI FORNECIMENTO). AF_11/2017 | C16: M | D16: COEFICIENTE DE REPRESENTATIVIDADE | E16: 60.9 | F16: CAIXA REFERENCIAL
A17: 97157 | B17: ASSENTAMENTO DE TUBO DE FERRO FUNDIDO PARA REDE DE ÁGUA, DN 80 MM, JUNTA ELÁSTICA, INSTALADO EM LOCAL COM NÍVEL BAIXO DE INTERFERÊNCIAS (NÃO INCLUI FORNECIMENTO). AF_11/2017 | C17: M | D17: ATRIBUÍDO SÃO PAULO | E17: 4.07 | F17: CAIXA REFERENCIAL
A18: 97158 | B18: ASSENTAMENTO DE TUBO DE FERRO FUNDIDO PARA REDE DE ÁGUA, DN 100 MM, JUNTA ELÁSTICA, INSTALADO EM LOCAL COM NÍVEL BAIXO DE INTERFERÊNCIAS (NÃO INCLUI FORNECIMENTO). AF_11/2017 | C18: M | D18: ATRIBUÍDO SÃO PAULO | E18: 4.56 | F18: CAIXA REFERENCIAL
A19: 97159 | B19: ASSENTAMENTO DE TUBO DE FERRO FUNDIDO PARA REDE DE ÁGUA, DN 150 MM, JUNTA ELÁSTICA, INSTALADO EM LOCAL COM NÍVEL BAIXO DE INTERFERÊNCIAS (NÃO INCLUI FORNECIMENTO). AF_11/2017 | C19: M | D19: ATRIBUÍDO SÃO PAULO | E19: 5.74 | F19: CAIXA REFERENCIAL
A20: 97160 | B20: ASSENTAMENTO DE TUBO DE FERRO FUNDIDO PARA REDE DE ÁGUA, DN 200 MM, JUNTA ELÁSTICA, INSTALADO EM LOCAL COM NÍVEL BAIXO DE INTERFERÊNCIAS (NÃO INCLUI FORNECIMENTO). AF_11/2017 | C20: M | D20: ATRIBUÍDO SÃO PAULO | E20: 6.9 | F20: CAIXA REFERENCIAL
A21: 97161 | B21: ASSENTAMENTO DE TUBO DE FERRO FUNDIDO PARA REDE DE ÁGUA, DN 250 MM, JUNTA ELÁSTICA, INSTALADO EM LOCAL COM NÍVEL BAIXO DE INTERFERÊNCIAS (NÃO INCLUI FORNECIMENTO). AF_11/2017 | C21: M | D21: ATRIBUÍDO SÃO PAULO | E21: 8.11 | F21: CAIXA REFERENCIAL
A22: 97162 | B22: ASSENTAMENTO DE TUBO DE FERRO FUNDIDO PARA REDE DE ÁGUA, DN 300 MM, JUNTA ELÁSTICA, INSTALADO EM LOCAL COM NÍVEL BAIXO DE INTERFERÊNCIAS (NÃO INCLUI FORNECIMENTO). AF_11/2017 | C22: M | D22: ATRIBUÍDO SÃO PAULO | E22: 9.31 | F22: CAIXA REFERENCIAL
A23: 97163 | B23: ASSENTAMENTO DE TUBO DE FERRO FUNDIDO PARA REDE DE ÁGUA, DN 350 MM, JUNTA ELÁSTICA, INSTALADO EM LOCAL COM NÍVEL BAIXO DE INTERFERÊNCIAS (NÃO INCLUI FORNECIMENTO). AF_11/2017 | C23: M | D23: ATRIBUÍDO SÃO PAULO | E23: 10.51 | F23: CAIXA REFERENCIAL
A24: 97164 | B24: ASSENTAMENTO DE TUBO DE FERRO FUNDIDO PARA REDE DE ÁGUA, DN 400 MM, JUNTA ELÁSTICA, INSTALADO EM LOCAL COM NÍVEL BAIXO DE INTERFERÊNCIAS (NÃO INCLUI FORNECIMENTO). AF_11/2017 | C24: M | D24: ATRIBUÍDO SÃO PAULO | E24: 11.69 | F24: CAIXA REFERENCIAL
A25: 97165 | B25: ASSENTAMENTO DE TUBO DE FERRO FUNDIDO PARA REDE DE ÁGUA, DN 450 MM, JUNTA ELÁSTICA, INSTALADO EM LOCAL COM NÍVEL BAIXO DE INTERFERÊNCIAS (NÃO INCLUI FORNECIMENTO). AF_11/2017 | C25: M | D25: ATRIBUÍDO SÃO PAULO | E25: 12.93 | F25: CAIXA REFERENCIAL
A26: 97166 | B26: ASSENTAMENTO DE TUBO DE FERRO FUNDIDO PARA REDE DE ÁGUA, DN 500 MM, JUNTA ELÁSTICA, INSTALADO EM LOCAL COM NÍVEL BAIXO DE INTERFERÊNCIAS (NÃO INCLUI FORNECIMENTO). AF_11/2017 | C26: M | D26: COEFICIENTE DE REPRESENTATIVIDADE | E26: 17.36 | F26: CAIXA REFERENCIAL
A27: 97167 | B27: ASSENTAMENTO DE TUBO DE FERRO FUNDIDO PARA REDE DE ÁGUA, DN 600 MM, JUNTA ELÁSTICA, INSTALADO EM LOCAL COM NÍVEL BAIXO DE INTERFERÊNCIAS (NÃO INCLUI FORNECIMENTO). AF_11/2017 | C27: M | D27: COEFICIENTE DE REPRESENTATIVIDADE | E27: 20.25 | F27: CAIXA REFERENCIAL
A28: 97168 | B28: ASSENTAMENTO DE TUBO DE FERRO FUNDIDO PARA REDE DE ÁGUA, DN 700 MM, JUNTA ELÁSTICA, INSTALADO EM LOCAL COM NÍVEL BAIXO DE INTERFERÊNCIAS (NÃO INCLUI FORNECIMENTO). AF_11/2017 | C28: M | D28: COEFICIENTE DE REPRESENTATIVIDADE | E28: 22.94 | F28: CAIXA REFERENCIAL
A29: 97169 | B29: ASSENTAMENTO DE TUBO DE FERRO FUNDIDO PARA REDE DE ÁGUA, DN 800 MM, JUNTA ELÁSTICA, INSTALADO EM LOCAL COM NÍVEL BAIXO DE INTERFERÊNCIAS (NÃO INCLUI FORNECIMENTO). AF_11/2017 | C29: M | D29: COEFICIENTE DE REPRESENTATIVIDADE | E29: 25.75 | F29: CAIXA REFERENCIAL
A30: 97170 | B30: ASSENTAMENTO DE TUBO DE FERRO FUNDIDO PARA REDE DE ÁGUA, DN 900 MM, JUNTA ELÁSTICA, INSTALADO EM LOCAL COM NÍVEL BAIXO DE INTERFERÊNCIAS (NÃO INCLUI FORNECIMENTO). AF_11/2017 | C30: M | D30: COEFICIENTE DE REPRESENTATIVIDADE | E30: 28.58 | F30: CAIXA REFERENCIAL
A31: 97171 | B31: ASSENTAMENTO DE TUBO DE FERRO FUNDIDO PARA REDE DE ÁGUA, DN 1000 MM, JUNTA ELÁSTICA, INSTALADO EM LOCAL COM NÍVEL BAIXO DE INTERFERÊNCIAS (NÃO INCLUI FORNECIMENTO). AF_11/2017 | C31: M | D31: COEFICIENTE DE REPRESENTATIVIDADE | E31: 31.44 | F31: CAIXA REFERENCIAL
A32: 97172 | B32: ASSENTAMENTO DE TUBO DE FERRO FUNDIDO PARA REDE DE ÁGUA, DN 1200 MM, JUNTA ELÁSTICA, INSTALADO EM LOCAL COM NÍVEL BAIXO DE INTERFERÊNCIAS (NÃO INCLUI FORNECIMENTO). AF_11/2017 | C32: M | D32: COEFICIENTE DE REPRESENTATIVIDADE | E32: 37.5 | F32: CAIXA REFERENCIAL
A33: 97173 | B33: ASSENTAMENTO DE TUBO DE AÇO CARBONO PARA REDE DE ÁGUA, DN 600 MM (24), JUNTA SOLDADA, INSTALADO EM LOCAL COM NÍVEL ALTO DE INTERFERÊNCIAS (NÃO INCLUI FORNECIMENTO). AF_11/2017 | C33: M | D33: COEFICIENTE DE REPRESENTATIVIDADE | E33: 31.16 | F33: CAIXA REFERENCIAL
A34: 97174 | B34: ASSENTAMENTO DE TUBO DE AÇO CARBONO PARA REDE DE ÁGUA, DN 700 MM (28), JUNTA SOLDADA, INSTALADO EM LOCAL COM NÍVEL ALTO DE INTERFERÊNCIAS (NÃO INCLUI FORNECIMENTO). AF_11/2017 | C34: M | D34: COEFICIENTE DE REPRESENTATIVIDADE | E34: 36.07 | F34: CAIXA REFERENCIAL
A35: 97175 | B35: ASSENTAMENTO DE TUBO DE AÇO CARBONO PARA REDE DE ÁGUA, DN 800 MM (32), JUNTA SOLDADA, INSTALADO EM LOCAL COM NÍVEL ALTO DE INTERFERÊNCIAS (NÃO INCLUI FORNECIMENTO). AF_11/2017 | C35: M | D35: COEFICIENTE DE REPRESENTATIVIDADE | E35: 40.96 | F35: CAIXA REFERENCIAL
A36: 97176 | B36: ASSENTAMENTO DE TUBO DE AÇO CARBONO PARA REDE DE ÁGUA, DN 900 MM (36), JUNTA SOLDADA, INSTALADO EM LOCAL COM NÍVEL ALTO DE INTERFERÊNCIAS (NÃO INCLUI FORNECIMENTO). AF_11/2017 | C36: M | D36: COEFICIENTE DE REPRESENTATIVIDADE | E36: 45.88 | F36: CAIXA REFERENCIAL
A37: 97177 | B37: ASSENTAMENTO DE TUBO DE AÇO CARBONO PARA REDE DE ÁGUA, DN 1000 MM (40) OU DN 1100 MM (44), JUNTA SOLDADA, INSTALADO EM LOCAL COM NÍVEL ALTO DE INTERFERÊNCIAS (NÃO INCLUI FORNECIMENTO). AF_11/2017 | C37: M | D37: COEFICIENTE DE REPRESENTATIVIDADE | E37: 55.7 | F37: CAIXA REFERENCIAL
A38: 97178 | B38: ASSENTAMENTO DE TUBO DE AÇO CARBONO PARA REDE DE ÁGUA, DN 1200 MM (48) OU DN 1300 MM (52), JUNTA SOLDADA, INSTALADO EM LOCAL COM NÍVEL ALTO DE INTERFERÊNCIAS (NÃO INCLUI FORNECIMENTO). AF_11/2017 | C38: M | D38: COEFICIENTE DE REPRESENTATIVIDADE | E38: 65.51 | F38: CAIXA REFERENCIAL
A39: 97179 | B39: ASSENTAMENTO DE TUBO DE AÇO CARBONO PARA REDE DE ÁGUA, DN 1400 MM (56'') OU DN 1500 MM (60), JUNTA SOLDADA, INSTALADO EM LOCAL COM NÍVEL ALTO DE INTERFERÊNCIAS (NÃO INCLUI FORNECIMENTO). AF_11/2017 | C39: M | D39: COEFICIENTE DE REPRESENTATIVIDADE | E39: 75.33 | F39: CAIXA REFERENCIAL
A40: 97180 | B40: ASSENTAMENTO DE TUBO DE AÇO CARBONO PARA REDE DE ÁGUA, DN 1600 MM (64) OU DN 1700 MM (68), JUNTA SOLDADA, INSTALADO EM LOCAL COM NÍVEL ALTO DE INTERFERÊNCIAS (NÃO INCLUI FORNECIMENTO). AF_11/2017 | C40: M | D40: COEFICIENTE DE REPRESENTATIVIDADE | E40: 85.15 | F40: CAIXA REFERENCIAL
A41: 97181 | B41: ASSENTAMENTO DE TUBO DE AÇO CARBONO PARA REDE DE ÁGUA, DN 1800 MM (72) OU DN 1900 MM (76), JUNTA SOLDADA, INSTALADO EM LOCAL COM NÍVEL ALTO DE INTERFERÊNCIAS (NÃO INCLUI FORNECIMENTO). AF_11/2017 | C41: M | D41: COEFICIENTE DE REPRESENTATIVIDADE | E41: 99.11 | F41: CAIXA REFERENCIAL
A42: 97182 | B42: ASSENTAMENTO DE TUBO DE AÇO CARBONO PARA REDE DE ÁGUA, DN 2000 MM (80) OU DN 2100 MM (84), JUNTA SOLDADA, INSTALADO EM LOCAL COM NÍVEL ALTO DE INTERFERÊNCIAS (NÃO INCLUI FORNECIMENTO). AF_11/2017 | C42: M | D42: COEFICIENTE DE REPRESENTATIVIDADE | E42: 109.36 | F42: CAIXA REFERENCIAL
A43: 97183 | B43: ASSENTAMENTO DE TUBO DE AÇO CARBONO PARA REDE DE ÁGUA, DN 600 MM (24), JUNTA SOLDADA, INSTALADO EM LOCAL COM NÍVEL BAIXO DE INTERFERÊNCIAS (NÃO INCLUI FORNECIMENTO). AF_11/2017 | C43: M | D43: COEFICIENTE DE REPRESENTATIVIDADE | E43: 25.09 | F43: CAIXA REFERENCIAL
A44: 97184 | B44: ASSENTAMENTO DE TUBO DE AÇO CARBONO PARA REDE DE ÁGUA, DN 700 MM (28), JUNTA SOLDADA, INSTALADO EM LOCAL COM NÍVEL BAIXO DE INTERFERÊNCIAS (NÃO INCLUI FORNECIMENTO). AF_11/2017 | C44: M | D44: COEFICIENTE DE REPRESENTATIVIDADE | E44: 29.11 | F44: CAIXA REFERENCIAL
A45: 97185 | B45: ASSENTAMENTO DE TUBO DE AÇO CARBONO PARA REDE DE ÁGUA, DN 800 MM (32), JUNTA SOLDADA, INSTALADO EM LOCAL COM NÍVEL BAIXO DE INTERFERÊNCIAS (NÃO INCLUI FORNECIMENTO). AF_11/2017 | C45: M | D45: COEFICIENTE DE REPRESENTATIVIDADE | E45: 33.12 | F45: CAIXA REFERENCIAL
A46: 97186 | B46: ASSENTAMENTO DE TUBO DE AÇO CARBONO PARA REDE DE ÁGUA, DN 900 MM (36), JUNTA SOLDADA, INSTALADO EM LOCAL COM NÍVEL BAIXO DE INTERFERÊNCIAS (NÃO INCLUI FORNECIMENTO). AF_11/2017 | C46: M | D46: COEFICIENTE DE REPRESENTATIVIDADE | E46: 37.13 | F46: CAIXA REFERENCIAL
A47: 97187 | B47: ASSENTAMENTO DE TUBO DE AÇO CARBONO PARA REDE DE ÁGUA, DN 1000 MM (40 ) OU DN 1100 MM (44 ), JUNTA SOLDADA, INSTALADO EM LOCAL COM NÍVEL BAIXO DE INTERFERÊNCIAS (NÃO INCLUI FORNECIMENTO). AF_11/2017 | C47: M | D47: COEFICIENTE DE REPRESENTATIVIDADE | E47: 45.15 | F47: CAIXA REFERENCIAL
A48: 97188 | B48: ASSENTAMENTO DE TUBO DE AÇO CARBONO PARA REDE DE ÁGUA, DN 1200 MM (48) OU DN 1300 MM (52), JUNTA SOLDADA, INSTALADO EM LOCAL COM NÍVEL BAIXO DE INTERFERÊNCIAS (NÃO INCLUI FORNECIMENTO). AF_11/2017 | C48: M | D48: COEFICIENTE DE REPRESENTATIVIDADE | E48: 53.18 | F48: CAIXA REFERENCIAL
A49: 97189 | B49: ASSENTAMENTO DE TUBO DE AÇO CARBONO PARA REDE DE ÁGUA, DN 1400 MM (56'') OU DN 1500 MM (60), JUNTA SOLDADA, INSTALADO EM LOCAL COM NÍVEL BAIXO DE INTERFERÊNCIAS (NÃO INCLUI FORNECIMENTO). AF_11/2017 | C49: M | D49: COEFICIENTE DE REPRESENTATIVIDADE | E49: 61.19 | F49: CAIXA REFERENCIAL
A50: 97190 | B50: ASSENTAMENTO DE TUBO DE AÇO CARBONO PARA REDE DE ÁGUA, DN 1600 MM (64) OU DN 1700 MM (68), JUNTA SOLDADA, INSTALADO EM LOCAL COM NÍVEL BAIXO DE INTERFERÊNCIAS (NÃO INCLUI FORNECIMENTO). AF_11/2017 | C50: M | D50: COEFICIENTE DE REPRESENTATIVIDADE | E50: 69.22 | F50: CAIXA REFERENCIAL
A51: 97191 | B51: ASSENTAMENTO DE TUBO DE AÇO CARBONO PARA REDE DE ÁGUA, DN 1800 MM (72) OU DN 1900 MM (76), JUNTA SOLDADA, INSTALADO EM LOCAL COM NÍVEL BAIXO DE INTERFERÊNCIAS (NÃO INCLUI FORNECIMENTO). AF_11/2017 | C51: M | D51: COEFICIENTE DE REPRESENTATIVIDADE | E51: 80.28 | F51: CAIXA REFERENCIAL
A52: 97192 | B52: ASSENTAMENTO DE TUBO DE AÇO CARBONO PARA REDE DE ÁGUA, DN 2000 MM (80) OU DN 2100 MM (84), JUNTA SOLDADA, INSTALADO EM LOCAL COM NÍVEL BAIXO DE INTERFERÊNCIAS (NÃO INCLUI FORNECIMENTO). AF_11/2017 | C52: M | D52: COEFICIENTE DE REPRESENTATIVIDADE | E52: 88.62 | F52: CAIXA REFERENCIAL
A53: 90694 | B53: TUBO DE PVC PARA REDE COLETORA DE ESGOTO DE PAREDE MACIÇA, DN 100 MM, JUNTA ELÁSTICA - FORNECIMENTO E ASSENTAMENTO. AF_01/2021 | C53: M | D53: ATRIBUÍDO SÃO PAULO | E53: 41.73 | F53: CAIXA REFERENCIAL
A54: 90695 | B54: TUBO DE PVC PARA REDE COLETORA DE ESGOTO DE PAREDE MACIÇA, DN 150 MM, JUNTA ELÁSTICA - FORNECIMENTO E ASSENTAMENTO. AF_01/2021 | C54: M | D54: ATRIBUÍDO SÃO PAULO | E54: 87.08 | F54: CAIXA REFERENCIAL
A55: 90696 | B55: TUBO DE PVC PARA REDE COLETORA DE ESGOTO DE PAREDE MACIÇA, DN 200 MM, JUNTA ELÁSTICA - FORNECIMENTO E ASSENTAMENTO. AF_01/2021 | C55: M | D55: ATRIBUÍDO SÃO PAULO | E55: 129.44 | F55: CAIXA REFERENCIAL
A56: 90697 | B56: TUBO DE PVC PARA REDE COLETORA DE ESGOTO DE PAREDE MACIÇA, DN 250 MM, JUNTA ELÁSTICA - FORNECIMENTO E ASSENTAMENTO. AF_01/2021 | C56: M | D56: ATRIBUÍDO SÃO PAULO | E56: 218.33 | F56: CAIXA REFERENCIAL
A57: 90698 | B57: TUBO DE PVC PARA REDE COLETORA DE ESGOTO DE PAREDE MACIÇA, DN 300 MM, JUNTA ELÁSTICA, FORNECIMENTO E ASSENTAMENTO. AF_01/2021 | C57: M | D57: ATRIBUÍDO SÃO PAULO | E57: 350.27 | F57: CAIXA REFERENCIAL
A58: 90699 | B58: TUBO DE PVC PARA REDE COLETORA DE ESGOTO DE PAREDE MACIÇA, DN 350 MM, JUNTA ELÁSTICA - FORNECIMENTO E ASSENTAMENTO. AF_01/2021 | C58: M | D58: ATRIBUÍDO SÃO PAULO | E58: 433.15 | F58: CAIXA REFERENCIAL
A59: 90700 | B59: TUBO DE PVC PARA REDE COLETORA DE ESGOTO DE PAREDE MACIÇA, DN 400 MM, JUNTA ELÁSTICA FORNECIMENTO E ASSENTAMENTO. AF_01/2021 | C59: M | D59: ATRIBUÍDO SÃO PAULO | E59: 561.08 | F59: CAIXA REFERENCIAL
A60: 90701 | B60: TUBO DE PVC CORRUGADO DE DUPLA PAREDE PARA REDE COLETORA DE ESGOTO, DN 150 MM, JUNTA ELÁSTICA - FORNECIMENTO E ASSENTAMENTO. AF_01/2021 | C60: M | D60: ATRIBUÍDO SÃO PAULO | E60: 70.79 | F60: CAIXA REFERENCIAL
A61: 90702 | B61: TUBO DE PVC CORRUGADO DE DUPLA PAREDE PARA REDE COLETORA DE ESGOTO, DN 200 MM, JUNTA ELÁSTICA - FORNECIMENTO E ASSENTAMENTO. AF_01/2021 | C61: M | D61: ATRIBUÍDO SÃO PAULO | E61: 112.92 | F61: CAIXA REFERENCIAL
A62: 90703 | B62: TUBO DE PVC CORRUGADO DE DUPLA PAREDE PARA REDE COLETORA DE ESGOTO, DN 250 MM, JUNTA ELÁSTICA - FORNECIMENTO E ASSENTAMENTO. AF_01/2021 | C62: M | D62: ATRIBUÍDO SÃO PAULO | E62: 185.14 | F62: CAIXA REFERENCIAL
A63: 90704 | B63: TUBO DE PVC CORRUGADO DE DUPLA PAREDE PARA REDE COLETORA DE ESGOTO, DN 300 MM, JUNTA ELÁSTICA - FORNECIMENTO E ASSENTAMENTO. AF_01/2021 | C63: M | D63: ATRIBUÍDO SÃO PAULO | E63: 256.24 | F63: CAIXA REFERENCIAL
A64: 90705 | B64: TUBO DE PVC CORRUGADO DE DUPLA PAREDE PARA REDE COLETORA DE ESGOTO, DN 350 MM, JUNTA ELÁSTICA - FORNECIMENTO E ASSENTAMENTO. AF_01/2021 | C64: M | D64: ATRIBUÍDO SÃO PAULO | E64: 360.58 | F64: CAIXA REFERENCIAL
A65: 90706 | B65: TUBO DE PVC CORRUGADO DE DUPLA PAREDE PARA REDE COLETORA DE ESGOTO, DN 400 MM, JUNTA ELÁSTICA - FORNECIMENTO E ASSENTAMENTO. AF_01/2021 | C65: M | D65: ATRIBUÍDO SÃO PAULO | E65: 420.46 | F65: CAIXA REFERENCIAL
A66: 90708 | B66: TUBO DE PEAD CORRUGADO DE DUPLA PAREDE PARA REDE COLETORA DE ESGOTO, DN 600 MM, JUNTA ELÁSTICA INTEGRADA - FORNECIMENTO E ASSENTAMENTO. AF_01/2021 | C66: M | D66: ATRIBUÍDO SÃO PAULO | E66: 1191.72 | F66: CAIXA REFERENCIAL
A67: 90724 | B67: JUNTA ARGAMASSADA ENTRE TUBO DN 100 MM E O POÇO DE VISITA/ CAIXA DE CONCRETO OU ALVENARIA EM REDES DE ESGOTO. AF_01/2021 | C67: UN | D67: COEFICIENTE DE REPRESENTATIVIDADE | E67: 20.3 | F67: CAIXA REFERENCIAL
A68: 90725 | B68: JUNTA ARGAMASSADA ENTRE TUBO DN 150 MM E O POÇO DE VISITA/ CAIXA DE CONCRETO OU ALVENARIA EM REDES DE ESGOTO. AF_01/2021 | C68: UN | D68: COEFICIENTE DE REPRESENTATIVIDADE | E68: 25.01 | F68: CAIXA REFERENCIAL
A69: 90726 | B69: JUNTA ARGAMASSADA ENTRE TUBO DN 200 MM E O POÇO/ CAIXA DE CONCRETO OU ALVENARIA EM REDES DE ESGOTO. AF_01/2021 | C69: UN | D69: COEFICIENTE DE REPRESENTATIVIDADE | E69: 29.78 | F69: CAIXA REFERENCIAL
A70: 90727 | B70: JUNTA ARGAMASSADA ENTRE TUBO DN 250 MM E O POÇO DE VISITA/ CAIXA DE CONCRETO OU ALVENARIA EM REDES DE ESGOTO. AF_01/2021 | C70: UN | D70: COEFICIENTE DE REPRESENTATIVIDADE | E70: 34.49 | F70: CAIXA REFERENCIAL
A71: 90728 | B71: JUNTA ARGAMASSADA ENTRE TUBO DN 300 MM E O POÇO DE VISITA/ CAIXA DE CONCRETO OU ALVENARIA EM REDES DE ESGOTO. AF_01/2021 | C71: UN | D71: COEFICIENTE DE REPRESENTATIVIDADE | E71: 39.2 | F71: CAIXA REFERENCIAL
A72: 90729 | B72: JUNTA ARGAMASSADA ENTRE TUBO DN 350 MM E O POÇO DE VISITA/ CAIXA DE CONCRETO OU ALVENARIA EM REDES DE ESGOTO. AF_01/2021 | C72: UN | D72: COEFICIENTE DE REPRESENTATIVIDADE | E72: 43.91 | F72: CAIXA REFERENCIAL
A73: 90730 | B73: JUNTA ARGAMASSADA ENTRE TUBO DN 400 MM E O POÇO DE VISITA/ CAIXA DE CONCRETO OU ALVENARIA EM REDES DE ESGOTO. AF_01/2021 | C73: UN | D73: COEFICIENTE DE REPRESENTATIVIDADE | E73: 48.62 | F73: CAIXA REFERENCIAL
A74: 90731 | B74: JUNTA ARGAMASSADA ENTRE TUBO DN 450 MM E O POÇO DE VISITA/ CAIXA DE CONCRETO OU ALVENARIA EM REDES DE ESGOTO. AF_01/2021 | C74: UN | D74: COEFICIENTE DE REPRESENTATIVIDADE | E74: 53.33 | F74: CAIXA REFERENCIAL
A75: 90732 | B75: JUNTA ARGAMASSADA ENTRE TUBO DN 600 MM E O POÇO DE VISITA/ CAIXA DE CONCRETO OU ALVENARIA EM REDES DE ESGOTO. AF_01/2021 | C75: UN | D75: COEFICIENTE DE REPRESENTATIVIDADE | E75: 67.46 | F75: CAIXA REFERENCIAL
A76: 90733 | B76: ASSENTAMENTO DE TUBO DE PVC PARA REDE COLETORA DE ESGOTO DE PAREDE MACIÇA, DN 100 MM, JUNTA ELÁSTICA (NÃO INCLUI FORNECIMENTO). AF_01/2021 | C76: M | D76: COEFICIENTE DE REPRESENTATIVIDADE | E76: 2.82 | F76: CAIXA REFERENCIAL
A77: 90734 | B77: ASSENTAMENTO DE TUBO DE PVC PARA REDE COLETORA DE ESGOTO DE PAREDE MACIÇA, DN 150 MM, JUNTA ELÁSTICA, (NÃO INCLUI FORNECIMENTO). AF_01/2021 | C77: M | D77: COEFICIENTE DE REPRESENTATIVIDADE | E77: 3.35 | F77: CAIXA REFERENCIAL
A78: 90735 | B78: ASSENTAMENTO DE TUBO DE PVC PARA REDE COLETORA DE ESGOTO DE PAREDE MACIÇA, DN 200 MM, JUNTA ELÁSTICA (NÃO INCLUI FORNECIMENTO). AF_01/2021 | C78: M | D78: COEFICIENTE DE REPRESENTATIVIDADE | E78: 3.87 | F78: CAIXA REFERENCIAL
A79: 90736 | B79: ASSENTAMENTO DE TUBO DE PVC PARA REDE COLETORA DE ESGOTO DE PAREDE MACIÇA, DN 250 MM, JUNTA ELÁSTICA (NÃO INCLUI FORNECIMENTO). AF_01/2021 | C79: M | D79: COEFICIENTE DE REPRESENTATIVIDADE | E79: 4.39 | F79: CAIXA REFERENCIAL
A80: 90737 | B80: ASSENTAMENTO DE TUBO DE PVC PARA REDE COLETORA DE ESGOTO DE PAREDE MACIÇA, DN 300 MM, JUNTA ELÁSTICA (NÃO INCLUI FORNECIMENTO). AF_01/2021 | C80: M | D80: COEFICIENTE DE REPRESENTATIVIDADE | E80: 4.91 | F80: CAIXA REFERENCIAL
A81: 90738 | B81: ASSENTAMENTO DE TUBO DE PVC PARA REDE COLETORA DE ESGOTO DE PAREDE MACIÇA, DN 350 MM, JUNTA ELÁSTICA (NÃO INCLUI FORNECIMENTO). AF_01/2021 | C81: M | D81: COEFICIENTE DE REPRESENTATIVIDADE | E81: 5.45 | F81: CAIXA REFERENCIAL
A82: 90739 | B82: ASSENTAMENTO DE TUBO DE PVC PARA REDE COLETORA DE ESGOTO DE PAREDE MACIÇA, DN 400 MM, JUNTA ELÁSTICA (NÃO INCLUI FORNECIMENTO). AF_01/2021 | C82: M | D82: ATRIBUÍDO SÃO PAULO | E82: 7.22 | F82: CAIXA REFERENCIAL
A83: 90740 | B83: ASSENTAMENTO DE TUBO DE PVC CORRUGADO DE DUPLA PAREDE PARA REDE COLETORA DE ESGOTO, DN 150 MM, JUNTA ELÁSTICA (NÃO INCLUI FORNECIMENTO). AF_01/2021 | C83: M | D83: COEFICIENTE DE REPRESENTATIVIDADE | E83: 3.73 | F83: CAIXA REFERENCIAL
A84: 90741 | B84: ASSENTAMENTO DE TUBO DE PVC CORRUGADO DE DUPLA PAREDE PARA REDE COLETORA DE ESGOTO, DN 200 MM, JUNTA ELÁSTICA (NÃO INCLUI FORNECIMENTO). AF_01/2021 | C84: M | D84: COEFICIENTE DE REPRESENTATIVIDADE | E84: 4.25 | F84: CAIXA REFERENCIAL
A85: 90742 | B85: ASSENTAMENTO DE TUBO DE PVC CORRUGADO DE DUPLA PAREDE PARA REDE COLETORA DE ESGOTO, DN 250 MM, JUNTA ELÁSTICA (NÃO INCLUI FORNECIMENTO). AF_01/2021 | C85: M | D85: COEFICIENTE DE REPRESENTATIVIDADE | E85: 4.77 | F85: CAIXA REFERENCIAL
A86: 90743 | B86: ASSENTAMENTO DE TUBO DE PVC CORRUGADO DE DUPLA PAREDE PARA REDE COLETORA DE ESGOTO, DN 300 MM, JUNTA ELÁSTICA (NÃO INCLUI FORNECIMENTO). AF_01/2021 | C86: M | D86: COEFICIENTE DE REPRESENTATIVIDADE | E86: 5.3 | F86: CAIXA REFERENCIAL
A87: 90744 | B87: ASSENTAMENTO DE TUBO DE PVC CORRUGADO DE DUPLA PAREDE PARA REDE COLETORA DE ESGOTO, DN 350 MM, JUNTA ELÁSTICA (NÃO INCLUI FORNECIMENTO). AF_01/2021 | C87: M | D87: COEFICIENTE DE REPRESENTATIVIDADE | E87: 5.82 | F87: CAIXA REFERENCIAL
A88: 90745 | B88: ASSENTAMENTO DE TUBO DE PVC CORRUGADO DE DUPLA PAREDE PARA REDE COLETORA DE ESGOTO, DN 400 MM, JUNTA ELÁSTICA (NÃO INCLUI FORNECIMENTO). AF_01/2021 | C88: M | D88: ATRIBUÍDO SÃO PAULO | E88: 8.05 | F88: CAIXA REFERENCIAL
A89: 90746 | B89: ASSENTAMENTO DE TUBO DE PEAD CORRUGADO DE DUPLA PAREDE PARA REDE COLETORA DE ESGOTO, DN 450 MM, JUNTA ELÁSTICA INTEGRADA (NÃO INCLUI FORNECIMENTO). AF_01/2021 | C89: M | D89: COEFICIENTE DE REPRESENTATIVIDADE | E89: 3.06 | F89: CAIXA REFERENCIAL
A90: 90747 | B90: ASSENTAMENTO DE TUBO DE PEAD CORRUGADO DE DUPLA PAREDE PARA REDE COLETORA DE ESGOTO, DN 600 MM, JUNTA ELÁSTICA INTEGRADA (NÃO INCLUI FORNECIMENTO). AF_01/2021 | C90: M | D90: COEFICIENTE DE REPRESENTATIVIDADE | E90: 14.66 | F90: CAIXA REFERENCIAL
A91: 94869 | B91: TUBO DE PEAD CORRUGADO DE DUPLA PAREDE PARA REDE COLETORA DE ESGOTO, DN 250 MM, JUNTA ELÁSTICA INTEGRADA - FORNECIMENTO E ASSENTAMENTO. AF_01/2021 | C91: M | D91: ATRIBUÍDO SÃO PAULO | E91: 242.72 | F91: CAIXA REFERENCIAL
A92: 94870 | B92: ASSENTAMENTO DE TUBO DE PEAD CORRUGADO DE DUPLA PAREDE PARA REDE COLETORA DE ESGOTO, DN 250 MM, JUNTA ELÁSTICA INTEGRADA (NÃO INCLUI FORNECIMENTO). AF_01/2021 | C92: M | D92: COEFICIENTE DE REPRESENTATIVIDADE | E92: 1.63 | F92: CAIXA REFERENCIAL
A93: 94871 | B93: TUBO DE PEAD CORRUGADO DE DUPLA PAREDE PARA REDE COLETORA DE ESGOTO, DN 300 MM, JUNTA ELÁSTICA INTEGRADA - FORNECIMENTO E ASSENTAMENTO. AF_01/2021 | C93: M | D93: ATRIBUÍDO SÃO PAULO | E93: 287.41 | F93: CAIXA REFERENCIAL
A94: 94872 | B94: ASSENTAMENTO DE TUBO DE PEAD CORRUGADO DE DUPLA PAREDE PARA REDE COLETORA DE ESGOTO, DN 300 MM, JUNTA ELÁSTICA INTEGRADA (NÃO INCLUI FORNECIMENTO). AF_01/2021 | C94: M | D94: COEFICIENTE DE REPRESENTATIVIDADE | E94: 2.27 | F94: CAIXA REFERENCIAL
A95: 94875 | B95: TUBO DE PEAD CORRUGADO DE DUPLA PAREDE PARA REDE COLETORA DE ESGOTO, DN 800 MM, JUNTA ELÁSTICA INTEGRADA - FORNECIMENTO E ASSENTAMENTO. AF_01/2021 | C95: M | D95: ATRIBUÍDO SÃO PAULO | E95: 1683.42 | F95: CAIXA REFERENCIAL
A96: 94876 | B96: ASSENTAMENTO DE TUBO DE PEAD CORRUGADO DE DUPLA PAREDE PARA REDE COLETORA DE ESGOTO, DN 800 MM, JUNTA ELÁSTICA INTEGRADA (NÃO INCLUI FORNECIMENTO). AF_01/2021 | C96: M | D96: COEFICIENTE DE REPRESENTATIVIDADE | E96: 24.62 | F96: CAIXA REFERENCIAL
A97: 94878 | B97: ASSENTAMENTO DE TUBO DE PEAD CORRUGADO DE DUPLA PAREDE PARA REDE COLETORA DE ESGOTO, DN 900 MM, JUNTA ELÁSTICA INTEGRADA (NÃO INCLUI FORNECIMENTO). AF_01/2021 | C97: M | D97: COEFICIENTE DE REPRESENTATIVIDADE | E97: 28.49 | F97: CAIXA REFERENCIAL
A98: 94879 | B98: TUBO DE PEAD CORRUGADO DE DUPLA PAREDE PARA REDE COLETORA DE ESGOTO, DN 1000 MM, JUNTA ELÁSTICA INTEGRADA - FORNECIMENTO E ASSENTAMENTO. AF_01/2021 | C98: M | D98: ATRIBUÍDO SÃO PAULO | E98: 2241.57 | F98: CAIXA REFERENCIAL
A99: 94880 | B99: ASSENTAMENTO DE TUBO DE PEAD CORRUGADO DE DUPLA PAREDE PARA REDE COLETORA DE ESGOTO, DN 1000 MM, JUNTA ELÁSTICA INTEGRADA (NÃO INCLUI FORNECIMENTO). AF_01/2021 | C99: M | D99: COEFICIENTE DE REPRESENTATIVIDADE | E99: 36.76 | F99: CAIXA REFERENCIAL
A100: 94881 | B100: TUBO DE PEAD CORRUGADO DE DUPLA PAREDE PARA REDE COLETORA DE ESGOTO, DN 1200 MM, JUNTA ELÁSTICA INTEGRADA - FORNECIMENTO E ASSENTAMENTO. AF_01/2021 | C100: M | D100: ATRIBUÍDO SÃO PAULO | E100: 3503.13 | F100: CAIXA REFERENCIAL
A101: 94882 | B101: ASSENTAMENTO DE TUBO DE PEAD CORRUGADO DE DUPLA PAREDE PARA REDE COLETORA DE ESGOTO, DN 1200 MM, JUNTA ELÁSTICA INTEGRADA (NÃO INCLUI FORNECIMENTO). AF_01/2021 | C101: M | D101: COEFICIENTE DE REPRESENTATIVIDADE | E101: 42.7 | F101: CAIXA REFERENCIAL
A102: 94884 | B102: ASSENTAMENTO DE TUBO DE PEAD CORRUGADO DE DUPLA PAREDE PARA REDE COLETORA DE ESGOTO, DN 1500 MM, JUNTA ELÁSTICA INTEGRADA (NÃO INCLUI FORNECIMENTO). AF_01/2021 | C102: M | D102: COEFICIENTE DE REPRESENTATIVIDADE | E102: 54.75 | F102: CAIXA REFERENCIAL
A103: 97121 | B103: ASSENTAMENTO DE TUBO DE PVC PBA PARA REDE DE ÁGUA, DN 50 MM, JUNTA ELÁSTICA INTEGRADA, INSTALADO EM LOCAL COM NÍVEL ALTO DE INTERFERÊNCIAS (NÃO INCLUI FORNECIMENTO). AF_11/2017 | C103: M | D103: COEFICIENTE DE REPRESENTATIVIDADE | E103: 1.69 | F103: CAIXA REFERENCIAL
A104: 97122 | B104: ASSENTAMENTO DE TUBO DE PVC PBA PARA REDE DE ÁGUA, DN 75 MM, JUNTA ELÁSTICA INTEGRADA, INSTALADO EM LOCAL COM NÍVEL ALTO DE INTERFERÊNCIAS (NÃO INCLUI FORNECIMENTO). AF_11/2017 | C104: M | D104: COEFICIENTE DE REPRESENTATIVIDADE | E104: 2.35 | F104: CAIXA REFERENCIAL
A105: 97123 | B105: ASSENTAMENTO DE TUBO DE PVC PBA PARA REDE DE ÁGUA, DN 100 MM, JUNTA ELÁSTICA INTEGRADA, INSTALADO EM LOCAL COM NÍVEL ALTO DE INTERFERÊNCIAS (NÃO INCLUI FORNECIMENTO). AF_11/2017 | C105: M | D105: COEFICIENTE DE REPRESENTATIVIDADE | E105: 2.99 | F105: CAIXA REFERENCIAL
A106: 97124 | B106: ASSENTAMENTO DE TUBO DE PVC PBA PARA REDE DE ÁGUA, DN 50 MM, JUNTA ELÁSTICA INTEGRADA, INSTALADO EM LOCAL COM NÍVEL BAIXO DE INTERFERÊNCIAS (NÃO INCLUI FORNECIMENTO). AF_11/2017 | C106: M | D106: COEFICIENTE DE REPRESENTATIVIDADE | E106: 0.76 | F106: CAIXA REFERENCIAL
A107: 97125 | B107: ASSENTAMENTO DE TUBO DE PVC PBA PARA REDE DE ÁGUA, DN 75 MM, JUNTA ELÁSTICA INTEGRADA, INSTALADO EM LOCAL COM NÍVEL BAIXO DE INTERFERÊNCIAS (NÃO INCLUI FORNECIMENTO). AF_11/2017 | C107: M | D107: COEFICIENTE DE REPRESENTATIVIDADE | E107: 1.06 | F107: CAIXA REFERENCIAL
A108: 97126 | B108: ASSENTAMENTO DE TUBO DE PVC PBA PARA REDE DE ÁGUA, DN 100 MM, JUNTA ELÁSTICA INTEGRADA, INSTALADO EM LOCAL COM NÍVEL BAIXO DE INTERFERÊNCIAS (NÃO INCLUI FORNECIMENTO). AF_11/2017 | C108: M | D108: COEFICIENTE DE REPRESENTATIVIDADE | E108: 1.36 | F108: CAIXA REFERENCIAL
A109: 102264 | B109: TUBO DE PVC BRANCO PARA REDE COLETORA DE ESGOTO CONDOMINIAL DE PAREDE MACIÇA, DN 100 MM, JUNTA ELÁSTICA - FORNECIMENTO E ASSENTAMENTO. AF_01/2021 | C109: M | D109: COEFICIENTE DE REPRESENTATIVIDADE | E109: 20.3 | F109: CAIXA REFERENCIAL
A110: 102265 | B110: JUNTA ARGAMASSADA ENTRE TUBO DN 800 MM E O POÇO DE VISITA/ CAIXA DE CONCRETO OU ALVENARIA EM REDES DE ESGOTO. AF_01/2021 | C110: UN | D110: COEFICIENTE DE REPRESENTATIVIDADE | E110: 86.29 | F110: CAIXA REFERENCIAL
A111: 102266 | B111: JUNTA ARGAMASSADA ENTRE TUBO DN 900 MM E O POÇO DE VISITA/ CAIXA DE CONCRETO OU ALVENARIA EM REDES DE ESGOTO. AF_01/2021 | C111: UN | D111: COEFICIENTE DE REPRESENTATIVIDADE | E111: 95.7 | F111: CAIXA REFERENCIAL
A112: 102267 | B112: JUNTA ARGAMASSADA ENTRE TUBO DN 1000 MM E O POÇO DE VISITA/ CAIXA DE CONCRETO OU ALVENARIA EM REDES DE ESGOTO. AF_01/2021 | C112: UN | D112: COEFICIENTE DE REPRESENTATIVIDADE | E112: 109.9 | F112: CAIXA REFERENCIAL
A113: 102268 | B113: JUNTA ARGAMASSADA ENTRE TUBO DN 1200 MM E O POÇO DE VISITA/ CAIXA DE CONCRETO OU ALVENARIA EM REDES DE ESGOTO. AF_01/2021 | C113: UN | D113: COEFICIENTE DE REPRESENTATIVIDADE | E113: 124.03 | F113: CAIXA REFERENCIAL
A114: 102269 | B114: JUNTA ARGAMASSADA ENTRE TUBO DN 1500 MM E O POÇO DE VISITA/ CAIXA DE CONCRETO OU ALVENARIA EM REDES DE ESGOTO. AF_01/2021 | C114: UN | D114: COEFICIENTE DE REPRESENTATIVIDADE | E114: 152.28 | F114: CAIXA REFERENCIAL
A115: 92833 | B115: TUBO DE CONCRETO PARA REDES COLETORAS DE ESGOTO SANITÁRIO, DIÂMETRO DE 300 MM, JUNTA ELÁSTICA, INSTALADO EM LOCAL COM BAIXO NÍVEL DE INTERFERÊNCIAS - FORNECIMENTO E ASSENTAMENTO. AF_12/2015 | C115: M | D115: COEFICIENTE DE REPRESENTATIVIDADE | E115: 197.84 | F115: CAIXA REFERENCIAL
A116: 92834 | B116: ASSENTAMENTO DE TUBO DE CONCRETO PARA REDES COLETORAS DE ESGOTO SANITÁRIO, DIÂMETRO DE 300 MM, JUNTA ELÁSTICA, INSTALADO EM LOCAL COM BAIXO NÍVEL DE INTERFERÊNCIAS (NÃO INCLUI FORNECIMENTO). AF_12/2015 | C116: M | D116: COEFICIENTE DE REPRESENTATIVIDADE | E116: 7.78 | F116: CAIXA REFERENCIAL
A117: 92835 | B117: TUBO DE CONCRETO PARA REDES COLETORAS DE ESGOTO SANITÁRIO, DIÂMETRO DE 400 MM, JUNTA ELÁSTICA, INSTALADO EM LOCAL COM BAIXO NÍVEL DE INTERFERÊNCIAS - FORNECIMENTO E ASSENTAMENTO. AF_12/2015 | C117: M | D117: COEFICIENTE DE REPRESENTATIVIDADE | E117: 212.5 | F117: CAIXA REFERENCIAL
A118: 92836 | B118: ASSENTAMENTO DE TUBO DE CONCRETO PARA REDES COLETORAS DE ESGOTO SANITÁRIO, DIÂMETRO DE 400 MM, JUNTA ELÁSTICA, INSTALADO EM LOCAL COM BAIXO NÍVEL DE INTERFERÊNCIAS (NÃO INCLUI FORNECIMENTO). AF_12/2015 | C118: M | D118: COEFICIENTE DE REPRESENTATIVIDADE | E118: 9.94 | F118: CAIXA REFERENCIAL
A119: 92837 | B119: TUBO DE CONCRETO PARA REDES COLETORAS DE ESGOTO SANITÁRIO, DIÂMETRO DE 500 MM, JUNTA ELÁSTICA, INSTALADO EM LOCAL COM BAIXO NÍVEL DE INTERFERÊNCIAS - FORNECIMENTO E ASSENTAMENTO. AF_12/2015 | C119: M | D119: COEFICIENTE DE REPRESENTATIVIDADE | E119: 353.82 | F119: CAIXA REFERENCIAL
A120: 92838 | B120: ASSENTAMENTO DE TUBO DE CONCRETO PARA REDES COLETORAS DE ESGOTO SANITÁRIO, DIÂMETRO DE 500 MM, JUNTA ELÁSTICA, INSTALADO EM LOCAL COM BAIXO NÍVEL DE INTERFERÊNCIAS (NÃO INCLUI FORNECIMENTO). AF_12/2015 | C120: M | D120: COEFICIENTE DE REPRESENTATIVIDADE | E120: 11.92 | F120: CAIXA REFERENCIAL
A121: 92839 | B121: TUBO DE CONCRETO PARA REDES COLETORAS DE ESGOTO SANITÁRIO, DIÂMETRO DE 600 MM, JUNTA ELÁSTICA, INSTALADO EM LOCAL COM BAIXO NÍVEL DE INTERFERÊNCIAS - FORNECIMENTO E ASSENTAMENTO. AF_12/2015 | C121: M | D121: COEFICIENTE DE REPRESENTATIVIDADE | E121: 433.55 | F121: CAIXA REFERENCIAL
A122: 92840 | B122: ASSENTAMENTO DE TUBO DE CONCRETO PARA REDES COLETORAS DE ESGOTO SANITÁRIO, DIÂMETRO DE 600 MM, JUNTA ELÁSTICA, INSTALADO EM LOCAL COM BAIXO NÍVEL DE INTERFERÊNCIAS (NÃO INCLUI FORNECIMENTO). AF_12/2015 | C122: M | D122: COEFICIENTE DE REPRESENTATIVIDADE | E122: 14.14 | F122: CAIXA REFERENCIAL
A123: 92841 | B123: TUBO DE CONCRETO PARA REDES COLETORAS DE ESGOTO SANITÁRIO, DIÂMETRO DE 700 MM, JUNTA ELÁSTICA, INSTALADO EM LOCAL COM BAIXO NÍVEL DE INTERFERÊNCIAS - FORNECIMENTO E ASSENTAMENTO. AF_12/2015 | C123: M | D123: COEFICIENTE DE REPRESENTATIVIDADE | E123: 542.4 | F123: CAIXA REFERENCIAL
A124: 92842 | B124: ASSENTAMENTO DE TUBO DE CONCRETO PARA REDES COLETORAS DE ESGOTO SANITÁRIO, DIÂMETRO DE 700 MM, JUNTA ELÁSTICA, INSTALADO EM LOCAL COM BAIXO NÍVEL DE INTERFERÊNCIAS (NÃO INCLUI FORNECIMENTO). AF_12/2015 | C124: M | D124: COEFICIENTE DE REPRESENTATIVIDADE | E124: 16.13 | F124: CAIXA REFERENCIAL
A125: 92843 | B125: TUBO DE CONCRETO PARA REDES COLETORAS DE ESGOTO SANITÁRIO, DIÂMETRO DE 800 MM, JUNTA ELÁSTICA, INSTALADO EM LOCAL COM BAIXO NÍVEL DE INTERFERÊNCIAS - FORNECIMENTO E ASSENTAMENTO. AF_12/2015 | C125: M | D125: COEFICIENTE DE REPRESENTATIVIDADE | E125: 574.3 | F125: CAIXA REFERENCIAL
A126: 92844 | B126: ASSENTAMENTO DE TUBO DE CONCRETO PARA REDES COLETORAS DE ESGOTO SANITÁRIO, DIÂMETRO DE 800 MM, JUNTA ELÁSTICA, INSTALADO EM LOCAL COM BAIXO NÍVEL DE INTERFERÊNCIAS (NÃO INCLUI FORNECIMENTO). AF_12/2015 | C126: M | D126: COEFICIENTE DE REPRESENTATIVIDADE | E126: 18.34 | F126: CAIXA REFERENCIAL
A127: 92845 | B127: TUBO DE CONCRETO PARA REDES COLETORAS DE ESGOTO SANITÁRIO, DIÂMETRO DE 900 MM, JUNTA ELÁSTICA, INSTALADO EM LOCAL COM BAIXO NÍVEL DE INTERFERÊNCIAS - FORNECIMENTO E ASSENTAMENTO. AF_12/2015 | C127: M | D127: COEFICIENTE DE REPRESENTATIVIDADE | E127: 798.45 | F127: CAIXA REFERENCIAL
A128: 92846 | B128: ASSENTAMENTO DE TUBO DE CONCRETO PARA REDES COLETORAS DE ESGOTO SANITÁRIO, DIÂMETRO DE 900 MM, JUNTA ELÁSTICA, INSTALADO EM LOCAL COM BAIXO NÍVEL DE INTERFERÊNCIAS (NÃO INCLUI FORNECIMENTO). AF_12/2015 | C128: M | D128: COEFICIENTE DE REPRESENTATIVIDADE | E128: 20.33 | F128: CAIXA REFERENCIAL
A129: 92847 | B129: TUBO DE CONCRETO PARA REDES COLETORAS DE ESGOTO SANITÁRIO, DIÂMETRO DE 1000 MM, JUNTA ELÁSTICA, INSTALADO EM LOCAL COM BAIXO NÍVEL DE INTERFERÊNCIAS - FORNECIMENTO E ASSENTAMENTO. AF_12/2015 | C129: M | D129: COEFICIENTE DE REPRESENTATIVIDADE | E129: 838.49 | F129: CAIXA REFERENCIAL
A130: 92848 | B130: ASSENTAMENTO DE TUBO DE CONCRETO PARA REDES COLETORAS DE ESGOTO SANITÁRIO, DIÂMETRO DE 1000 MM, JUNTA ELÁSTICA, INSTALADO EM LOCAL COM BAIXO NÍVEL DE INTERFERÊNCIAS (NÃO INCLUI FORNECIMENTO). AF_12/2015 | C130: M | D130: COEFICIENTE DE REPRESENTATIVIDADE | E130: 22.56 | F130: CAIXA REFERENCIAL
A131: 92849 | B131: TUBO DE CONCRETO PARA REDES COLETORAS DE ESGOTO SANITÁRIO, DIÂMETRO DE 300 MM, JUNTA ELÁSTICA, INSTALADO EM LOCAL COM ALTO NÍVEL DE INTERFERÊNCIAS - FORNECIMENTO E ASSENTAMENTO. AF_12/2015 | C131: M | D131: COEFICIENTE DE REPRESENTATIVIDADE | E131: 205.79 | F131: CAIXA REFERENCIAL
A132: 92850 | B132: ASSENTAMENTO DE TUBO DE CONCRETO PARA REDES COLETORAS DE ESGOTO SANITÁRIO, DIÂMETRO DE 300 MM, JUNTA ELÁSTICA, INSTALADO EM LOCAL COM ALTO NÍVEL DE INTERFERÊNCIAS (NÃO INCLUI FORNECIMENTO). AF_12/2015 | C132: M | D132: COEFICIENTE DE REPRESENTATIVIDADE | E132: 14.73 | F132: CAIXA REFERENCIAL
A133: 92851 | B133: TUBO DE CONCRETO PARA REDES COLETORAS DE ESGOTO SANITÁRIO, DIÂMETRO DE 400 MM, JUNTA ELÁSTICA, INSTALADO EM LOCAL COM ALTO NÍVEL DE INTERFERÊNCIAS - FORNECIMENTO E ASSENTAMENTO. AF_12/2015 | C133: M | D133: COEFICIENTE DE REPRESENTATIVIDADE | E133: 222.4 | F133: CAIXA REFERENCIAL
A134: 92852 | B134: ASSENTAMENTO DE TUBO DE CONCRETO PARA REDES COLETORAS DE ESGOTO SANITÁRIO, DIÂMETRO DE 400 MM, JUNTA ELÁSTICA, INSTALADO EM LOCAL COM ALTO NÍVEL DE INTERFERÊNCIAS (NÃO INCLUI FORNECIMENTO). AF_12/2015 | C134: M | D134: COEFICIENTE DE REPRESENTATIVIDADE | E134: 18.58 | F134: CAIXA REFERENCIAL
A135: 92853 | B135: TUBO DE CONCRETO PARA REDES COLETORAS DE ESGOTO SANITÁRIO, DIÂMETRO DE 500 MM, JUNTA ELÁSTICA, INSTALADO EM LOCAL COM ALTO NÍVEL DE INTERFERÊNCIAS - FORNECIMENTO E ASSENTAMENTO. AF_12/2015 | C135: M | D135: COEFICIENTE DE REPRESENTATIVIDADE | E135: 366.06 | F135: CAIXA REFERENCIAL
A136: 92854 | B136: ASSENTAMENTO DE TUBO DE CONCRETO PARA REDES COLETORAS DE ESGOTO SANITÁRIO, DIÂMETRO DE 500 MM, JUNTA ELÁSTICA, INSTALADO EM LOCAL COM ALTO NÍVEL DE INTERFERÊNCIAS (NÃO INCLUI FORNECIMENTO). AF_12/2015 | C136: M | D136: COEFICIENTE DE REPRESENTATIVIDADE | E136: 22.63 | F136: CAIXA REFERENCIAL
A137: 92855 | B137: TUBO DE CONCRETO PARA REDES COLETORAS DE ESGOTO SANITÁRIO, DIÂMETRO DE 600 MM, JUNTA ELÁSTICA, INSTALADO EM LOCAL COM ALTO NÍVEL DE INTERFERÊNCIAS - FORNECIMENTO E ASSENTAMENTO. AF_12/2015 | C137: M | D137: COEFICIENTE DE REPRESENTATIVIDADE | E137: 447.91 | F137: CAIXA REFERENCIAL
A138: 92856 | B138: ASSENTAMENTO DE TUBO DE CONCRETO PARA REDES COLETORAS DE ESGOTO SANITÁRIO, DIÂMETRO DE 600 MM, JUNTA ELÁSTICA, INSTALADO EM LOCAL COM ALTO NÍVEL DE INTERFERÊNCIAS (NÃO INCLUI FORNECIMENTO). AF_12/2015 | C138: M | D138: COEFICIENTE DE REPRESENTATIVIDADE | E138: 26.68 | F138: CAIXA REFERENCIAL
A139: 92857 | B139: TUBO DE CONCRETO PARA REDES COLETORAS DE ESGOTO SANITÁRIO, DIÂMETRO DE 700 MM, JUNTA ELÁSTICA, INSTALADO EM LOCAL COM ALTO NÍVEL DE INTERFERÊNCIAS - FORNECIMENTO E ASSENTAMENTO. AF_12/2015 | C139: M | D139: COEFICIENTE DE REPRESENTATIVIDADE | E139: 558.86 | F139: CAIXA REFERENCIAL
A140: 92858 | B140: ASSENTAMENTO DE TUBO DE CONCRETO PARA REDES COLETORAS DE ESGOTO SANITÁRIO, DIÂMETRO DE 700 MM, JUNTA ELÁSTICA, INSTALADO EM LOCAL COM ALTO NÍVEL DE INTERFERÊNCIAS (NÃO INCLUI FORNECIMENTO). AF_12/2015 | C140: M | D140: COEFICIENTE DE REPRESENTATIVIDADE | E140: 30.52 | F140: CAIXA REFERENCIAL
A141: 92859 | B141: TUBO DE CONCRETO PARA REDES COLETORAS DE ESGOTO SANITÁRIO, DIÂMETRO DE 800 MM, JUNTA ELÁSTICA, INSTALADO EM LOCAL COM ALTO NÍVEL DE INTERFERÊNCIAS - FORNECIMENTO E ASSENTAMENTO. AF_12/2015 | C141: M | D141: COEFICIENTE DE REPRESENTATIVIDADE | E141: 590.63 | F141: CAIXA REFERENCIAL
A142: 92860 | B142: ASSENTAMENTO DE TUBO DE CONCRETO PARA REDES COLETORAS DE ESGOTO SANITÁRIO, DIÂMETRO DE 800 MM, JUNTA ELÁSTICA, INSTALADO EM LOCAL COM ALTO NÍVEL DE INTERFERÊNCIAS (NÃO INCLUI FORNECIMENTO). AF_12/2015 | C142: M | D142: COEFICIENTE DE REPRESENTATIVIDADE | E142: 34.67 | F142: CAIXA REFERENCIAL
A143: 92861 | B143: TUBO DE CONCRETO PARA REDES COLETORAS DE ESGOTO SANITÁRIO, DIÂMETRO DE 900 MM, JUNTA ELÁSTICA, INSTALADO EM LOCAL COM ALTO NÍVEL DE INTERFERÊNCIAS - FORNECIMENTO E ASSENTAMENTO. AF_12/2015 | C143: M | D143: COEFICIENTE DE REPRESENTATIVIDADE | E143: 816.8 | F143: CAIXA REFERENCIAL
A144: 92862 | B144: ASSENTAMENTO DE TUBO DE CONCRETO PARA REDES COLETORAS DE ESGOTO SANITÁRIO, DIÂMETRO DE 900 MM, JUNTA ELÁSTICA, INSTALADO EM LOCAL COM ALTO NÍVEL DE INTERFERÊNCIAS (NÃO INCLUI FORNECIMENTO). AF_12/2015 | C144: M | D144: COEFICIENTE DE REPRESENTATIVIDADE | E144: 38.68 | F144: CAIXA REFERENCIAL
A145: 92863 | B145: TUBO DE CONCRETO PARA REDES COLETORAS DE ESGOTO SANITÁRIO, DIÂMETRO DE 1000 MM, JUNTA ELÁSTICA, INSTALADO EM LOCAL COM ALTO NÍVEL DE INTERFERÊNCIAS - FORNECIMENTO E ASSENTAMENTO. AF_12/2015 | C145: M | D145: COEFICIENTE DE REPRESENTATIVIDADE | E145: 861.58 | F145: CAIXA REFERENCIAL
A146: 92864 | B146: ASSENTAMENTO DE TUBO DE CONCRETO PARA REDES COLETORAS DE ESGOTO SANITÁRIO, DIÂMETRO DE 1000 MM, JUNTA ELÁSTICA, INSTALADO EM LOCAL COM ALTO NÍVEL DE INTERFERÊNCIAS (NÃO INCLUI FORNECIMENTO). AF_12/2015 | C146: M | D146: COEFICIENTE DE REPRESENTATIVIDADE | E146: 42.75 | F146: CAIXA REFERENCIAL
A147: 92210 | B147: TUBO DE CONCRETO PARA REDES COLETORAS DE ÁGUAS PLUVIAIS, DIÂMETRO DE 400 MM, JUNTA RÍGIDA, INSTALADO EM LOCAL COM BAIXO NÍVEL DE INTERFERÊNCIAS - FORNECIMENTO E ASSENTAMENTO. AF_12/2015 | C147: M | D147: COEFICIENTE DE REPRESENTATIVIDADE | E147: 135.14 | F147: CAIXA REFERENCIAL
A148: 92211 | B148: TUBO DE CONCRETO PARA REDES COLETORAS DE ÁGUAS PLUVIAIS, DIÂMETRO DE 500 MM, JUNTA RÍGIDA, INSTALADO EM LOCAL COM BAIXO NÍVEL DE INTERFERÊNCIAS - FORNECIMENTO E ASSENTAMENTO. AF_12/2015 | C148: M | D148: COEFICIENTE DE REPRESENTATIVIDADE | E148: 162.54 | F148: CAIXA REFERENCIAL
A149: 92212 | B149: TUBO DE CONCRETO PARA REDES COLETORAS DE ÁGUAS PLUVIAIS, DIÂMETRO DE 600 MM, JUNTA RÍGIDA, INSTALADO EM LOCAL COM BAIXO NÍVEL DE INTERFERÊNCIAS - FORNECIMENTO E ASSENTAMENTO. AF_12/2015 | C149: M | D149: COEFICIENTE DE REPRESENTATIVIDADE | E149: 239.75 | F149: CAIXA REFERENCIAL
A150: 92213 | B150: TUBO DE CONCRETO PARA REDES COLETORAS DE ÁGUAS PLUVIAIS, DIÂMETRO DE 700 MM, JUNTA RÍGIDA, INSTALADO EM LOCAL COM BAIXO NÍVEL DE INTERFERÊNCIAS - FORNECIMENTO E ASSENTAMENTO. AF_12/2015 | C150: M | D150: COEFICIENTE DE REPRESENTATIVIDADE | E150: 313.44 | F150: CAIXA REFERENCIAL
A151: 92214 | B151: TUBO DE CONCRETO PARA REDES COLETORAS DE ÁGUAS PLUVIAIS, DIÂMETRO DE 800 MM, JUNTA RÍGIDA, INSTALADO EM LOCAL COM BAIXO NÍVEL DE INTERFERÊNCIAS - FORNECIMENTO E ASSENTAMENTO. AF_12/2015 | C151: M | D151: COEFICIENTE DE REPRESENTATIVIDADE | E151: 378.38 | F151: CAIXA REFERENCIAL
A152: 92215 | B152: TUBO DE CONCRETO PARA REDES COLETORAS DE ÁGUAS PLUVIAIS, DIÂMETRO DE 900 MM, JUNTA RÍGIDA, INSTALADO EM LOCAL COM BAIXO NÍVEL DE INTERFERÊNCIAS - FORNECIMENTO E ASSENTAMENTO. AF_12/2015 | C152: M | D152: COEFICIENTE DE REPRESENTATIVIDADE | E152: 434.77 | F152: CAIXA REFERENCIAL
A153: 92216 | B153: TUBO DE CONCRETO PARA REDES COLETORAS DE ÁGUAS PLUVIAIS, DIÂMETRO DE 1000 MM, JUNTA RÍGIDA, INSTALADO EM LOCAL COM BAIXO NÍVEL DE INTERFERÊNCIAS - FORNECIMENTO E ASSENTAMENTO. AF_12/2015 | C153: M | D153: COEFICIENTE DE REPRESENTATIVIDADE | E153: 456.87 | F153: CAIXA REFERENCIAL
A154: 92219 | B154: TUBO DE CONCRETO PARA REDES COLETORAS DE ÁGUAS PLUVIAIS, DIÂMETRO DE 400 MM, JUNTA RÍGIDA, INSTALADO EM LOCAL COM ALTO NÍVEL DE INTERFERÊNCIAS - FORNECIMENTO E ASSENTAMENTO. AF_12/2015 | C154: M | D154: COEFICIENTE DE REPRESENTATIVIDADE | E154: 143.77 | F154: CAIXA REFERENCIAL
A155: 92220 | B155: TUBO DE CONCRETO PARA REDES COLETORAS DE ÁGUAS PLUVIAIS, DIÂMETRO DE 500 MM, JUNTA RÍGIDA, INSTALADO EM LOCAL COM ALTO NÍVEL DE INTERFERÊNCIAS - FORNECIMENTO E ASSENTAMENTO. AF_12/2015 | C155: M | D155: COEFICIENTE DE REPRESENTATIVIDADE | E155: 173.25 | F155: CAIXA REFERENCIAL
A156: 92221 | B156: TUBO DE CONCRETO PARA REDES COLETORAS DE ÁGUAS PLUVIAIS, DIÂMETRO DE 600 MM, JUNTA RÍGIDA, INSTALADO EM LOCAL COM ALTO NÍVEL DE INTERFERÊNCIAS - FORNECIMENTO E ASSENTAMENTO. AF_12/2015 | C156: M | D156: COEFICIENTE DE REPRESENTATIVIDADE | E156: 252.3 | F156: CAIXA REFERENCIAL
A157: 92222 | B157: TUBO DE CONCRETO PARA REDES COLETORAS DE ÁGUAS PLUVIAIS, DIÂMETRO DE 700 MM, JUNTA RÍGIDA, INSTALADO EM LOCAL COM ALTO NÍVEL DE INTERFERÊNCIAS - FORNECIMENTO E ASSENTAMENTO. AF_12/2015 | C157: M | D157: COEFICIENTE DE REPRESENTATIVIDADE | E157: 328.03 | F157: CAIXA REFERENCIAL
A158: 92223 | B158: TUBO DE CONCRETO PARA REDES COLETORAS DE ÁGUAS PLUVIAIS, DIÂMETRO DE 800 MM, JUNTA RÍGIDA, INSTALADO EM LOCAL COM ALTO NÍVEL DE INTERFERÊNCIAS - FORNECIMENTO E ASSENTAMENTO. AF_12/2015 | C158: M | D158: COEFICIENTE DE REPRESENTATIVIDADE | E158: 394.7 | F158: CAIXA REFERENCIAL
A159: 92224 | B159: TUBO DE CONCRETO PARA REDES COLETORAS DE ÁGUAS PLUVIAIS, DIÂMETRO DE 900 MM, JUNTA RÍGIDA, INSTALADO EM LOCAL COM ALTO NÍVEL DE INTERFERÊNCIAS - FORNECIMENTO E ASSENTAMENTO. AF_12/2015 | C159: M | D159: COEFICIENTE DE REPRESENTATIVIDADE | E159: 452.87 | F159: CAIXA REFERENCIAL
A160: 92226 | B160: TUBO DE CONCRETO PARA REDES COLETORAS DE ÁGUAS PLUVIAIS, DIÂMETRO DE 1000 MM, JUNTA RÍGIDA, INSTALADO EM LOCAL COM ALTO NÍVEL DE INTERFERÊNCIAS - FORNECIMENTO E ASSENTAMENTO. AF_12/2015 | C160: M | D160: COEFICIENTE DE REPRESENTATIVIDADE | E160: 477.15 | F160: CAIXA REFERENCIAL
A161: 92808 | B161: ASSENTAMENTO DE TUBO DE CONCRETO PARA REDES COLETORAS DE ÁGUAS PLUVIAIS, DIÂMETRO DE 300 MM, JUNTA RÍGIDA, INSTALADO EM LOCAL COM BAIXO NÍVEL DE INTERFERÊNCIAS (NÃO INCLUI FORNECIMENTO). AF_12/2015 | C161: M | D161: COEFICIENTE DE REPRESENTATIVIDADE | E161: 35.17 | F161: CAIXA REFERENCIAL
A162: 92809 | B162: ASSENTAMENTO DE TUBO DE CONCRETO PARA REDES COLETORAS DE ÁGUAS PLUVIAIS, DIÂMETRO DE 400 MM, JUNTA RÍGIDA, INSTALADO EM LOCAL COM BAIXO NÍVEL DE INTERFERÊNCIAS (NÃO INCLUI FORNECIMENTO). AF_12/2015 | C162: M | D162: COEFICIENTE DE REPRESENTATIVIDADE | E162: 45.18 | F162: CAIXA REFERENCIAL
A163: 92810 | B163: ASSENTAMENTO DE TUBO DE CONCRETO PARA REDES COLETORAS DE ÁGUAS PLUVIAIS, DIÂMETRO DE 500 MM, JUNTA RÍGIDA, INSTALADO EM LOCAL COM BAIXO NÍVEL DE INTERFERÊNCIAS (NÃO INCLUI FORNECIMENTO). AF_12/2015 | C163: M | D163: COEFICIENTE DE REPRESENTATIVIDADE | E163: 55.03 | F163: CAIXA REFERENCIAL
A164: 92811 | B164: ASSENTAMENTO DE TUBO DE CONCRETO PARA REDES COLETORAS DE ÁGUAS PLUVIAIS, DIÂMETRO DE 600 MM, JUNTA RÍGIDA, INSTALADO EM LOCAL COM BAIXO NÍVEL DE INTERFERÊNCIAS (NÃO INCLUI FORNECIMENTO). AF_12/2015 | C164: M | D164: COEFICIENTE DE REPRESENTATIVIDADE | E164: 65.68 | F164: CAIXA REFERENCIAL
A165: 92812 | B165: ASSENTAMENTO DE TUBO DE CONCRETO PARA REDES COLETORAS DE ÁGUAS PLUVIAIS, DIÂMETRO DE 700 MM, JUNTA RÍGIDA, INSTALADO EM LOCAL COM BAIXO NÍVEL DE INTERFERÊNCIAS (NÃO INCLUI FORNECIMENTO). AF_12/2015 | C165: M | D165: COEFICIENTE DE REPRESENTATIVIDADE | E165: 76.18 | F165: CAIXA REFERENCIAL
A166: 92813 | B166: ASSENTAMENTO DE TUBO DE CONCRETO PARA REDES COLETORAS DE ÁGUAS PLUVIAIS, DIÂMETRO DE 800 MM, JUNTA RÍGIDA, INSTALADO EM LOCAL COM BAIXO NÍVEL DE INTERFERÊNCIAS (NÃO INCLUI FORNECIMENTO). AF_12/2015 | C166: M | D166: COEFICIENTE DE REPRESENTATIVIDADE | E166: 88.76 | F166: CAIXA REFERENCIAL
A167: 92814 | B167: ASSENTAMENTO DE TUBO DE CONCRETO PARA REDES COLETORAS DE ÁGUAS PLUVIAIS, DIÂMETRO DE 900 MM, JUNTA RÍGIDA, INSTALADO EM LOCAL COM BAIXO NÍVEL DE INTERFERÊNCIAS (NÃO INCLUI FORNECIMENTO). AF_12/2015 | C167: M | D167: COEFICIENTE DE REPRESENTATIVIDADE | E167: 102 | F167: CAIXA REFERENCIAL
A168: 92815 | B168: ASSENTAMENTO DE TUBO DE CONCRETO PARA REDES COLETORAS DE ÁGUAS PLUVIAIS, DIÂMETRO DE 1000 MM, JUNTA RÍGIDA, INSTALADO EM LOCAL COM BAIXO NÍVEL DE INTERFERÊNCIAS (NÃO INCLUI FORNECIMENTO). AF_12/2015 | C168: M | D168: COEFICIENTE DE REPRESENTATIVIDADE | E168: 117.52 | F168: CAIXA REFERENCIAL
A169: 92816 | B169: TUBO DE CONCRETO PARA REDES COLETORAS DE ÁGUAS PLUVIAIS, DIÂMETRO DE 1200 MM, JUNTA RÍGIDA, INSTALADO EM LOCAL COM BAIXO NÍVEL DE INTERFERÊNCIAS - FORNECIMENTO E ASSENTAMENTO. AF_12/2015 | C169: M | D169: COEFICIENTE DE REPRESENTATIVIDADE | E169: 653.9 | F169: CAIXA REFERENCIAL
A170: 92817 | B170: ASSENTAMENTO DE TUBO DE CONCRETO PARA REDES COLETORAS DE ÁGUAS PLUVIAIS, DIÂMETRO DE 1200 MM, JUNTA RÍGIDA, INSTALADO EM LOCAL COM BAIXO NÍVEL DE INTERFERÊNCIAS (NÃO INCLUI FORNECIMENTO). AF_12/2015 | C170: M | D170: COEFICIENTE DE REPRESENTATIVIDADE | E170: 147.06 | F170: CAIXA REFERENCIAL
A171: 92818 | B171: TUBO DE CONCRETO PARA REDES COLETORAS DE ÁGUAS PLUVIAIS, DIÂMETRO DE 1500 MM, JUNTA RÍGIDA, INSTALADO EM LOCAL COM BAIXO NÍVEL DE INTERFERÊNCIAS - FORNECIMENTO E ASSENTAMENTO. AF_12/2015 | C171: M | D171: COEFICIENTE DE REPRESENTATIVIDADE | E171: 932.26 | F171: CAIXA REFERENCIAL
A172: 92819 | B172: ASSENTAMENTO DE TUBO DE CONCRETO PARA REDES COLETORAS DE ÁGUAS PLUVIAIS, DIÂMETRO DE 1500 MM, JUNTA RÍGIDA, INSTALADO EM LOCAL COM BAIXO NÍVEL DE INTERFERÊNCIAS (NÃO INCLUI FORNECIMENTO). AF_12/2015 | C172: M | D172: COEFICIENTE DE REPRESENTATIVIDADE | E172: 197.96 | F172: CAIXA REFERENCIAL
A173: 92820 | B173: ASSENTAMENTO DE TUBO DE CONCRETO PARA REDES COLETORAS DE ÁGUAS PLUVIAIS, DIÂMETRO DE 300 MM, JUNTA RÍGIDA, INSTALADO EM LOCAL COM ALTO NÍVEL DE INTERFERÊNCIAS (NÃO INCLUI FORNECIMENTO). AF_12/2015 | C173: M | D173: COEFICIENTE DE REPRESENTATIVIDADE | E173: 41.91 | F173: CAIXA REFERENCIAL
A174: 92821 | B174: ASSENTAMENTO DE TUBO DE CONCRETO PARA REDES COLETORAS DE ÁGUAS PLUVIAIS, DIÂMETRO DE 400 MM, JUNTA RÍGIDA, INSTALADO EM LOCAL COM ALTO NÍVEL DE INTERFERÊNCIAS (NÃO INCLUI FORNECIMENTO). AF_12/2015 | C174: M | D174: COEFICIENTE DE REPRESENTATIVIDADE | E174: 53.81 | F174: CAIXA REFERENCIAL
A175: 92822 | B175: ASSENTAMENTO DE TUBO DE CONCRETO PARA REDES COLETORAS DE ÁGUAS PLUVIAIS, DIÂMETRO DE 500 MM, JUNTA RÍGIDA, INSTALADO EM LOCAL COM ALTO NÍVEL DE INTERFERÊNCIAS (NÃO INCLUI FORNECIMENTO). AF_12/2015 | C175: M | D175: COEFICIENTE DE REPRESENTATIVIDADE | E175: 65.74 | F175: CAIXA REFERENCIAL
A176: 92824 | B176: ASSENTAMENTO DE TUBO DE CONCRETO PARA REDES COLETORAS DE ÁGUAS PLUVIAIS, DIÂMETRO DE 600 MM, JUNTA RÍGIDA, INSTALADO EM LOCAL COM ALTO NÍVEL DE INTERFERÊNCIAS (NÃO INCLUI FORNECIMENTO). AF_12/2015 | C176: M | D176: COEFICIENTE DE REPRESENTATIVIDADE | E176: 78.23 | F176: CAIXA REFERENCIAL
A177: 92825 | B177: ASSENTAMENTO DE TUBO DE CONCRETO PARA REDES COLETORAS DE ÁGUAS PLUVIAIS, DIÂMETRO DE 700 MM, JUNTA RÍGIDA, INSTALADO EM LOCAL COM ALTO NÍVEL DE INTERFERÊNCIAS (NÃO INCLUI FORNECIMENTO). AF_12/2015 | C177: M | D177: COEFICIENTE DE REPRESENTATIVIDADE | E177: 90.77 | F177: CAIXA REFERENCIAL
A178: 92826 | B178: ASSENTAMENTO DE TUBO DE CONCRETO PARA REDES COLETORAS DE ÁGUAS PLUVIAIS, DIÂMETRO DE 800 MM, JUNTA RÍGIDA, INSTALADO EM LOCAL COM ALTO NÍVEL DE INTERFERÊNCIAS (NÃO INCLUI FORNECIMENTO). AF_12/2015 | C178: M | D178: COEFICIENTE DE REPRESENTATIVIDADE | E178: 105.08 | F178: CAIXA REFERENCIAL
A179: 92827 | B179: ASSENTAMENTO DE TUBO DE CONCRETO PARA REDES COLETORAS DE ÁGUAS PLUVIAIS, DIÂMETRO DE 900 MM, JUNTA RÍGIDA, INSTALADO EM LOCAL COM ALTO NÍVEL DE INTERFERÊNCIAS (NÃO INCLUI FORNECIMENTO). AF_12/2015 | C179: M | D179: COEFICIENTE DE REPRESENTATIVIDADE | E179: 120.1 | F179: CAIXA REFERENCIAL
A180: 92828 | B180: ASSENTAMENTO DE TUBO DE CONCRETO PARA REDES COLETORAS DE ÁGUAS PLUVIAIS, DIÂMETRO DE 1000 MM, JUNTA RÍGIDA, INSTALADO EM LOCAL COM ALTO NÍVEL DE INTERFERÊNCIAS (NÃO INCLUI FORNECIMENTO). AF_12/2015 | C180: M | D180: COEFICIENTE DE REPRESENTATIVIDADE | E180: 137.8 | F180: CAIXA REFERENCIAL
A181: 92829 | B181: TUBO DE CONCRETO PARA REDES COLETORAS DE ÁGUAS PLUVIAIS, DIÂMETRO DE 1200 MM, JUNTA RÍGIDA, INSTALADO EM LOCAL COM ALTO NÍVEL DE INTERFERÊNCIAS - FORNECIMENTO E ASSENTAMENTO. AF_12/2015 | C181: M | D181: COEFICIENTE DE REPRESENTATIVIDADE | E181: 677.78 | F181: CAIXA REFERENCIAL
A182: 92830 | B182: ASSENTAMENTO DE TUBO DE CONCRETO PARA REDES COLETORAS DE ÁGUAS PLUVIAIS, DIÂMETRO DE 1200 MM, JUNTA RÍGIDA, INSTALADO EM LOCAL COM ALTO NÍVEL DE INTERFERÊNCIAS (NÃO INCLUI FORNECIMENTO). AF_12/2015 | C182: M | D182: COEFICIENTE DE REPRESENTATIVIDADE | E182: 170.94 | F182: CAIXA REFERENCIAL
A183: 92831 | B183: TUBO DE CONCRETO PARA REDES COLETORAS DE ÁGUAS PLUVIAIS, DIÂMETRO DE 1500 MM, JUNTA RÍGIDA, INSTALADO EM LOCAL COM ALTO NÍVEL DE INTERFERÊNCIAS - FORNECIMENTO E ASSENTAMENTO. AF_12/2015 | C183: M | D183: COEFICIENTE DE REPRESENTATIVIDADE | E183: 961.55 | F183: CAIXA REFERENCIAL
A184: 92832 | B184: ASSENTAMENTO DE TUBO DE CONCRETO PARA REDES COLETORAS DE ÁGUAS PLUVIAIS, DIÂMETRO DE 1500 MM, JUNTA RÍGIDA, INSTALADO EM LOCAL COM ALTO NÍVEL DE INTERFERÊNCIAS (NÃO INCLUI FORNECIMENTO). AF_12/2015 | C184: M | D184: COEFICIENTE DE REPRESENTATIVIDADE | E184: 227.25 | F184: CAIXA REFERENCIAL
A185: 95565 | B185: TUBO DE CONCRETO PARA REDES COLETORAS DE ÁGUAS PLUVIAIS, DIÂMETRO DE 300MM, JUNTA RÍGIDA, INSTALADO EM LOCAL COM BAIXO NÍVEL DE INTERFERÊNCIAS - FORNECIMENTO E ASSENTAMENTO. AF_12/2015 | C185: M | D185: COEFICIENTE DE REPRESENTATIVIDADE | E185: 119.85 | F185: CAIXA REFERENCIAL
A186: 95566 | B186: TUBO DE CONCRETO PARA REDES COLETORAS DE ÁGUAS PLUVIAIS, DIÂMETRO DE 300MM, JUNTA RÍGIDA, INSTALADO EM LOCAL COM ALTO NÍVEL DE INTERFERÊNCIAS - FORNECIMENTO E ASSENTAMENTO. AF_12/2015 | C186: M | D186: COEFICIENTE DE REPRESENTATIVIDADE | E186: 127.57 | F186: CAIXA REFERENCIAL
A187: 95567 | B187: TUBO DE CONCRETO (SIMPLES) PARA REDES COLETORAS DE ÁGUAS PLUVIAIS, DIÂMETRO DE 300 MM, JUNTA RÍGIDA, INSTALADO EM LOCAL COM BAIXO NÍVEL DE INTERFERÊNCIAS - FORNECIMENTO E ASSENTAMENTO. AF_12/2015 | C187: M | D187: ATRIBUÍDO SÃO PAULO | E187: 84.94 | F187: CAIXA REFERENCIAL
A188: 95568 | B188: TUBO DE CONCRETO (SIMPLES) PARA REDES COLETORAS DE ÁGUAS PLUVIAIS, DIÂMETRO DE 400 MM, JUNTA RÍGIDA, INSTALADO EM LOCAL COM BAIXO NÍVEL DE INTERFERÊNCIAS - FORNECIMENTO E ASSENTAMENTO. AF_12/2015 | C188: M | D188: ATRIBUÍDO SÃO PAULO | E188: 104.42 | F188: CAIXA REFERENCIAL
A189: 95569 | B189: TUBO DE CONCRETO (SIMPLES) PARA REDES COLETORAS DE ÁGUAS PLUVIAIS, DIÂMETRO DE 500 MM, JUNTA RÍGIDA, INSTALADO EM LOCAL COM BAIXO NÍVEL DE INTERFERÊNCIAS - FORNECIMENTO E ASSENTAMENTO. AF_12/2015 | C189: M | D189: ATRIBUÍDO SÃO PAULO | E189: 141.47 | F189: CAIXA REFERENCIAL
A190: 95570 | B190: TUBO DE CONCRETO (SIMPLES) PARA REDES COLETORAS DE ÁGUAS PLUVIAIS, DIÂMETRO DE 300 MM, JUNTA RÍGIDA, INSTALADO EM LOCAL COM ALTO NÍVEL DE INTERFERÊNCIAS - FORNECIMENTO E ASSENTAMENTO. AF_12/2015 | C190: M | D190: ATRIBUÍDO SÃO PAULO | E190: 92.66 | F190: CAIXA REFERENCIAL
A191: 95571 | B191: TUBO DE CONCRETO (SIMPLES) PARA REDES COLETORAS DE ÁGUAS PLUVIAIS, DIÂMETRO DE 400 MM, JUNTA RÍGIDA, INSTALADO EM LOCAL COM ALTO NÍVEL DE INTERFERÊNCIAS - FORNECIMENTO E ASSENTAMENTO. AF_12/2015 | C191: M | D191: ATRIBUÍDO SÃO PAULO | E191: 114.31 | F191: CAIXA REFERENCIAL
A192: 95572 | B192: TUBO DE CONCRETO (SIMPLES) PARA REDES COLETORAS DE ÁGUAS PLUVIAIS, DIÂMETRO DE 500 MM, JUNTA RÍGIDA, INSTALADO EM LOCAL COM ALTO NÍVEL DE INTERFERÊNCIAS - FORNECIMENTO E ASSENTAMENTO. AF_12/2015 | C192: M | D192: ATRIBUÍDO SÃO PAULO | E192: 153.71 | F192: CAIXA REFERENCIAL
A193: 97127 | B193: ASSENTAMENTO DE TUBO DE PVC DEFOFO OU PRFV OU RPVC PARA REDE DE ÁGUA, DN 150 MM, JUNTA ELÁSTICA INTEGRADA, INSTALADO EM LOCAL COM NÍVEL ALTO DE INTERFERÊNCIAS (NÃO INCLUI FORNECIMENTO). AF_11/2017 | C193: M | D193: COEFICIENTE DE REPRESENTATIVIDADE | E193: 4.28 | F193: CAIXA REFERENCIAL
A194: 97128 | B194: ASSENTAMENTO DE TUBO DE PVC DEFOFO OU PRFV OU RPVC PARA REDE DE ÁGUA, DN 200 MM, JUNTA ELÁSTICA INTEGRADA, INSTALADO EM LOCAL COM NÍVEL ALTO DE INTERFERÊNCIAS (NÃO INCLUI FORNECIMENTO). AF_11/2017 | C194: M | D194: ATRIBUÍDO SÃO PAULO | E194: 8.28 | F194: CAIXA REFERENCIAL
A195: 97129 | B195: ASSENTAMENTO DE TUBO DE PVC DEFOFO OU PRFV OU RPVC PARA REDE DE ÁGUA, DN 250 MM, JUNTA ELÁSTICA INTEGRADA, INSTALADO EM LOCAL COM NÍVEL ALTO DE INTERFERÊNCIAS (NÃO INCLUI FORNECIMENTO). AF_11/2017 | C195: M | D195: ATRIBUÍDO SÃO PAULO | E195: 10.2 | F195: CAIXA REFERENCIAL
A196: 97130 | B196: ASSENTAMENTO DE TUBO DE PVC DEFOFO OU PRFV OU RPVC PARA REDE DE ÁGUA, DN 300 MM, JUNTA ELÁSTICA INTEGRADA, INSTALADO EM LOCAL COM NÍVEL ALTO DE INTERFERÊNCIAS (NÃO INCLUI FORNECIMENTO). AF_11/2017 | C196: M | D196: ATRIBUÍDO SÃO PAULO | E196: 12.11 | F196: CAIXA REFERENCIAL
A197: 97131 | B197: ASSENTAMENTO DE TUBO DE PVC DEFOFO OU PRFV OU RPVC PARA REDE DE ÁGUA, DN 350 MM, JUNTA ELÁSTICA INTEGRADA, INSTALADO EM LOCAL COM NÍVEL ALTO DE INTERFERÊNCIAS (NÃO INCLUI FORNECIMENTO). AF_11/2017 | C197: M | D197: ATRIBUÍDO SÃO PAULO | E197: 14 | F197: CAIXA REFERENCIAL
A198: 97132 | B198: ASSENTAMENTO DE TUBO DE PVC DEFOFO OU PRFV OU RPVC PARA REDE DE ÁGUA, DN 400 MM, JUNTA ELÁSTICA INTEGRADA, INSTALADO EM LOCAL COM NÍVEL ALTO DE INTERFERÊNCIAS (NÃO INCLUI FORNECIMENTO). AF_11/2017 | C198: M | D198: ATRIBUÍDO SÃO PAULO | E198: 15.89 | F198: CAIXA REFERENCIAL
A199: 97133 | B199: ASSENTAMENTO DE TUBO DE PVC DEFOFO OU PRFV OU RPVC PARA REDE DE ÁGUA, DN 500 MM, JUNTA ELÁSTICA INTEGRADA, INSTALADO EM LOCAL COM NÍVEL ALTO DE INTERFERÊNCIAS (NÃO INCLUI FORNECIMENTO). AF_11/2017 | C199: M | D199: ATRIBUÍDO SÃO PAULO | E199: 19.71 | F199: CAIXA REFERENCIAL
A200: 97134 | B200: ASSENTAMENTO DE TUBO DE PVC DEFOFO OU PRFV OU RPVC PARA REDE DE ÁGUA, DN 150 MM, JUNTA ELÁSTICA INTEGRADA, INSTALADO EM LOCAL COM NÍVEL BAIXO DE INTERFERÊNCIAS (NÃO INCLUI FORNECIMENTO). AF_11/2017 | C200: M | D200: COEFICIENTE DE REPRESENTATIVIDADE | E200: 1.97 | F200: CAIXA REFERENCIAL
... 12098 more rows
